Body,Body Name,Transaction No,Invoice Ref.,Supplier Name,Expense Code,Expense Type,Date,Amount
http://statistics.data.gov.uk/id/local-authority-district/23UB,Cheltenham Borough Council,451983,142016,A&E FIRE EQUIPMENT LTD,C-C22120-1808,Sports & Open S-RM-Routine works,22-Jun-11,6.58
http://statistics.data.gov.uk/id/local-authority-district/23UB,Cheltenham Borough Council,451880,141964,A&E FIRE EQUIPMENT LTD,C-C22120-1808,Sports & Open S-RM-Routine works,22-Jun-11,97.79
http://statistics.data.gov.uk/id/local-authority-district/23UB,Cheltenham Borough Council,451887,142015,A&E FIRE EQUIPMENT LTD,C-C22120-1808,Sports & Open S-RM-Routine works,22-Jun-11,1.88
http://statistics.data.gov.uk/id/local-authority-district/23UB,Cheltenham Borough Council,451889,142018,A&E FIRE EQUIPMENT LTD,C-C22120-1808,Sports & Open S-RM-Routine works,22-Jun-11,1.88
http://statistics.data.gov.uk/id/local-authority-district/23UB,Cheltenham Borough Council,451892,142021,A&E FIRE EQUIPMENT LTD,C-C22120-1808,Sports & Open S-RM-Routine works,22-Jun-11,10.34
http://statistics.data.gov.uk/id/local-authority-district/23UB,Cheltenham Borough Council,451897,142026,A&E FIRE EQUIPMENT LTD,C-C22120-1808,Sports & Open S-RM-Routine works,22-Jun-11,43.80
http://statistics.data.gov.uk/id/local-authority-district/23UB,Cheltenham Borough Council,451895,142024,A&E FIRE EQUIPMENT LTD,C-C22120-1808,Sports & Open S-RM-Routine works,22-Jun-11,10.34
http://statistics.data.gov.uk/id/local-authority-district/23UB,Cheltenham Borough Council,451894,142023,A&E FIRE EQUIPMENT LTD,C-C22120-1808,Sports & Open S-RM-Routine works,22-Jun-11,3.76
http://statistics.data.gov.uk/id/local-authority-district/23UB,Cheltenham Borough Council,451893,142022,A&E FIRE EQUIPMENT LTD,C-C22120-1808,Sports & Open S-RM-Routine works,22-Jun-11,2.82
http://statistics.data.gov.uk/id/local-authority-district/23UB,Cheltenham Borough Council,451891,142020,A&E FIRE EQUIPMENT LTD,C-C22120-1808,Sports & Open S-RM-Routine works,22-Jun-11,3.76
http://statistics.data.gov.uk/id/local-authority-district/23UB,Cheltenham Borough Council,451888,142017,A&E FIRE EQUIPMENT LTD,C-C22120-1808,Sports & Open S-RM-Routine works,22-Jun-11,9.40
http://statistics.data.gov.uk/id/local-authority-district/23UB,Cheltenham Borough Council,451886,142014,A&E FIRE EQUIPMENT LTD,C-C22120-1808,Sports & Open S-RM-Routine works,22-Jun-11,6.58
http://statistics.data.gov.uk/id/local-authority-district/23UB,Cheltenham Borough Council,451872,141673,A&E FIRE EQUIPMENT LTD,C-C22120-1808,Sports & Open S-RM-Routine works,22-Jun-11,3.00
http://statistics.data.gov.uk/id/local-authority-district/23UB,Cheltenham Borough Council,451890,142019,A&E FIRE EQUIPMENT LTD,C-C23140-1808,Public Convnces-RM-Routine works,22-Jun-11,2.82
http://statistics.data.gov.uk/id/local-authority-district/23UB,Cheltenham Borough Council,451896,142025,A&E FIRE EQUIPMENT LTD,C-C23140-1808,Public Convnces-RM-Routine works,22-Jun-11,2.82
http://statistics.data.gov.uk/id/local-authority-district/23UB,Cheltenham Borough Council,451898,142027,A&E FIRE EQUIPMENT LTD,C-C23140-1808,Public Convnces-RM-Routine works,22-Jun-11,9.40
http://statistics.data.gov.uk/id/local-authority-district/23UB,Cheltenham Borough Council,451874,141684,A&E FIRE EQUIPMENT LTD,C-D13100-1808,Muni Off Blgs-RM-Routine works,22-Jun-11,153.22
http://statistics.data.gov.uk/id/local-authority-district/23UB,Cheltenham Borough Council,451899,142034,A&E FIRE EQUIPMENT LTD,C-D13100-1808,Muni Off Blgs-RM-Routine works,22-Jun-11,153.22
http://statistics.data.gov.uk/id/local-authority-district/23UB,Cheltenham Borough Council,451884,142002,A&E FIRE EQUIPMENT LTD,C-D13550-1115,Area Off -E.Hse-Fire prevention,22-Jun-11,53.44
http://statistics.data.gov.uk/id/local-authority-district/23UB,Cheltenham Borough Council,451885,142013,A&E FIRE EQUIPMENT LTD,C-D13550-1115,Area Off -E.Hse-Fire prevention,22-Jun-11,63.92
http://statistics.data.gov.uk/id/local-authority-district/23UB,Cheltenham Borough Council,451881,141965,A&E FIRE EQUIPMENT LTD,C-D14100-1808,Depot Building-RM-Routine works,22-Jun-11,176.59
http://statistics.data.gov.uk/id/local-authority-district/23UB,Cheltenham Borough Council,451878,141870,A&E FIRE EQUIPMENT LTD,C-D30200-1124,Misc Props & Ld-Berkeley Mews  Repairs,22-Jun-11,8.46
http://statistics.data.gov.uk/id/local-authority-district/23UB,Cheltenham Borough Council,451877,141869,A&E FIRE EQUIPMENT LTD,C-D33950-1808,Resource Centre-RM-Routine works,22-Jun-11,5.64
http://statistics.data.gov.uk/id/local-authority-district/23UB,Cheltenham Borough Council,451900,142101,A&E FIRE EQUIPMENT LTD,C-E21100-1808,Car Prks-Off St-RM-Routine works,22-Jun-11,163.78
http://statistics.data.gov.uk/id/local-authority-district/23UB,Cheltenham Borough Council,451901,142102,A&E FIRE EQUIPMENT LTD,C-E21100-1808,Car Prks-Off St-RM-Routine works,22-Jun-11,45.12
http://statistics.data.gov.uk/id/local-authority-district/23UB,Cheltenham Borough Council,451905,142275,A&E FIRE EQUIPMENT LTD,C-E21100-1808,Car Prks-Off St-RM-Routine works,22-Jun-11,400.00
http://statistics.data.gov.uk/id/local-authority-district/23UB,Cheltenham Borough Council,451921,141437,A&E FIRE EQUIPMENT LTD,C-H44600-1104,J D Court-Council House repairs,22-Jun-11,120.58
http://statistics.data.gov.uk/id/local-authority-district/23UB,Cheltenham Borough Council,451913,141257,A&E FIRE EQUIPMENT LTD,C-H46200-1104,Fire. Syst.Serv-Council House repairs,22-Jun-11,90.62
http://statistics.data.gov.uk/id/local-authority-district/23UB,Cheltenham Borough Council,451918,141471,A&E FIRE EQUIPMENT LTD,C-H46200-1104,Fire. Syst.Serv-Council House repairs,22-Jun-11,14.62
http://statistics.data.gov.uk/id/local-authority-district/23UB,Cheltenham Borough Council,451936,141448,A&E FIRE EQUIPMENT LTD,C-H46200-1104,Fire. Syst.Serv-Council House repairs,22-Jun-11,6.58
http://statistics.data.gov.uk/id/local-authority-district/23UB,Cheltenham Borough Council,451935,141447,A&E FIRE EQUIPMENT LTD,C-H46200-1104,Fire. Syst.Serv-Council House repairs,22-Jun-11,6.58
http://statistics.data.gov.uk/id/local-authority-district/23UB,Cheltenham Borough Council,451934,141446,A&E FIRE EQUIPMENT LTD,C-H46200-1104,Fire. Syst.Serv-Council House repairs,22-Jun-11,6.58
http://statistics.data.gov.uk/id/local-authority-district/23UB,Cheltenham Borough Council,451933,141442,A&E FIRE EQUIPMENT LTD,C-H46200-1104,Fire. Syst.Serv-Council House repairs,22-Jun-11,10.34
http://statistics.data.gov.uk/id/local-authority-district/23UB,Cheltenham Borough Council,451932,141482,A&E FIRE EQUIPMENT LTD,C-H46200-1104,Fire. Syst.Serv-Council House repairs,22-Jun-11,6.58
http://statistics.data.gov.uk/id/local-authority-district/23UB,Cheltenham Borough Council,451931,141278,A&E FIRE EQUIPMENT LTD,C-H46200-1104,Fire. Syst.Serv-Council House repairs,22-Jun-11,14.40
http://statistics.data.gov.uk/id/local-authority-district/23UB,Cheltenham Borough Council,451930,141279,A&E FIRE EQUIPMENT LTD,C-H46200-1104,Fire. Syst.Serv-Council House repairs,22-Jun-11,17.87
http://statistics.data.gov.uk/id/local-authority-district/23UB,Cheltenham Borough Council,451929,141280,A&E FIRE EQUIPMENT LTD,C-H46200-1104,Fire. Syst.Serv-Council House repairs,22-Jun-11,14.40
http://statistics.data.gov.uk/id/local-authority-district/23UB,Cheltenham Borough Council,451928,141281,A&E FIRE EQUIPMENT LTD,C-H46200-1104,Fire. Syst.Serv-Council House repairs,22-Jun-11,15.05
http://statistics.data.gov.uk/id/local-authority-district/23UB,Cheltenham Borough Council,451937,141439,A&E FIRE EQUIPMENT LTD,C-H46200-1104,Fire. Syst.Serv-Council House repairs,22-Jun-11,19.97
http://statistics.data.gov.uk/id/local-authority-district/23UB,Cheltenham Borough Council,451927,141282,A&E FIRE EQUIPMENT LTD,C-H46200-1104,Fire. Syst.Serv-Council House repairs,22-Jun-11,15.70
http://statistics.data.gov.uk/id/local-authority-district/23UB,Cheltenham Borough Council,451926,141283,A&E FIRE EQUIPMENT LTD,C-H46200-1104,Fire. Syst.Serv-Council House repairs,22-Jun-11,13.10
http://statistics.data.gov.uk/id/local-authority-district/23UB,Cheltenham Borough Council,451925,141399,A&E FIRE EQUIPMENT LTD,C-H46200-1104,Fire. Syst.Serv-Council House repairs,22-Jun-11,212.44
http://statistics.data.gov.uk/id/local-authority-district/23UB,Cheltenham Borough Council,451924,141421,A&E FIRE EQUIPMENT LTD,C-H46200-1104,Fire. Syst.Serv-Council House repairs,22-Jun-11,108.91
http://statistics.data.gov.uk/id/local-authority-district/23UB,Cheltenham Borough Council,451923,141423,A&E FIRE EQUIPMENT LTD,C-H46200-1104,Fire. Syst.Serv-Council House repairs,22-Jun-11,137.44
http://statistics.data.gov.uk/id/local-authority-district/23UB,Cheltenham Borough Council,451922,141438,A&E FIRE EQUIPMENT LTD,C-H46200-1104,Fire. Syst.Serv-Council House repairs,22-Jun-11,14.40
http://statistics.data.gov.uk/id/local-authority-district/23UB,Cheltenham Borough Council,451920,141469,A&E FIRE EQUIPMENT LTD,C-H46200-1104,Fire. Syst.Serv-Council House repairs,22-Jun-11,28.79
http://statistics.data.gov.uk/id/local-authority-district/23UB,Cheltenham Borough Council,451919,141470,A&E FIRE EQUIPMENT LTD,C-H46200-1104,Fire. Syst.Serv-Council House repairs,22-Jun-11,13.68
http://statistics.data.gov.uk/id/local-authority-district/23UB,Cheltenham Borough Council,451917,141472,A&E FIRE EQUIPMENT LTD,C-H46200-1104,Fire. Syst.Serv-Council House repairs,22-Jun-11,12.45
http://statistics.data.gov.uk/id/local-authority-district/23UB,Cheltenham Borough Council,451914,141178,A&E FIRE EQUIPMENT LTD,C-H46200-1104,Fire. Syst.Serv-Council House repairs,22-Jun-11,78.40
http://statistics.data.gov.uk/id/local-authority-district/23UB,Cheltenham Borough Council,451916,141006,A&E FIRE EQUIPMENT LTD,C-H46200-1104,Fire. Syst.Serv-Council House repairs,22-Jun-11,153.67
http://statistics.data.gov.uk/id/local-authority-district/23UB,Cheltenham Borough Council,451915,141074,A&E FIRE EQUIPMENT LTD,C-H46200-1104,Fire. Syst.Serv-Council House repairs,22-Jun-11,155.00
http://statistics.data.gov.uk/id/local-authority-district/23UB,Cheltenham Borough Council,451902,142266,A&E FIRE EQUIPMENT LTD,C-L11500-1808,Rec Facilities-RM-Routine works,22-Jun-11,372.88
http://statistics.data.gov.uk/id/local-authority-district/23UB,Cheltenham Borough Council,451904,142268,A&E FIRE EQUIPMENT LTD,C-L11500-1808,Rec Facilities-RM-Routine works,22-Jun-11,40.36
http://statistics.data.gov.uk/id/local-authority-district/23UB,Cheltenham Borough Council,451903,142267,A&E FIRE EQUIPMENT LTD,C-L11500-1808,Rec Facilities-RM-Routine works,22-Jun-11,33.82
http://statistics.data.gov.uk/id/local-authority-district/23UB,Cheltenham Borough Council,451879,141945,A&E FIRE EQUIPMENT LTD,C-L21100-1808,Town Hall-RM-Routine works,22-Jun-11,394.52
http://statistics.data.gov.uk/id/local-authority-district/23UB,Cheltenham Borough Council,451906,142296,A&E FIRE EQUIPMENT LTD,C-L21200-1808,Pump Room-RM-Routine works,22-Jun-11,49.96
http://statistics.data.gov.uk/id/local-authority-district/23UB,Cheltenham Borough Council,451873,141675,A&E FIRE EQUIPMENT LTD,C-L21400-1808,Stanton Room-RM-Routine works,22-Jun-11,27.94
http://statistics.data.gov.uk/id/local-authority-district/23UB,Cheltenham Borough Council,451875,141734,A&E FIRE EQUIPMENT LTD,C-L41100-1808,AG & M-RM-Routine works,22-Jun-11,473.09
http://statistics.data.gov.uk/id/local-authority-district/23UB,Cheltenham Borough Council,451876,141744,A&E FIRE EQUIPMENT LTD,C-L41100-1808,AG & M-RM-Routine works,22-Jun-11,197.52
http://statistics.data.gov.uk/id/local-authority-district/23UB,Cheltenham Borough Council,451882,141996,A&E FIRE EQUIPMENT LTD,C-L41100-1808,AG & M-RM-Routine works,22-Jun-11,80.84
http://statistics.data.gov.uk/id/local-authority-district/23UB,Cheltenham Borough Council,451883,141997,A&E FIRE EQUIPMENT LTD,C-L41100-1808,AG & M-RM-Routine works,22-Jun-11,14.10
http://statistics.data.gov.uk/id/local-authority-district/23UB,Cheltenham Borough Council,450391,MO5111,AIREY CONSULTANCY SERVICES LTD,C-D12420-3608,Bens jnt train-Trainers Fees,01-Jun-11,620.00
http://statistics.data.gov.uk/id/local-authority-district/23UB,Cheltenham Borough Council,452027,1/6/11,ALL ABOUT FUN,C-L16100-3178,Holiday Rec-Big Lottery Fund Expenditure,24-Jun-11,"1,000.00"
http://statistics.data.gov.uk/id/local-authority-district/23UB,Cheltenham Borough Council,452027,1/6/11,ALL ABOUT FUN,C-L16100-3178,Holiday Rec-Big Lottery Fund Expenditure,24-Jun-11,145.00
http://statistics.data.gov.uk/id/local-authority-district/23UB,Cheltenham Borough Council,450707,50981,ALPHA COLOUR PRINTERS LTD,C-D21100-3401,Dem Process-Printing - general,01-Jun-11,668.00
http://statistics.data.gov.uk/id/local-authority-district/23UB,Cheltenham Borough Council,451169,51032,ALPHA COLOUR PRINTERS LTD,C-D12450-3401,Cash Rec / Bnkg-Printing - general,08-Jun-11,250.00
http://statistics.data.gov.uk/id/local-authority-district/23UB,Cheltenham Borough Council,451169,51032,ALPHA COLOUR PRINTERS LTD,C-D12450-3401,Cash Rec / Bnkg-Printing - general,08-Jun-11,250.00
http://statistics.data.gov.uk/id/local-authority-district/23UB,Cheltenham Borough Council,450986,51049,ALPHA COLOUR PRINTERS LTD,C-D21100-3401,Dem Process-Printing - general,08-Jun-11,245.00
http://statistics.data.gov.uk/id/local-authority-district/23UB,Cheltenham Borough Council,450986,51049,ALPHA COLOUR PRINTERS LTD,C-D21100-3401,Dem Process-Printing - general,08-Jun-11,20.00
http://statistics.data.gov.uk/id/local-authority-district/23UB,Cheltenham Borough Council,450986,51049,ALPHA COLOUR PRINTERS LTD,C-D21100-3401,Dem Process-Printing - general,08-Jun-11,138.00
http://statistics.data.gov.uk/id/local-authority-district/23UB,Cheltenham Borough Council,450984,51048,ALPHA COLOUR PRINTERS LTD,C-D21100-3403,Dem Process-Printing-Committee Papers,08-Jun-11,69.00
http://statistics.data.gov.uk/id/local-authority-district/23UB,Cheltenham Borough Council,450985,51047,ALPHA COLOUR PRINTERS LTD,C-D21190-3403,O&S Committees-Printing-Committee Papers,08-Jun-11,92.00
http://statistics.data.gov.uk/id/local-authority-district/23UB,Cheltenham Borough Council,450986,51049,ALPHA COLOUR PRINTERS LTD,C-D23030-3501,Mayor Making-Hire of outside services,08-Jun-11,215.00
http://statistics.data.gov.uk/id/local-authority-district/23UB,Cheltenham Borough Council,451159,51028,ALPHA COLOUR PRINTERS LTD,C-E74100-3401,Env M&A Div-Printing - general,08-Jun-11,68.00
http://statistics.data.gov.uk/id/local-authority-district/23UB,Cheltenham Borough Council,451168,51003,ALPHA COLOUR PRINTERS LTD,C-H22600-3401,Community Servs-Printing - general,08-Jun-11,68.00
http://statistics.data.gov.uk/id/local-authority-district/23UB,Cheltenham Borough Council,451046,51037,ALPHA COLOUR PRINTERS LTD,C-L21100-3410,Town Hall-Stationery & office supps,08-Jun-11,25.00
http://statistics.data.gov.uk/id/local-authority-district/23UB,Cheltenham Borough Council,451401,51031,ALPHA COLOUR PRINTERS LTD,C-A21500-3410,Licensing-Stationery & office supps,15-Jun-11,25.00
http://statistics.data.gov.uk/id/local-authority-district/23UB,Cheltenham Borough Council,451574,S1029,ALPHA COLOUR PRINTERS LTD,C-D12440-3401,Coun Tax overhe-Printing - general,15-Jun-11,221.00
http://statistics.data.gov.uk/id/local-authority-district/23UB,Cheltenham Borough Council,451524,51035,ALPHA COLOUR PRINTERS LTD,C-D21100-3401,Dem Process-Printing - general,15-Jun-11,25.00
http://statistics.data.gov.uk/id/local-authority-district/23UB,Cheltenham Borough Council,451578,51021,ALPHA COLOUR PRINTERS LTD,C-L21100-3920,Town Hall-Advertising,15-Jun-11,"1,280.00"
http://statistics.data.gov.uk/id/local-authority-district/23UB,Cheltenham Borough Council,451578,51021,ALPHA COLOUR PRINTERS LTD,C-L21100-3920,Town Hall-Advertising,15-Jun-11,"7,500.00"
http://statistics.data.gov.uk/id/local-authority-district/23UB,Cheltenham Borough Council,450912,0740,ANDERSON CIVIL ENGINEERING UK LIMITED,C-D21250-3972,Civil Emergency-EU Restoration Fund,03-Jun-11,"6,305.21"
http://statistics.data.gov.uk/id/local-authority-district/23UB,Cheltenham Borough Council,450913,0741,ANDERSON CIVIL ENGINEERING UK LIMITED,C-D21250-3974,Civil Emergency-Multi-agency funding,03-Jun-11,126.68
http://statistics.data.gov.uk/id/local-authority-district/23UB,Cheltenham Borough Council,450912,0740,ANDERSON CIVIL ENGINEERING UK LIMITED,C-E22100-1138,Chel River&W/C-Marle Hl l/s maint,03-Jun-11,"1,300.00"
http://statistics.data.gov.uk/id/local-authority-district/23UB,Cheltenham Borough Council,450913,0741,ANDERSON CIVIL ENGINEERING UK LIMITED,C-N11250-9227,excluded,03-Jun-11,-10.00
http://statistics.data.gov.uk/id/local-authority-district/23UB,Cheltenham Borough Council,450912,0740,ANDERSON CIVIL ENGINEERING UK LIMITED,C-N11250-9227,excluded,03-Jun-11,-280.00
http://statistics.data.gov.uk/id/local-authority-district/23UB,Cheltenham Borough Council,450719,136475,APEX RADIO SYSTEMS LTD,C-L11500-3101,Rec Facilities-Equipment purchases,03-Jun-11,8.99
http://statistics.data.gov.uk/id/local-authority-district/23UB,Cheltenham Borough Council,450719,136475,APEX RADIO SYSTEMS LTD,C-L11500-3101,Rec Facilities-Equipment purchases,03-Jun-11,858.00
http://statistics.data.gov.uk/id/local-authority-district/23UB,Cheltenham Borough Council,449835,10479,ARTFUL LIMITED,C-B51120-3920,Develt Con-Advertising,01-Jun-11,"2,031.12"
http://statistics.data.gov.uk/id/local-authority-district/23UB,Cheltenham Borough Council,449030,13021,ARTFUL LIMITED,C-Z13300-3501,LAA - BSC Rev-Hire of outside services,01-Jun-11,-175.00
http://statistics.data.gov.uk/id/local-authority-district/23UB,Cheltenham Borough Council,451033,10507,ARTFUL LIMITED,C-B51120-3920,Develt Con-Advertising,08-Jun-11,"1,966.64"
http://statistics.data.gov.uk/id/local-authority-district/23UB,Cheltenham Borough Council,451425,13085,ART WORKS DESIGN CONSULTANTS (CHELT) LTD,C-1T05E1-3406,Sumr Ball Fest-Printing-Promotion/Mkting,15-Jun-11,170.00
http://statistics.data.gov.uk/id/local-authority-district/23UB,Cheltenham Borough Council,451425,13085,ART WORKS DESIGN CONSULTANTS (CHELT) LTD,C-1T05E1-3406,Sumr Ball Fest-Printing-Promotion/Mkting,15-Jun-11,60.00
http://statistics.data.gov.uk/id/local-authority-district/23UB,Cheltenham Borough Council,451426,13086,ART WORKS DESIGN CONSULTANTS (CHELT) LTD,C-1T05E1-3406,Sumr Ball Fest-Printing-Promotion/Mkting,15-Jun-11,272.00
http://statistics.data.gov.uk/id/local-authority-district/23UB,Cheltenham Borough Council,451425,13085,ART WORKS DESIGN CONSULTANTS (CHELT) LTD,C-1T05E1-3406,Sumr Ball Fest-Printing-Promotion/Mkting,15-Jun-11,23.89
http://statistics.data.gov.uk/id/local-authority-district/23UB,Cheltenham Borough Council,451141,1016374761,ARVAL UK LIMITED,C-N42250-3112,DSO Stores - Stock purchases,08-Jun-11,763.19
http://statistics.data.gov.uk/id/local-authority-district/23UB,Cheltenham Borough Council,451140,1016374762,ARVAL UK LIMITED,C-N42250-3112,DSO Stores - Stock purchases,08-Jun-11,40.17
http://statistics.data.gov.uk/id/local-authority-district/23UB,Cheltenham Borough Council,452113,SIN052104,ASA AWARDS CENTRE,C-L11500-8360,Rec Facilities-Swim Coaching,24-Jun-11,10.00
http://statistics.data.gov.uk/id/local-authority-district/23UB,Cheltenham Borough Council,452113,SIN052104,ASA AWARDS CENTRE,C-L11500-8360,Rec Facilities-Swim Coaching,24-Jun-11,15.68
http://statistics.data.gov.uk/id/local-authority-district/23UB,Cheltenham Borough Council,452113,SIN052104,ASA AWARDS CENTRE,C-L11500-8360,Rec Facilities-Swim Coaching,24-Jun-11,15.68
http://statistics.data.gov.uk/id/local-authority-district/23UB,Cheltenham Borough Council,452113,SIN052104,ASA AWARDS CENTRE,C-L11500-8360,Rec Facilities-Swim Coaching,24-Jun-11,15.68
http://statistics.data.gov.uk/id/local-authority-district/23UB,Cheltenham Borough Council,452113,SIN052104,ASA AWARDS CENTRE,C-L11500-8360,Rec Facilities-Swim Coaching,24-Jun-11,15.68
http://statistics.data.gov.uk/id/local-authority-district/23UB,Cheltenham Borough Council,452113,SIN052104,ASA AWARDS CENTRE,C-L11500-8360,Rec Facilities-Swim Coaching,24-Jun-11,15.68
http://statistics.data.gov.uk/id/local-authority-district/23UB,Cheltenham Borough Council,452113,SIN052104,ASA AWARDS CENTRE,C-L11500-8360,Rec Facilities-Swim Coaching,24-Jun-11,18.81
http://statistics.data.gov.uk/id/local-authority-district/23UB,Cheltenham Borough Council,452113,SIN052104,ASA AWARDS CENTRE,C-L11500-8360,Rec Facilities-Swim Coaching,24-Jun-11,23.51
http://statistics.data.gov.uk/id/local-authority-district/23UB,Cheltenham Borough Council,452113,SIN052104,ASA AWARDS CENTRE,C-L11500-8360,Rec Facilities-Swim Coaching,24-Jun-11,23.51
http://statistics.data.gov.uk/id/local-authority-district/23UB,Cheltenham Borough Council,452113,SIN052104,ASA AWARDS CENTRE,C-L11500-8360,Rec Facilities-Swim Coaching,24-Jun-11,31.35
http://statistics.data.gov.uk/id/local-authority-district/23UB,Cheltenham Borough Council,452113,SIN052104,ASA AWARDS CENTRE,C-L11500-8360,Rec Facilities-Swim Coaching,24-Jun-11,78.38
http://statistics.data.gov.uk/id/local-authority-district/23UB,Cheltenham Borough Council,452113,SIN052104,ASA AWARDS CENTRE,C-L11500-8360,Rec Facilities-Swim Coaching,24-Jun-11,78.38
http://statistics.data.gov.uk/id/local-authority-district/23UB,Cheltenham Borough Council,452113,SIN052104,ASA AWARDS CENTRE,C-L11500-8360,Rec Facilities-Swim Coaching,24-Jun-11,109.73
http://statistics.data.gov.uk/id/local-authority-district/23UB,Cheltenham Borough Council,452113,SIN052104,ASA AWARDS CENTRE,C-L11500-8360,Rec Facilities-Swim Coaching,24-Jun-11,109.73
http://statistics.data.gov.uk/id/local-authority-district/23UB,Cheltenham Borough Council,451403,12932,ASKAS,C-N42250-3112,DSO Stores - Stock purchases,15-Jun-11,732.80
http://statistics.data.gov.uk/id/local-authority-district/23UB,Cheltenham Borough Council,451520,0074747,ATS EUROMASTER LTD,C-C24100-3501,Fleet Maint-Hire of outside services,15-Jun-11,"2,316.45"
http://statistics.data.gov.uk/id/local-authority-district/23UB,Cheltenham Borough Council,450983,SIN002671,AVALON PROMOTIONS LIMITED,C-1T18A1-3568,Greg Davies-Artist Fees                   ,08-Jun-11,"5,185.19"
http://statistics.data.gov.uk/id/local-authority-district/23UB,Cheltenham Borough Council,450996,SIN002570,AVALON PROMOTIONS LIMITED,C-1T18A1-3568,Greg Davies-Artist Fees                   ,08-Jun-11,"3,000.00"
http://statistics.data.gov.uk/id/local-authority-district/23UB,Cheltenham Borough Council,450983,SIN002671,AVALON PROMOTIONS LIMITED,C-Z12210-9271,Box Off A/C-CBC Invoices Paid,08-Jun-11,"-1,080.00"
http://statistics.data.gov.uk/id/local-authority-district/23UB,Cheltenham Borough Council,450657,1035EQ87469/1,AVIVA,C-C22110-1301,Parks & Gardens-Routine grounds maint,01-Jun-11,535.40
http://statistics.data.gov.uk/id/local-authority-district/23UB,Cheltenham Borough Council,451111,HW//2901,PETER BALL & CO,C-DC1066-C849,Lnd&Prop presal-Miscellaneous other,08-Jun-11,"1,800.00"
http://statistics.data.gov.uk/id/local-authority-district/23UB,Cheltenham Borough Council,452181,94341480,BALL COLEGRAVE SEEDS LTD,C-C22140-3127,Nursery-Materials-Bedding,24-Jun-11,70.00
http://statistics.data.gov.uk/id/local-authority-district/23UB,Cheltenham Borough Council,452186,94333761,BALL COLEGRAVE SEEDS LTD,C-C22140-3127,Nursery-Materials-Bedding,24-Jun-11,134.81
http://statistics.data.gov.uk/id/local-authority-district/23UB,Cheltenham Borough Council,452190,94356206,BALL COLEGRAVE SEEDS LTD,C-C22140-3127,Nursery-Materials-Bedding,24-Jun-11,-119.42
http://statistics.data.gov.uk/id/local-authority-district/23UB,Cheltenham Borough Council,452182,94333762,BALL COLEGRAVE SEEDS LTD,C-C22140-3127,Nursery-Materials-Bedding,24-Jun-11,35.00
http://statistics.data.gov.uk/id/local-authority-district/23UB,Cheltenham Borough Council,452213,94341475,BALL COLEGRAVE SEEDS LTD,C-C22140-3127,Nursery-Materials-Bedding,24-Jun-11,82.59
http://statistics.data.gov.uk/id/local-authority-district/23UB,Cheltenham Borough Council,452215,94322398,BALL COLEGRAVE SEEDS LTD,C-C22140-3127,Nursery-Materials-Bedding,24-Jun-11,746.82
http://statistics.data.gov.uk/id/local-authority-district/23UB,Cheltenham Borough Council,452214,94333760,BALL COLEGRAVE SEEDS LTD,C-C22140-3127,Nursery-Materials-Bedding,24-Jun-11,21.15
http://statistics.data.gov.uk/id/local-authority-district/23UB,Cheltenham Borough Council,452231,94347069,BALL COLEGRAVE SEEDS LTD,C-C22140-3127,Nursery-Materials-Bedding,24-Jun-11,19.42
http://statistics.data.gov.uk/id/local-authority-district/23UB,Cheltenham Borough Council,452230,94347068,BALL COLEGRAVE SEEDS LTD,C-C22140-3127,Nursery-Materials-Bedding,24-Jun-11,28.30
http://statistics.data.gov.uk/id/local-authority-district/23UB,Cheltenham Borough Council,452229,94298283,BALL COLEGRAVE SEEDS LTD,C-C22140-3127,Nursery-Materials-Bedding,24-Jun-11,59.85
http://statistics.data.gov.uk/id/local-authority-district/23UB,Cheltenham Borough Council,452233,94298282,BALL COLEGRAVE SEEDS LTD,C-C22140-3127,Nursery-Materials-Bedding,24-Jun-11,42.27
http://statistics.data.gov.uk/id/local-authority-district/23UB,Cheltenham Borough Council,452232,94322400,BALL COLEGRAVE SEEDS LTD,C-C22140-3127,Nursery-Materials-Bedding,24-Jun-11,431.72
http://statistics.data.gov.uk/id/local-authority-district/23UB,Cheltenham Borough Council,452277,94361971,BALL COLEGRAVE SEEDS LTD,C-C22140-3127,Nursery-Materials-Bedding,29-Jun-11,79.77
http://statistics.data.gov.uk/id/local-authority-district/23UB,Cheltenham Borough Council,452282,94353163,BALL COLEGRAVE SEEDS LTD,C-C22140-3127,Nursery-Materials-Bedding,29-Jun-11,133.68
http://statistics.data.gov.uk/id/local-authority-district/23UB,Cheltenham Borough Council,452281,94347070,BALL COLEGRAVE SEEDS LTD,C-C22140-3127,Nursery-Materials-Bedding,29-Jun-11,73.23
http://statistics.data.gov.uk/id/local-authority-district/23UB,Cheltenham Borough Council,452280,94341479,BALL COLEGRAVE SEEDS LTD,C-C22140-3127,Nursery-Materials-Bedding,29-Jun-11,56.41
http://statistics.data.gov.uk/id/local-authority-district/23UB,Cheltenham Borough Council,452279,94341478,BALL COLEGRAVE SEEDS LTD,C-C22140-3127,Nursery-Materials-Bedding,29-Jun-11,51.05
http://statistics.data.gov.uk/id/local-authority-district/23UB,Cheltenham Borough Council,452278,94361972,BALL COLEGRAVE SEEDS LTD,C-C22140-3127,Nursery-Materials-Bedding,29-Jun-11,51.81
http://statistics.data.gov.uk/id/local-authority-district/23UB,Cheltenham Borough Council,452276,94361970,BALL COLEGRAVE SEEDS LTD,C-C22140-3127,Nursery-Materials-Bedding,29-Jun-11,87.91
http://statistics.data.gov.uk/id/local-authority-district/23UB,Cheltenham Borough Council,452022,2011/001,BATH ROAD TRADERS ASSOCIATION,C-C23140-3501,Public Convnces-Hire of outside services,24-Jun-11,550.00
http://statistics.data.gov.uk/id/local-authority-district/23UB,Cheltenham Borough Council,451583,672,JASON R C BAYLISS,C-LC6001-P801,Playspace Schme-Adult/Youth,15-Jun-11,"1,060.00"
http://statistics.data.gov.uk/id/local-authority-district/23UB,Cheltenham Borough Council,451583,672,JASON R C BAYLISS,C-N11250-9227,excluded,15-Jun-11,-103.00
http://statistics.data.gov.uk/id/local-authority-district/23UB,Cheltenham Borough Council,451251,90761344,BBC,C-1T21A1-3568,BBC Now 2-Artist Fees,10-Jun-11,"6,166.00"
http://statistics.data.gov.uk/id/local-authority-district/23UB,Cheltenham Borough Council,452435,M4189P/3499,BEAM CONSTRUCTION LTD,C-H4213G-1104,Gen Wks 2213-Council House repairs,29-Jun-11,"1,669.00"
http://statistics.data.gov.uk/id/local-authority-district/23UB,Cheltenham Borough Council,452256,78246,BERMAN GUEDES STRETTON,C-L41100-3816,AG & M-RIBA - Costs,24-Jun-11,"1,000.00"
http://statistics.data.gov.uk/id/local-authority-district/23UB,Cheltenham Borough Council,450862,216552,BHGS LTD,C-C22140-3121,Nursery-Materials-Contract,03-Jun-11,270.30
http://statistics.data.gov.uk/id/local-authority-district/23UB,Cheltenham Borough Council,450862,216552,BHGS LTD,C-C22140-3121,Nursery-Materials-Contract,03-Jun-11,655.20
http://statistics.data.gov.uk/id/local-authority-district/23UB,Cheltenham Borough Council,452303,217981,BHGS LTD,C-C22110-3121,Parks & Gardens-Materials-Contract,29-Jun-11,15.80
http://statistics.data.gov.uk/id/local-authority-district/23UB,Cheltenham Borough Council,452330,214857,BHGS LTD,C-C22110-3121,Parks & Gardens-Materials-Contract,29-Jun-11,17.25
http://statistics.data.gov.uk/id/local-authority-district/23UB,Cheltenham Borough Council,452303,217981,BHGS LTD,C-C22110-3121,Parks & Gardens-Materials-Contract,29-Jun-11,106.20
http://statistics.data.gov.uk/id/local-authority-district/23UB,Cheltenham Borough Council,452293,213087,BHGS LTD,C-C22140-3127,Nursery-Materials-Bedding,29-Jun-11,346.00
http://statistics.data.gov.uk/id/local-authority-district/23UB,Cheltenham Borough Council,452293,213087,BHGS LTD,C-C22140-3127,Nursery-Materials-Bedding,29-Jun-11,"1,827.32"
http://statistics.data.gov.uk/id/local-authority-district/23UB,Cheltenham Borough Council,450384,CL85876,BIG YELLOW SELF STORAGE CO LTD,C-H22400-1109,Homelessness-Storage Relocation Costs,01-Jun-11,"2,919.15"
http://statistics.data.gov.uk/id/local-authority-district/23UB,Cheltenham Borough Council,452437,2460,REX BISHOP AND SON,C-H44075-1104,Asbestos-Council House repairs,29-Jun-11,95.00
http://statistics.data.gov.uk/id/local-authority-district/23UB,Cheltenham Borough Council,452439,2437,REX BISHOP AND SON,C-H44075-1104,Asbestos-Council House repairs,29-Jun-11,875.00
http://statistics.data.gov.uk/id/local-authority-district/23UB,Cheltenham Borough Council,452438,2438,REX BISHOP AND SON,C-H44075-1104,Asbestos-Council House repairs,29-Jun-11,95.00
http://statistics.data.gov.uk/id/local-authority-district/23UB,Cheltenham Borough Council,451582,327304,BONINGALE NURSERIES,C-C22140-3127,Nursery-Materials-Bedding,29-Jun-11,-16.80
http://statistics.data.gov.uk/id/local-authority-district/23UB,Cheltenham Borough Council,452296,327304,BONINGALE NURSERIES,C-C22140-3127,Nursery-Materials-Bedding,29-Jun-11,592.00
http://statistics.data.gov.uk/id/local-authority-district/23UB,Cheltenham Borough Council,452218,16440,BOTANY BAY NURSERIES LIMITED,C-C22140-3127,Nursery-Materials-Bedding,24-Jun-11,695.32
http://statistics.data.gov.uk/id/local-authority-district/23UB,Cheltenham Borough Council,452217,16412,BOTANY BAY NURSERIES LIMITED,C-C22140-3127,Nursery-Materials-Bedding,24-Jun-11,95.20
http://statistics.data.gov.uk/id/local-authority-district/23UB,Cheltenham Borough Council,450726,47SI 622128,BRENNTAG UK,C-L11500-1714,Rec Facilities-Chemicals,03-Jun-11,732.90
http://statistics.data.gov.uk/id/local-authority-district/23UB,Cheltenham Borough Council,450726,47SI 622128,BRENNTAG UK,C-L11500-1714,Rec Facilities-Chemicals,03-Jun-11,50.00
http://statistics.data.gov.uk/id/local-authority-district/23UB,Cheltenham Borough Council,450762,INV070465,BROXAP LIMITED,C-E22150-3110,CBC Highway Wk-Materials,03-Jun-11,621.00
http://statistics.data.gov.uk/id/local-authority-district/23UB,Cheltenham Borough Council,450762,INV070465,BROXAP LIMITED,C-E22150-3110,CBC Highway Wk-Materials,03-Jun-11,70.00
http://statistics.data.gov.uk/id/local-authority-district/23UB,Cheltenham Borough Council,451561,INV071828,BROXAP LIMITED,C-C23110-3101,Street Cleaning-Equipment purchases,15-Jun-11,890.00
http://statistics.data.gov.uk/id/local-authority-district/23UB,Cheltenham Borough Council,451561,INV071828,BROXAP LIMITED,C-C23110-3101,Street Cleaning-Equipment purchases,15-Jun-11,256.00
http://statistics.data.gov.uk/id/local-authority-district/23UB,Cheltenham Borough Council,451561,INV071828,BROXAP LIMITED,C-C23110-3101,Street Cleaning-Equipment purchases,15-Jun-11,87.00
http://statistics.data.gov.uk/id/local-authority-district/23UB,Cheltenham Borough Council,452009,INV72799,BROXAP LIMITED,C-C23110-3101,Street Cleaning-Equipment purchases,24-Jun-11,"3,060.00"
http://statistics.data.gov.uk/id/local-authority-district/23UB,Cheltenham Borough Council,450548,121-001721,L G BROWN ASSOCIATES,C-E21100-3401,Car Prks-Off St-Printing - general,01-Jun-11,995.40
http://statistics.data.gov.uk/id/local-authority-district/23UB,Cheltenham Borough Council,450548,121-001721,L G BROWN ASSOCIATES,C-E36200-3401,On-St Car Prkng-Printing - general,01-Jun-11,924.30
http://statistics.data.gov.uk/id/local-authority-district/23UB,Cheltenham Borough Council,450763,121-001744,L G BROWN ASSOCIATES,C-Z13030-8588,Lido Car Park-Fees-Sandford Lido c/p,03-Jun-11,598.00
http://statistics.data.gov.uk/id/local-authority-district/23UB,Cheltenham Borough Council,452188,139201,B S MOWERS LTD,C-C24100-3582,Fleet Maint-DSO Invoices,24-Jun-11,139.08
http://statistics.data.gov.uk/id/local-authority-district/23UB,Cheltenham Borough Council,452187,139200,B S MOWERS LTD,C-C24100-3582,Fleet Maint-DSO Invoices,24-Jun-11,564.42
http://statistics.data.gov.uk/id/local-authority-district/23UB,Cheltenham Borough Council,452179,139096,B S MOWERS LTD,C-C24100-3582,Fleet Maint-DSO Invoices,24-Jun-11,43.26
http://statistics.data.gov.uk/id/local-authority-district/23UB,Cheltenham Borough Council,451031,L003390,COLIN BUCHANAN AND PARTNERS LIMITED,C-B51160-3501,Civic Pride-Hire of outside services,08-Jun-11,"1,868.00"
http://statistics.data.gov.uk/id/local-authority-district/23UB,Cheltenham Borough Council,450856,Redacted,Redacted,C-P12250-9104,Tenants Rent-Refunds,03-Jun-11,60.65
http://statistics.data.gov.uk/id/local-authority-district/23UB,Cheltenham Borough Council,451134,BRI 15029348,BURNT TREE VEHICLE HIRE,C-C24100-2702,Fleet Maint-Additional vehicle hire,08-Jun-11,528.00
http://statistics.data.gov.uk/id/local-authority-district/23UB,Cheltenham Borough Council,452193,346,M J BURKE,C-H22400-5204,Homelessness-Provision of accommo(B&B),24-Jun-11,125.95
http://statistics.data.gov.uk/id/local-authority-district/23UB,Cheltenham Borough Council,452195,345,M J BURKE,C-H22400-5204,Homelessness-Provision of accommo(B&B),24-Jun-11,286.25
http://statistics.data.gov.uk/id/local-authority-district/23UB,Cheltenham Borough Council,452194,344,M J BURKE,C-H22400-5204,Homelessness-Provision of accommo(B&B),24-Jun-11,225.60
http://statistics.data.gov.uk/id/local-authority-district/23UB,Cheltenham Borough Council,452045,039656,CAPS SOLUTIONS LIMITED,C-E72500-0204,Built Env Div-Training fees/exp (Prof),24-Jun-11,600.00
http://statistics.data.gov.uk/id/local-authority-district/23UB,Cheltenham Borough Council,450594,4443,C AND R DECORATORS,C-H4201G-1104,Gen Wks 2201-Council House repairs,01-Jun-11,378.00
http://statistics.data.gov.uk/id/local-authority-district/23UB,Cheltenham Borough Council,450597,4440,C AND R DECORATORS,C-H4201V-1104,Voids 2201-Council House repairs,01-Jun-11,642.11
http://statistics.data.gov.uk/id/local-authority-district/23UB,Cheltenham Borough Council,450601,4424,C AND R DECORATORS,C-H4201V-1104,Voids 2201-Council House repairs,01-Jun-11,549.31
http://statistics.data.gov.uk/id/local-authority-district/23UB,Cheltenham Borough Council,450603,4413,C AND R DECORATORS,C-H4201V-1104,Voids 2201-Council House repairs,01-Jun-11,"1,220.00"
http://statistics.data.gov.uk/id/local-authority-district/23UB,Cheltenham Borough Council,450602,4414,C AND R DECORATORS,C-H4201V-1104,Voids 2201-Council House repairs,01-Jun-11,525.00
http://statistics.data.gov.uk/id/local-authority-district/23UB,Cheltenham Borough Council,450604,4417,C AND R DECORATORS,C-H4203V-1104,Voids 2203-Council House repairs,01-Jun-11,312.48
http://statistics.data.gov.uk/id/local-authority-district/23UB,Cheltenham Borough Council,450600,4438,C AND R DECORATORS,C-H4207G-1104,Gen Wks 2207-Council House repairs,01-Jun-11,45.00
http://statistics.data.gov.uk/id/local-authority-district/23UB,Cheltenham Borough Council,450596,4441,C AND R DECORATORS,C-H4209V-1104,Voids 2209-Council House repairs,01-Jun-11,87.00
http://statistics.data.gov.uk/id/local-authority-district/23UB,Cheltenham Borough Council,450605,4416,C AND R DECORATORS,C-H4213V-1104,Voids 2213-Council House repairs,01-Jun-11,365.40
http://statistics.data.gov.uk/id/local-authority-district/23UB,Cheltenham Borough Council,450595,4437,C AND R DECORATORS,C-H4214G-1104,Gen Wks 2214-Council House repairs,01-Jun-11,94.50
http://statistics.data.gov.uk/id/local-authority-district/23UB,Cheltenham Borough Council,450598,4442,C AND R DECORATORS,C-H4214V-1104,Voids 2214-Council House repairs,01-Jun-11,65.20
http://statistics.data.gov.uk/id/local-authority-district/23UB,Cheltenham Borough Council,450599,4439,C AND R DECORATORS,C-H4214V-1104,Voids 2214-Council House repairs,01-Jun-11,661.64
http://statistics.data.gov.uk/id/local-authority-district/23UB,Cheltenham Borough Council,451195,4456,C AND R DECORATORS,C-PM0030-R003,Pitt.Pump Room-External Re-decoration   ,08-Jun-11,"1,512.00"
http://statistics.data.gov.uk/id/local-authority-district/23UB,Cheltenham Borough Council,452049,4449,C AND R DECORATORS,C-H4201V-1104,Voids 2201-Council House repairs,24-Jun-11,706.47
http://statistics.data.gov.uk/id/local-authority-district/23UB,Cheltenham Borough Council,452051,4450,C AND R DECORATORS,C-H4206V-1104,Voids 2206-Council House repairs,24-Jun-11,991.37
http://statistics.data.gov.uk/id/local-authority-district/23UB,Cheltenham Borough Council,452053,4451,C AND R DECORATORS,C-H4207V-1104,Voids 2207-Council House repairs,24-Jun-11,190.53
http://statistics.data.gov.uk/id/local-authority-district/23UB,Cheltenham Borough Council,452054,4448,C AND R DECORATORS,C-H4207V-1104,Voids 2207-Council House repairs,24-Jun-11,104.40
http://statistics.data.gov.uk/id/local-authority-district/23UB,Cheltenham Borough Council,452048,4455,C AND R DECORATORS,C-HC4841-C302,Major Voids-Building Contractor,24-Jun-11,"2,962.82"
http://statistics.data.gov.uk/id/local-authority-district/23UB,Cheltenham Borough Council,452441,4465,C AND R DECORATORS,C-H4207G-1104,Gen Wks 2207-Council House repairs,29-Jun-11,"1,517.76"
http://statistics.data.gov.uk/id/local-authority-district/23UB,Cheltenham Borough Council,452444,4461,C AND R DECORATORS,C-H4213V-1104,Voids 2213-Council House repairs,29-Jun-11,"1,002.00"
http://statistics.data.gov.uk/id/local-authority-district/23UB,Cheltenham Borough Council,452443,4459,C AND R DECORATORS,C-HC4841-C302,Major Voids-Building Contractor,29-Jun-11,"3,159.44"
http://statistics.data.gov.uk/id/local-authority-district/23UB,Cheltenham Borough Council,452445,4460,C AND R DECORATORS,C-HC4841-C302,Major Voids-Building Contractor,29-Jun-11,372.88
http://statistics.data.gov.uk/id/local-authority-district/23UB,Cheltenham Borough Council,452442,4458,C AND R DECORATORS,C-HC4864-C302,Lift Refurb-Building Contractor        ,29-Jun-11,314.00
http://statistics.data.gov.uk/id/local-authority-district/23UB,Cheltenham Borough Council,451964,B6004,AP & PC CARPENTER,C-C22110-1301,Parks & Gardens-Routine grounds maint,22-Jun-11,"2,677.00"
http://statistics.data.gov.uk/id/local-authority-district/23UB,Cheltenham Borough Council,451964,B6004,AP & PC CARPENTER,C-N11250-9227,excluded,22-Jun-11,-389.20
http://statistics.data.gov.uk/id/local-authority-district/23UB,Cheltenham Borough Council,452133,CARDUCCI FESTI,CARDUCCI MUSIC TRUST,C-Z12310-3940,TIC Agency-External Event Payments,24-Jun-11,"1,836.00"
http://statistics.data.gov.uk/id/local-authority-district/23UB,Cheltenham Borough Council,452133,CARDUCCI FESTI,CARDUCCI MUSIC TRUST,C-Z12310-3940,TIC Agency-External Event Payments,24-Jun-11,-183.60
http://statistics.data.gov.uk/id/local-authority-district/23UB,Cheltenham Borough Council,450987,1743,CENTRELINE ARCHITECTURAL SCULPTURE,C-PM0030-R006,Pitt.Pump Room-External Stonework,08-Jun-11,"4,600.00"
http://statistics.data.gov.uk/id/local-authority-district/23UB,Cheltenham Borough Council,451270,Redacted,CGT LETTINGS,C-H22400-3828,Homelessness-Prevention Fund,10-Jun-11,600.00
http://statistics.data.gov.uk/id/local-authority-district/23UB,Cheltenham Borough Council,452072,31526,CHARTERHOUSE SECURITY MANAGEMENT,C-H46400-1104,Door Entry-Council House repairs,24-Jun-11,"2,658.20"
http://statistics.data.gov.uk/id/local-authority-district/23UB,Cheltenham Borough Council,452073,31463,CHARTERHOUSE SECURITY MANAGEMENT,C-H46400-C302,Door Entry-Building Contractor     ,24-Jun-11,398.50
http://statistics.data.gov.uk/id/local-authority-district/23UB,Cheltenham Borough Council,452204,CHAC-MOUEON,CHELTENHAM HOUSING AID CENTRE,C-H22400-3241,Homelessness-Homeless Forum,24-Jun-11,"2,500.00"
http://statistics.data.gov.uk/id/local-authority-district/23UB,Cheltenham Borough Council,450437,CHELTDW/4/2001,CHELTENHAM ANIMAL SHELTER,C-E61300-3501,Animal Welfare-Hire of outside services,01-Jun-11,597.00
http://statistics.data.gov.uk/id/local-authority-district/23UB,Cheltenham Borough Council,452153,CHELTDW/5/2011,CHELTENHAM ANIMAL SHELTER,C-E61300-3501,Animal Welfare-Hire of outside services,24-Jun-11,824.00
http://statistics.data.gov.uk/id/local-authority-district/23UB,Cheltenham Borough Council,451029,APP/INV130511,CHELTENHAM TREE SERVICES,C-C22120-1305,Spts/Open Space-Tree surgery,08-Jun-11,495.00
http://statistics.data.gov.uk/id/local-authority-district/23UB,Cheltenham Borough Council,451032,APP/INV170511,CHELTENHAM TREE SERVICES,C-C22120-1312,Spts/Open Space-Annual felling prog,08-Jun-11,950.00
http://statistics.data.gov.uk/id/local-authority-district/23UB,Cheltenham Borough Council,451846,M/RB006033,CIVICA UK LIMITED,C-D12446-3623,IBS license ren-Cmpter-sftwre lic purch,22-Jun-11,"49,466.33"
http://statistics.data.gov.uk/id/local-authority-district/23UB,Cheltenham Borough Council,451850,M/RB005997,CIVICA UK LIMITED,C-D12446-3623,IBS license ren-Cmpter-sftwre lic purch,22-Jun-11,802.05
http://statistics.data.gov.uk/id/local-authority-district/23UB,Cheltenham Borough Council,451852,M/RB005999,CIVICA UK LIMITED,C-D12446-3623,IBS license ren-Cmpter-sftwre lic purch,22-Jun-11,"7,102.79"
http://statistics.data.gov.uk/id/local-authority-district/23UB,Cheltenham Borough Council,451851,M/RB005998,CIVICA UK LIMITED,C-D12446-3623,IBS license ren-Cmpter-sftwre lic purch,22-Jun-11,"1,558.06"
http://statistics.data.gov.uk/id/local-authority-district/23UB,Cheltenham Borough Council,451849,M/RB006028,CIVICA UK LIMITED,C-D12446-3623,IBS license ren-Cmpter-sftwre lic purch,22-Jun-11,443.10
http://statistics.data.gov.uk/id/local-authority-district/23UB,Cheltenham Borough Council,451847,M/RBOO6147/M/M,CIVICA UK LIMITED,C-D12446-3623,IBS license ren-Cmpter-sftwre lic purch,22-Jun-11,211.00
http://statistics.data.gov.uk/id/local-authority-district/23UB,Cheltenham Borough Council,451847,M/RBOO6147/M/M,CIVICA UK LIMITED,C-D12446-3623,IBS license ren-Cmpter-sftwre lic purch,22-Jun-11,66.67
http://statistics.data.gov.uk/id/local-authority-district/23UB,Cheltenham Borough Council,451848,M/RB006143/M/R,CIVICA UK LIMITED,C-D12446-3623,IBS license ren-Cmpter-sftwre lic purch,22-Jun-11,211.00
http://statistics.data.gov.uk/id/local-authority-district/23UB,Cheltenham Borough Council,451848,M/RB006143/M/R,CIVICA UK LIMITED,C-D12446-3623,IBS license ren-Cmpter-sftwre lic purch,22-Jun-11,66.67
http://statistics.data.gov.uk/id/local-authority-district/23UB,Cheltenham Borough Council,451846,M/RB006033,CIVICA UK LIMITED,C-H35100-3501,Hsg.Direct.Cost-Hire of outside services,22-Jun-11,900.99
http://statistics.data.gov.uk/id/local-authority-district/23UB,Cheltenham Borough Council,452238,Redacted,CLEEVE LETTINGS,C-H22400-3244,Homelessness-Supporting People,24-Jun-11,500.00
http://statistics.data.gov.uk/id/local-authority-district/23UB,Cheltenham Borough Council,451027,B6948,THE COLUMBARIA COMPANY,C-E63100-1332,Cemetery & Crem-Gardens of Remembrance,08-Jun-11,"2,500.00"
http://statistics.data.gov.uk/id/local-authority-district/23UB,Cheltenham Borough Council,451028,B6949,THE COLUMBARIA COMPANY,C-E63100-3111,Cemetery & Crem-Goods purch for resale,08-Jun-11,"2,500.00"
http://statistics.data.gov.uk/id/local-authority-district/23UB,Cheltenham Borough Council,451028,B6949,THE COLUMBARIA COMPANY,C-E63100-3111,Cemetery & Crem-Goods purch for resale,08-Jun-11,"2,500.00"
http://statistics.data.gov.uk/id/local-authority-district/23UB,Cheltenham Borough Council,451131,19792,COLLETT TRANSPORT SERVICES LIMITED,C-C24100-2702,Fleet Maint-Additional vehicle hire,08-Jun-11,"1,490.00"
http://statistics.data.gov.uk/id/local-authority-district/23UB,Cheltenham Borough Council,451132,19783,COLLETT TRANSPORT SERVICES LIMITED,C-C24100-2702,Fleet Maint-Additional vehicle hire,08-Jun-11,"2,860.00"
http://statistics.data.gov.uk/id/local-authority-district/23UB,Cheltenham Borough Council,451133,19739,COLLETT TRANSPORT SERVICES LIMITED,C-C24100-2702,Fleet Maint-Additional vehicle hire,08-Jun-11,"1,210.00"
http://statistics.data.gov.uk/id/local-authority-district/23UB,Cheltenham Borough Council,450667,INS CLAIM,CHRISTOPHER COLEY LIMITED,C-C22100-3934,Green Envir Div-TP Gen-Imprest/Excess,01-Jun-11,"1,430.00"
http://statistics.data.gov.uk/id/local-authority-district/23UB,Cheltenham Borough Council,451665,COT-2308,COMPLETE WEED CONTROL,C-C22120-3501,Spts/Open Space-Hire of outside services,20-Jun-11,520.00
http://statistics.data.gov.uk/id/local-authority-district/23UB,Cheltenham Borough Council,451037,171978,COMMERCIAL LIMITED,C-DC3213-C101,Storage Area-Project Est for this Year,08-Jun-11,"1,790.00"
http://statistics.data.gov.uk/id/local-authority-district/23UB,Cheltenham Borough Council,452326,7477584,COMPUTACENTER UK LIMITED,C-D11820-3660,IT Infrastructu-Hardware PC & Servers,29-Jun-11,"7,650.00"
http://statistics.data.gov.uk/id/local-authority-district/23UB,Cheltenham Borough Council,452323,7477583,COMPUTACENTER UK LIMITED,C-D11820-3665,IT Infrastructu-Maintenance/Repairs,29-Jun-11,550.00
http://statistics.data.gov.uk/id/local-authority-district/23UB,Cheltenham Borough Council,450545,506092,COMENSURA LIMITED,C-C22100-0115,Green Env Div-Temporary Agency Staff,01-Jun-11,233.50
http://statistics.data.gov.uk/id/local-authority-district/23UB,Cheltenham Borough Council,450545,506092,COMENSURA LIMITED,C-C22100-0115,Green Env Div-Temporary Agency Staff,01-Jun-11,384.95
http://statistics.data.gov.uk/id/local-authority-district/23UB,Cheltenham Borough Council,450545,506092,COMENSURA LIMITED,C-C22100-0115,Green Env Div-Temporary Agency Staff,01-Jun-11,349.00
http://statistics.data.gov.uk/id/local-authority-district/23UB,Cheltenham Borough Council,450545,506092,COMENSURA LIMITED,C-C22100-0115,Green Env Div-Temporary Agency Staff,01-Jun-11,346.88
http://statistics.data.gov.uk/id/local-authority-district/23UB,Cheltenham Borough Council,450545,506092,COMENSURA LIMITED,C-C22100-0115,Green Env Div-Temporary Agency Staff,01-Jun-11,243.24
http://statistics.data.gov.uk/id/local-authority-district/23UB,Cheltenham Borough Council,450545,506092,COMENSURA LIMITED,C-C22100-0115,Green Env Div-Temporary Agency Staff,01-Jun-11,401.87
http://statistics.data.gov.uk/id/local-authority-district/23UB,Cheltenham Borough Council,450545,506092,COMENSURA LIMITED,C-C22120-0115,Spts/Open Space-Temporary Agency Staff,01-Jun-11,346.86
http://statistics.data.gov.uk/id/local-authority-district/23UB,Cheltenham Borough Council,450545,506092,COMENSURA LIMITED,C-C22120-0115,Spts/Open Space-Temporary Agency Staff,01-Jun-11,346.86
http://statistics.data.gov.uk/id/local-authority-district/23UB,Cheltenham Borough Council,450545,506092,COMENSURA LIMITED,C-C22120-0115,Spts/Open Space-Temporary Agency Staff,01-Jun-11,346.86
http://statistics.data.gov.uk/id/local-authority-district/23UB,Cheltenham Borough Council,450545,506092,COMENSURA LIMITED,C-C23100-0115,Refuse Collection-Temporary Agency Staff,01-Jun-11,42.30
http://statistics.data.gov.uk/id/local-authority-district/23UB,Cheltenham Borough Council,450545,506092,COMENSURA LIMITED,C-C23100-0115,Refuse Collection-Temporary Agency Staff,01-Jun-11,317.25
http://statistics.data.gov.uk/id/local-authority-district/23UB,Cheltenham Borough Council,450545,506092,COMENSURA LIMITED,C-C23100-0115,Refuse Collection-Temporary Agency Staff,01-Jun-11,109.98
http://statistics.data.gov.uk/id/local-authority-district/23UB,Cheltenham Borough Council,450545,506092,COMENSURA LIMITED,C-C23100-0115,Refuse Collection-Temporary Agency Staff,01-Jun-11,313.02
http://statistics.data.gov.uk/id/local-authority-district/23UB,Cheltenham Borough Council,450545,506092,COMENSURA LIMITED,C-C23100-0115,Refuse Collection-Temporary Agency Staff,01-Jun-11,313.02
http://statistics.data.gov.uk/id/local-authority-district/23UB,Cheltenham Borough Council,450545,506092,COMENSURA LIMITED,C-C23100-0115,Refuse Collection-Temporary Agency Staff,01-Jun-11,126.90
http://statistics.data.gov.uk/id/local-authority-district/23UB,Cheltenham Borough Council,450545,506092,COMENSURA LIMITED,C-C23100-0115,Refuse Collection-Temporary Agency Staff,01-Jun-11,262.27
http://statistics.data.gov.uk/id/local-authority-district/23UB,Cheltenham Borough Council,450545,506092,COMENSURA LIMITED,C-C23100-0115,Refuse Collection-Temporary Agency Staff,01-Jun-11,59.22
http://statistics.data.gov.uk/id/local-authority-district/23UB,Cheltenham Borough Council,450545,506092,COMENSURA LIMITED,C-C23100-0115,Refuse Collection-Temporary Agency Staff,01-Jun-11,313.02
http://statistics.data.gov.uk/id/local-authority-district/23UB,Cheltenham Borough Council,450545,506092,COMENSURA LIMITED,C-C23100-0115,Refuse Collection-Temporary Agency Staff,01-Jun-11,215.73
http://statistics.data.gov.uk/id/local-authority-district/23UB,Cheltenham Borough Council,450545,506092,COMENSURA LIMITED,C-C23100-0115,Refuse Collection-Temporary Agency Staff,01-Jun-11,59.22
http://statistics.data.gov.uk/id/local-authority-district/23UB,Cheltenham Borough Council,450545,506092,COMENSURA LIMITED,C-C23100-0115,Refuse Collection-Temporary Agency Staff,01-Jun-11,48.64
http://statistics.data.gov.uk/id/local-authority-district/23UB,Cheltenham Borough Council,450545,506092,COMENSURA LIMITED,C-C23100-0115,Refuse Collection-Temporary Agency Staff,01-Jun-11,249.57
http://statistics.data.gov.uk/id/local-authority-district/23UB,Cheltenham Borough Council,450545,506092,COMENSURA LIMITED,C-C23100-0115,Refuse Collection-Temporary Agency Staff,01-Jun-11,226.31
http://statistics.data.gov.uk/id/local-authority-district/23UB,Cheltenham Borough Council,450545,506092,COMENSURA LIMITED,C-C23100-0115,Refuse Collection-Temporary Agency Staff,01-Jun-11,285.53
http://statistics.data.gov.uk/id/local-authority-district/23UB,Cheltenham Borough Council,450545,506092,COMENSURA LIMITED,C-C23100-0115,Refuse Collection-Temporary Agency Staff,01-Jun-11,97.04
http://statistics.data.gov.uk/id/local-authority-district/23UB,Cheltenham Borough Council,450545,506092,COMENSURA LIMITED,C-C23100-0115,Refuse Collection-Temporary Agency Staff,01-Jun-11,193.64
http://statistics.data.gov.uk/id/local-authority-district/23UB,Cheltenham Borough Council,450545,506092,COMENSURA LIMITED,C-C23100-0115,Refuse Collection-Temporary Agency Staff,01-Jun-11,181.89
http://statistics.data.gov.uk/id/local-authority-district/23UB,Cheltenham Borough Council,450545,506092,COMENSURA LIMITED,C-C23100-0115,Refuse Collection-Temporary Agency Staff,01-Jun-11,309.31
http://statistics.data.gov.uk/id/local-authority-district/23UB,Cheltenham Borough Council,450545,506092,COMENSURA LIMITED,C-C23100-0115,Refuse Collection-Temporary Agency Staff,01-Jun-11,230.53
http://statistics.data.gov.uk/id/local-authority-district/23UB,Cheltenham Borough Council,450545,506092,COMENSURA LIMITED,C-C23100-0115,Refuse Collection-Temporary Agency Staff,01-Jun-11,338.40
http://statistics.data.gov.uk/id/local-authority-district/23UB,Cheltenham Borough Council,450545,506092,COMENSURA LIMITED,C-C23100-0115,Refuse Collection-Temporary Agency Staff,01-Jun-11,270.72
http://statistics.data.gov.uk/id/local-authority-district/23UB,Cheltenham Borough Council,450545,506092,COMENSURA LIMITED,C-C23100-0115,Refuse Collection-Temporary Agency Staff,01-Jun-11,289.75
http://statistics.data.gov.uk/id/local-authority-district/23UB,Cheltenham Borough Council,450545,506092,COMENSURA LIMITED,C-C23100-0115,Refuse Collection-Temporary Agency Staff,01-Jun-11,63.45
http://statistics.data.gov.uk/id/local-authority-district/23UB,Cheltenham Borough Council,450545,506092,COMENSURA LIMITED,C-C23100-0115,Refuse Collection-Temporary Agency Staff,01-Jun-11,103.10
http://statistics.data.gov.uk/id/local-authority-district/23UB,Cheltenham Borough Council,450545,506092,COMENSURA LIMITED,C-C23110-0115,Street Cleaning-Temporary Agency Staff,01-Jun-11,74.02
http://statistics.data.gov.uk/id/local-authority-district/23UB,Cheltenham Borough Council,450545,506092,COMENSURA LIMITED,C-C23110-0115,Street Cleaning-Temporary Agency Staff,01-Jun-11,236.88
http://statistics.data.gov.uk/id/local-authority-district/23UB,Cheltenham Borough Council,450545,506092,COMENSURA LIMITED,C-C23110-0115,Street Cleaning-Temporary Agency Staff,01-Jun-11,368.01
http://statistics.data.gov.uk/id/local-authority-district/23UB,Cheltenham Borough Council,450545,506092,COMENSURA LIMITED,C-C23110-0115,Street Cleaning-Temporary Agency Staff,01-Jun-11,313.02
http://statistics.data.gov.uk/id/local-authority-district/23UB,Cheltenham Borough Council,450545,506092,COMENSURA LIMITED,C-C23110-0115,Street Cleaning-Temporary Agency Staff,01-Jun-11,249.57
http://statistics.data.gov.uk/id/local-authority-district/23UB,Cheltenham Borough Council,450545,506092,COMENSURA LIMITED,C-C23110-0115,Street Cleaning-Temporary Agency Staff,01-Jun-11,313.02
http://statistics.data.gov.uk/id/local-authority-district/23UB,Cheltenham Borough Council,450545,506092,COMENSURA LIMITED,C-C23110-0115,Street Cleaning-Temporary Agency Staff,01-Jun-11,368.01
http://statistics.data.gov.uk/id/local-authority-district/23UB,Cheltenham Borough Council,450545,506092,COMENSURA LIMITED,C-C23125-0115,Recyl Bring Schms-Temporary Agency Staff,01-Jun-11,491.26
http://statistics.data.gov.uk/id/local-authority-district/23UB,Cheltenham Borough Council,450545,506092,COMENSURA LIMITED,C-C23160-0115,Env Maint Div-Temporary Agency Staff,01-Jun-11,276.92
http://statistics.data.gov.uk/id/local-authority-district/23UB,Cheltenham Borough Council,450545,506092,COMENSURA LIMITED,C-C23160-0115,Env Maint Div-Temporary Agency Staff,01-Jun-11,331.65
http://statistics.data.gov.uk/id/local-authority-district/23UB,Cheltenham Borough Council,450545,506092,COMENSURA LIMITED,C-C23160-0115,Env Maint Div-Temporary Agency Staff,01-Jun-11,339.07
http://statistics.data.gov.uk/id/local-authority-district/23UB,Cheltenham Borough Council,450545,506092,COMENSURA LIMITED,C-C23160-0115,Env Maint Div-Temporary Agency Staff,01-Jun-11,346.50
http://statistics.data.gov.uk/id/local-authority-district/23UB,Cheltenham Borough Council,450545,506092,COMENSURA LIMITED,C-C23160-0115,Env Maint Div-Temporary Agency Staff,01-Jun-11,207.69
http://statistics.data.gov.uk/id/local-authority-district/23UB,Cheltenham Borough Council,450545,506092,COMENSURA LIMITED,C-C23160-0115,Env Maint Div-Temporary Agency Staff,01-Jun-11,257.14
http://statistics.data.gov.uk/id/local-authority-district/23UB,Cheltenham Borough Council,450545,506092,COMENSURA LIMITED,C-C23180-0115,Rcycl Coltn Schms-Temporary Agency Staff,01-Jun-11,59.22
http://statistics.data.gov.uk/id/local-authority-district/23UB,Cheltenham Borough Council,450545,506092,COMENSURA LIMITED,C-C23180-0115,Rcycl Coltn Schms-Temporary Agency Staff,01-Jun-11,100.80
http://statistics.data.gov.uk/id/local-authority-district/23UB,Cheltenham Borough Council,450545,506092,COMENSURA LIMITED,C-C23180-0115,Rcycl Coltn Schms-Temporary Agency Staff,01-Jun-11,97.04
http://statistics.data.gov.uk/id/local-authority-district/23UB,Cheltenham Borough Council,450545,506092,COMENSURA LIMITED,C-C23180-0115,Rcycl Coltn Schms-Temporary Agency Staff,01-Jun-11,274.94
http://statistics.data.gov.uk/id/local-authority-district/23UB,Cheltenham Borough Council,450545,506092,COMENSURA LIMITED,C-C23180-0115,Rcycl Coltn Schms-Temporary Agency Staff,01-Jun-11,109.17
http://statistics.data.gov.uk/id/local-authority-district/23UB,Cheltenham Borough Council,450545,506092,COMENSURA LIMITED,C-C23180-0115,Rcycl Coltn Schms-Temporary Agency Staff,01-Jun-11,122.66
http://statistics.data.gov.uk/id/local-authority-district/23UB,Cheltenham Borough Council,450545,506092,COMENSURA LIMITED,C-C23180-0115,Rcycl Coltn Schms-Temporary Agency Staff,01-Jun-11,499.95
http://statistics.data.gov.uk/id/local-authority-district/23UB,Cheltenham Borough Council,450545,506092,COMENSURA LIMITED,C-C23180-0115,Rcycl Coltn Schms-Temporary Agency Staff,01-Jun-11,245.34
http://statistics.data.gov.uk/id/local-authority-district/23UB,Cheltenham Borough Council,450545,506092,COMENSURA LIMITED,C-C23180-0115,Rcycl Coltn Schms-Temporary Agency Staff,01-Jun-11,111.44
http://statistics.data.gov.uk/id/local-authority-district/23UB,Cheltenham Borough Council,450545,506092,COMENSURA LIMITED,C-C23180-0115,Rcycl Coltn Schms-Temporary Agency Staff,01-Jun-11,71.91
http://statistics.data.gov.uk/id/local-authority-district/23UB,Cheltenham Borough Council,450545,506092,COMENSURA LIMITED,C-C23180-0115,Rcycl Coltn Schms-Temporary Agency Staff,01-Jun-11,71.91
http://statistics.data.gov.uk/id/local-authority-district/23UB,Cheltenham Borough Council,450545,506092,COMENSURA LIMITED,C-C23180-0115,Rcycl Coltn Schms-Temporary Agency Staff,01-Jun-11,-88.76
http://statistics.data.gov.uk/id/local-authority-district/23UB,Cheltenham Borough Council,450545,506092,COMENSURA LIMITED,C-C23180-0115,Rcycl Coltn Schms-Temporary Agency Staff,01-Jun-11,-151.19
http://statistics.data.gov.uk/id/local-authority-district/23UB,Cheltenham Borough Council,450545,506092,COMENSURA LIMITED,C-C23180-0115,Rcycl Coltn Schms-Temporary Agency Staff,01-Jun-11,67.68
http://statistics.data.gov.uk/id/local-authority-district/23UB,Cheltenham Borough Council,450545,506092,COMENSURA LIMITED,C-C23180-0115,Rcycl Coltn Schms-Temporary Agency Staff,01-Jun-11,103.10
http://statistics.data.gov.uk/id/local-authority-district/23UB,Cheltenham Borough Council,450545,506092,COMENSURA LIMITED,C-C23180-0115,Rcycl Coltn Schms-Temporary Agency Staff,01-Jun-11,71.91
http://statistics.data.gov.uk/id/local-authority-district/23UB,Cheltenham Borough Council,450545,506092,COMENSURA LIMITED,C-C23180-0115,Rcycl Coltn Schms-Temporary Agency Staff,01-Jun-11,63.45
http://statistics.data.gov.uk/id/local-authority-district/23UB,Cheltenham Borough Council,450545,506092,COMENSURA LIMITED,C-C23180-0115,Rcycl Coltn Schms-Temporary Agency Staff,01-Jun-11,97.04
http://statistics.data.gov.uk/id/local-authority-district/23UB,Cheltenham Borough Council,450545,506092,COMENSURA LIMITED,C-C23180-0115,Rcycl Coltn Schms-Temporary Agency Staff,01-Jun-11,59.22
http://statistics.data.gov.uk/id/local-authority-district/23UB,Cheltenham Borough Council,450545,506092,COMENSURA LIMITED,C-C23180-0115,Rcycl Coltn Schms-Temporary Agency Staff,01-Jun-11,281.30
http://statistics.data.gov.uk/id/local-authority-district/23UB,Cheltenham Borough Council,450545,506092,COMENSURA LIMITED,C-C23180-0115,Rcycl Coltn Schms-Temporary Agency Staff,01-Jun-11,363.41
http://statistics.data.gov.uk/id/local-authority-district/23UB,Cheltenham Borough Council,450545,506092,COMENSURA LIMITED,C-C23180-0115,Rcycl Coltn Schms-Temporary Agency Staff,01-Jun-11,226.29
http://statistics.data.gov.uk/id/local-authority-district/23UB,Cheltenham Borough Council,450545,506092,COMENSURA LIMITED,C-C23180-0115,Rcycl Coltn Schms-Temporary Agency Staff,01-Jun-11,114.22
http://statistics.data.gov.uk/id/local-authority-district/23UB,Cheltenham Borough Council,450545,506092,COMENSURA LIMITED,C-C23180-0115,Rcycl Coltn Schms-Temporary Agency Staff,01-Jun-11,293.99
http://statistics.data.gov.uk/id/local-authority-district/23UB,Cheltenham Borough Council,450545,506092,COMENSURA LIMITED,C-C23180-0115,Rcycl Coltn Schms-Temporary Agency Staff,01-Jun-11,283.41
http://statistics.data.gov.uk/id/local-authority-district/23UB,Cheltenham Borough Council,450545,506092,COMENSURA LIMITED,C-C23180-0115,Rcycl Coltn Schms-Temporary Agency Staff,01-Jun-11,71.91
http://statistics.data.gov.uk/id/local-authority-district/23UB,Cheltenham Borough Council,450545,506092,COMENSURA LIMITED,C-C23180-0115,Rcycl Coltn Schms-Temporary Agency Staff,01-Jun-11,485.20
http://statistics.data.gov.uk/id/local-authority-district/23UB,Cheltenham Borough Council,450545,506092,COMENSURA LIMITED,C-C23180-0115,Rcycl Coltn Schms-Temporary Agency Staff,01-Jun-11,224.19
http://statistics.data.gov.uk/id/local-authority-district/23UB,Cheltenham Borough Council,450545,506092,COMENSURA LIMITED,C-C23180-0115,Rcycl Coltn Schms-Temporary Agency Staff,01-Jun-11,114.21
http://statistics.data.gov.uk/id/local-authority-district/23UB,Cheltenham Borough Council,450545,506092,COMENSURA LIMITED,C-C23180-0115,Rcycl Coltn Schms-Temporary Agency Staff,01-Jun-11,279.19
http://statistics.data.gov.uk/id/local-authority-district/23UB,Cheltenham Borough Council,450545,506092,COMENSURA LIMITED,C-C23180-0115,Rcycl Coltn Schms-Temporary Agency Staff,01-Jun-11,394.22
http://statistics.data.gov.uk/id/local-authority-district/23UB,Cheltenham Borough Council,450545,506092,COMENSURA LIMITED,C-C23180-0115,Rcycl Coltn Schms-Temporary Agency Staff,01-Jun-11,488.23
http://statistics.data.gov.uk/id/local-authority-district/23UB,Cheltenham Borough Council,450545,506092,COMENSURA LIMITED,C-C23180-0115,Rcycl Coltn Schms-Temporary Agency Staff,01-Jun-11,302.44
http://statistics.data.gov.uk/id/local-authority-district/23UB,Cheltenham Borough Council,450545,506092,COMENSURA LIMITED,C-C23180-0115,Rcycl Coltn Schms-Temporary Agency Staff,01-Jun-11,192.46
http://statistics.data.gov.uk/id/local-authority-district/23UB,Cheltenham Borough Council,450545,506092,COMENSURA LIMITED,C-C23180-0115,Rcycl Coltn Schms-Temporary Agency Staff,01-Jun-11,249.57
http://statistics.data.gov.uk/id/local-authority-district/23UB,Cheltenham Borough Council,450545,506092,COMENSURA LIMITED,C-C23180-0115,Rcycl Coltn Schms-Temporary Agency Staff,01-Jun-11,32.78
http://statistics.data.gov.uk/id/local-authority-district/23UB,Cheltenham Borough Council,450545,506092,COMENSURA LIMITED,C-C23190-0115,Garden Collectn-Temporary Agency Staff,01-Jun-11,97.04
http://statistics.data.gov.uk/id/local-authority-district/23UB,Cheltenham Borough Council,450545,506092,COMENSURA LIMITED,C-C23190-0115,Garden Collectn-Temporary Agency Staff,01-Jun-11,236.88
http://statistics.data.gov.uk/id/local-authority-district/23UB,Cheltenham Borough Council,450545,506092,COMENSURA LIMITED,C-C23190-0115,Garden Collectn-Temporary Agency Staff,01-Jun-11,264.37
http://statistics.data.gov.uk/id/local-authority-district/23UB,Cheltenham Borough Council,450545,506092,COMENSURA LIMITED,C-C23190-0115,Garden Collectn-Temporary Agency Staff,01-Jun-11,445.62
http://statistics.data.gov.uk/id/local-authority-district/23UB,Cheltenham Borough Council,450545,506092,COMENSURA LIMITED,C-C23190-0115,Garden Collectn-Temporary Agency Staff,01-Jun-11,287.64
http://statistics.data.gov.uk/id/local-authority-district/23UB,Cheltenham Borough Council,450545,506092,COMENSURA LIMITED,C-D13100-0115,Muni Off Blgs-Temporary Agency Staff,01-Jun-11,105.75
http://statistics.data.gov.uk/id/local-authority-district/23UB,Cheltenham Borough Council,450545,506092,COMENSURA LIMITED,C-E63100-0115,Cemetery & Crem-Temporary Agency Staff,01-Jun-11,195.60
http://statistics.data.gov.uk/id/local-authority-district/23UB,Cheltenham Borough Council,450545,506092,COMENSURA LIMITED,C-E63100-0115,Cemetery & Crem-Temporary Agency Staff,01-Jun-11,195.60
http://statistics.data.gov.uk/id/local-authority-district/23UB,Cheltenham Borough Council,450545,506092,COMENSURA LIMITED,C-E63100-0115,Cemetery & Crem-Temporary Agency Staff,01-Jun-11,313.02
http://statistics.data.gov.uk/id/local-authority-district/23UB,Cheltenham Borough Council,450545,506092,COMENSURA LIMITED,C-E63100-0115,Cemetery & Crem-Temporary Agency Staff,01-Jun-11,313.02
http://statistics.data.gov.uk/id/local-authority-district/23UB,Cheltenham Borough Council,450545,506092,COMENSURA LIMITED,C-E63100-0115,Cemetery & Crem-Temporary Agency Staff,01-Jun-11,313.02
http://statistics.data.gov.uk/id/local-authority-district/23UB,Cheltenham Borough Council,450545,506092,COMENSURA LIMITED,C-E63100-0115,Cemetery & Crem-Temporary Agency Staff,01-Jun-11,313.02
http://statistics.data.gov.uk/id/local-authority-district/23UB,Cheltenham Borough Council,450545,506092,COMENSURA LIMITED,C-E63100-0115,Cemetery & Crem-Temporary Agency Staff,01-Jun-11,214.40
http://statistics.data.gov.uk/id/local-authority-district/23UB,Cheltenham Borough Council,450545,506092,COMENSURA LIMITED,C-E63100-0115,Cemetery & Crem-Temporary Agency Staff,01-Jun-11,313.02
http://statistics.data.gov.uk/id/local-authority-district/23UB,Cheltenham Borough Council,450545,506092,COMENSURA LIMITED,C-E63100-0115,Cemetery & Crem-Temporary Agency Staff,01-Jun-11,313.02
http://statistics.data.gov.uk/id/local-authority-district/23UB,Cheltenham Borough Council,450545,506092,COMENSURA LIMITED,C-E63100-0115,Cemetery & Crem-Temporary Agency Staff,01-Jun-11,313.02
http://statistics.data.gov.uk/id/local-authority-district/23UB,Cheltenham Borough Council,450545,506092,COMENSURA LIMITED,C-E63100-0115,Cemetery & Crem-Temporary Agency Staff,01-Jun-11,214.40
http://statistics.data.gov.uk/id/local-authority-district/23UB,Cheltenham Borough Council,450545,506092,COMENSURA LIMITED,C-E63100-0115,Cemetery & Crem-Temporary Agency Staff,01-Jun-11,195.60
http://statistics.data.gov.uk/id/local-authority-district/23UB,Cheltenham Borough Council,451054,506309,COMENSURA LIMITED,C-C22100-0115,Green Env Div-Temporary Agency Staff,08-Jun-11,346.88
http://statistics.data.gov.uk/id/local-authority-district/23UB,Cheltenham Borough Council,451055,506515,COMENSURA LIMITED,C-C22100-0115,Green Env Div-Temporary Agency Staff,08-Jun-11,346.86
http://statistics.data.gov.uk/id/local-authority-district/23UB,Cheltenham Borough Council,451055,506515,COMENSURA LIMITED,C-C22100-0115,Green Env Div-Temporary Agency Staff,08-Jun-11,137.48
http://statistics.data.gov.uk/id/local-authority-district/23UB,Cheltenham Borough Council,451054,506309,COMENSURA LIMITED,C-C22100-0115,Green Env Div-Temporary Agency Staff,08-Jun-11,346.88
http://statistics.data.gov.uk/id/local-authority-district/23UB,Cheltenham Borough Council,451054,506309,COMENSURA LIMITED,C-C22100-0115,Green Env Div-Temporary Agency Staff,08-Jun-11,346.88
http://statistics.data.gov.uk/id/local-authority-district/23UB,Cheltenham Borough Council,451054,506309,COMENSURA LIMITED,C-C22100-0115,Green Env Div-Temporary Agency Staff,08-Jun-11,346.88
http://statistics.data.gov.uk/id/local-authority-district/23UB,Cheltenham Borough Council,451054,506309,COMENSURA LIMITED,C-C22100-0115,Green Env Div-Temporary Agency Staff,08-Jun-11,346.88
http://statistics.data.gov.uk/id/local-authority-district/23UB,Cheltenham Borough Council,451054,506309,COMENSURA LIMITED,C-C22120-0115,Spts/Open Space-Temporary Agency Staff,08-Jun-11,346.86
http://statistics.data.gov.uk/id/local-authority-district/23UB,Cheltenham Borough Council,451054,506309,COMENSURA LIMITED,C-C22120-0115,Spts/Open Space-Temporary Agency Staff,08-Jun-11,346.86
http://statistics.data.gov.uk/id/local-authority-district/23UB,Cheltenham Borough Council,451054,506309,COMENSURA LIMITED,C-C22120-0115,Spts/Open Space-Temporary Agency Staff,08-Jun-11,346.86
http://statistics.data.gov.uk/id/local-authority-district/23UB,Cheltenham Borough Council,451054,506309,COMENSURA LIMITED,C-C23100-0115,Refuse Collection-Temporary Agency Staff,08-Jun-11,67.68
http://statistics.data.gov.uk/id/local-authority-district/23UB,Cheltenham Borough Council,451054,506309,COMENSURA LIMITED,C-C23100-0115,Refuse Collection-Temporary Agency Staff,08-Jun-11,313.02
http://statistics.data.gov.uk/id/local-authority-district/23UB,Cheltenham Borough Council,451054,506309,COMENSURA LIMITED,C-C23100-0115,Refuse Collection-Temporary Agency Staff,08-Jun-11,268.60
http://statistics.data.gov.uk/id/local-authority-district/23UB,Cheltenham Borough Council,451054,506309,COMENSURA LIMITED,C-C23100-0115,Refuse Collection-Temporary Agency Staff,08-Jun-11,247.45
http://statistics.data.gov.uk/id/local-authority-district/23UB,Cheltenham Borough Council,451054,506309,COMENSURA LIMITED,C-C23100-0115,Refuse Collection-Temporary Agency Staff,08-Jun-11,90.94
http://statistics.data.gov.uk/id/local-authority-district/23UB,Cheltenham Borough Council,451054,506309,COMENSURA LIMITED,C-C23100-0115,Refuse Collection-Temporary Agency Staff,08-Jun-11,150.16
http://statistics.data.gov.uk/id/local-authority-district/23UB,Cheltenham Borough Council,451055,506515,COMENSURA LIMITED,C-C23100-0115,Refuse Collection-Temporary Agency Staff,08-Jun-11,164.97
http://statistics.data.gov.uk/id/local-authority-district/23UB,Cheltenham Borough Council,451055,506515,COMENSURA LIMITED,C-C23100-0115,Refuse Collection-Temporary Agency Staff,08-Jun-11,494.30
http://statistics.data.gov.uk/id/local-authority-district/23UB,Cheltenham Borough Council,451055,506515,COMENSURA LIMITED,C-C23100-0115,Refuse Collection-Temporary Agency Staff,08-Jun-11,190.35
http://statistics.data.gov.uk/id/local-authority-district/23UB,Cheltenham Borough Council,451055,506515,COMENSURA LIMITED,C-C23100-0115,Refuse Collection-Temporary Agency Staff,08-Jun-11,107.86
http://statistics.data.gov.uk/id/local-authority-district/23UB,Cheltenham Borough Council,451055,506515,COMENSURA LIMITED,C-C23100-0115,Refuse Collection-Temporary Agency Staff,08-Jun-11,279.18
http://statistics.data.gov.uk/id/local-authority-district/23UB,Cheltenham Borough Council,451055,506515,COMENSURA LIMITED,C-C23100-0115,Refuse Collection-Temporary Agency Staff,08-Jun-11,164.97
http://statistics.data.gov.uk/id/local-authority-district/23UB,Cheltenham Borough Council,451055,506515,COMENSURA LIMITED,C-C23100-0115,Refuse Collection-Temporary Agency Staff,08-Jun-11,283.41
http://statistics.data.gov.uk/id/local-authority-district/23UB,Cheltenham Borough Council,451055,506515,COMENSURA LIMITED,C-C23100-0115,Refuse Collection-Temporary Agency Staff,08-Jun-11,485.20
http://statistics.data.gov.uk/id/local-authority-district/23UB,Cheltenham Borough Council,451055,506515,COMENSURA LIMITED,C-C23100-0115,Refuse Collection-Temporary Agency Staff,08-Jun-11,313.02
http://statistics.data.gov.uk/id/local-authority-district/23UB,Cheltenham Borough Council,451055,506515,COMENSURA LIMITED,C-C23100-0115,Refuse Collection-Temporary Agency Staff,08-Jun-11,90.98
http://statistics.data.gov.uk/id/local-authority-district/23UB,Cheltenham Borough Council,451055,506515,COMENSURA LIMITED,C-C23100-0115,Refuse Collection-Temporary Agency Staff,08-Jun-11,394.22
http://statistics.data.gov.uk/id/local-authority-district/23UB,Cheltenham Borough Council,451055,506515,COMENSURA LIMITED,C-C23100-0115,Refuse Collection-Temporary Agency Staff,08-Jun-11,289.76
http://statistics.data.gov.uk/id/local-authority-district/23UB,Cheltenham Borough Council,451055,506515,COMENSURA LIMITED,C-C23100-0115,Refuse Collection-Temporary Agency Staff,08-Jun-11,497.33
http://statistics.data.gov.uk/id/local-authority-district/23UB,Cheltenham Borough Council,451055,506515,COMENSURA LIMITED,C-C23100-0115,Refuse Collection-Temporary Agency Staff,08-Jun-11,48.64
http://statistics.data.gov.uk/id/local-authority-district/23UB,Cheltenham Borough Council,451055,506515,COMENSURA LIMITED,C-C23100-0115,Refuse Collection-Temporary Agency Staff,08-Jun-11,245.34
http://statistics.data.gov.uk/id/local-authority-district/23UB,Cheltenham Borough Council,451055,506515,COMENSURA LIMITED,C-C23100-0115,Refuse Collection-Temporary Agency Staff,08-Jun-11,296.10
http://statistics.data.gov.uk/id/local-authority-district/23UB,Cheltenham Borough Council,451055,506515,COMENSURA LIMITED,C-C23100-0115,Refuse Collection-Temporary Agency Staff,08-Jun-11,194.58
http://statistics.data.gov.uk/id/local-authority-district/23UB,Cheltenham Borough Council,451054,506309,COMENSURA LIMITED,C-C23100-0115,Refuse Collection-Temporary Agency Staff,08-Jun-11,308.79
http://statistics.data.gov.uk/id/local-authority-district/23UB,Cheltenham Borough Council,451054,506309,COMENSURA LIMITED,C-C23100-0115,Refuse Collection-Temporary Agency Staff,08-Jun-11,126.90
http://statistics.data.gov.uk/id/local-authority-district/23UB,Cheltenham Borough Council,451054,506309,COMENSURA LIMITED,C-C23100-0115,Refuse Collection-Temporary Agency Staff,08-Jun-11,253.81
http://statistics.data.gov.uk/id/local-authority-district/23UB,Cheltenham Borough Council,451054,506309,COMENSURA LIMITED,C-C23100-0115,Refuse Collection-Temporary Agency Staff,08-Jun-11,186.12
http://statistics.data.gov.uk/id/local-authority-district/23UB,Cheltenham Borough Council,451054,506309,COMENSURA LIMITED,C-C23100-0115,Refuse Collection-Temporary Agency Staff,08-Jun-11,-4.23
http://statistics.data.gov.uk/id/local-authority-district/23UB,Cheltenham Borough Council,451054,506309,COMENSURA LIMITED,C-C23100-0115,Refuse Collection-Temporary Agency Staff,08-Jun-11,4.23
http://statistics.data.gov.uk/id/local-authority-district/23UB,Cheltenham Borough Council,451054,506309,COMENSURA LIMITED,C-C23110-0115,Street Cleaning-Temporary Agency Staff,08-Jun-11,313.02
http://statistics.data.gov.uk/id/local-authority-district/23UB,Cheltenham Borough Council,451055,506515,COMENSURA LIMITED,C-C23110-0115,Street Cleaning-Temporary Agency Staff,08-Jun-11,340.51
http://statistics.data.gov.uk/id/local-authority-district/23UB,Cheltenham Borough Council,451054,506309,COMENSURA LIMITED,C-C23110-0115,Street Cleaning-Temporary Agency Staff,08-Jun-11,363.78
http://statistics.data.gov.uk/id/local-authority-district/23UB,Cheltenham Borough Council,451054,506309,COMENSURA LIMITED,C-C23110-0115,Street Cleaning-Temporary Agency Staff,08-Jun-11,313.02
http://statistics.data.gov.uk/id/local-authority-district/23UB,Cheltenham Borough Council,451054,506309,COMENSURA LIMITED,C-C23110-0115,Street Cleaning-Temporary Agency Staff,08-Jun-11,313.02
http://statistics.data.gov.uk/id/local-authority-district/23UB,Cheltenham Borough Council,451054,506309,COMENSURA LIMITED,C-C23125-0115,Recyl Bring Schms-Temporary Agency Staff,08-Jun-11,485.20
http://statistics.data.gov.uk/id/local-authority-district/23UB,Cheltenham Borough Council,451055,506515,COMENSURA LIMITED,C-C23125-0115,Recyl Bring Schms-Temporary Agency Staff,08-Jun-11,97.04
http://statistics.data.gov.uk/id/local-authority-district/23UB,Cheltenham Borough Council,451054,506309,COMENSURA LIMITED,C-C23160-0115,Env Maint Div-Temporary Agency Staff,08-Jun-11,341.55
http://statistics.data.gov.uk/id/local-authority-district/23UB,Cheltenham Borough Council,451054,506309,COMENSURA LIMITED,C-C23160-0115,Env Maint Div-Temporary Agency Staff,08-Jun-11,341.55
http://statistics.data.gov.uk/id/local-authority-district/23UB,Cheltenham Borough Council,451054,506309,COMENSURA LIMITED,C-C23160-0115,Env Maint Div-Temporary Agency Staff,08-Jun-11,272.25
http://statistics.data.gov.uk/id/local-authority-district/23UB,Cheltenham Borough Council,451054,506309,COMENSURA LIMITED,C-C23160-0115,Env Maint Div-Temporary Agency Staff,08-Jun-11,346.15
http://statistics.data.gov.uk/id/local-authority-district/23UB,Cheltenham Borough Council,451054,506309,COMENSURA LIMITED,C-C23160-0115,Env Maint Div-Temporary Agency Staff,08-Jun-11,277.20
http://statistics.data.gov.uk/id/local-authority-district/23UB,Cheltenham Borough Council,451055,506515,COMENSURA LIMITED,C-C23160-0115,Env Maint Div-Temporary Agency Staff,08-Jun-11,138.60
http://statistics.data.gov.uk/id/local-authority-district/23UB,Cheltenham Borough Council,451055,506515,COMENSURA LIMITED,C-C23160-0115,Env Maint Div-Temporary Agency Staff,08-Jun-11,331.65
http://statistics.data.gov.uk/id/local-authority-district/23UB,Cheltenham Borough Council,451055,506515,COMENSURA LIMITED,C-C23160-0115,Env Maint Div-Temporary Agency Staff,08-Jun-11,346.50
http://statistics.data.gov.uk/id/local-authority-district/23UB,Cheltenham Borough Council,451055,506515,COMENSURA LIMITED,C-C23160-0115,Env Maint Div-Temporary Agency Staff,08-Jun-11,346.50
http://statistics.data.gov.uk/id/local-authority-district/23UB,Cheltenham Borough Council,451055,506515,COMENSURA LIMITED,C-C23160-0115,Env Maint Div-Temporary Agency Staff,08-Jun-11,336.60
http://statistics.data.gov.uk/id/local-authority-district/23UB,Cheltenham Borough Council,451055,506515,COMENSURA LIMITED,C-C23160-0115,Env Maint Div-Temporary Agency Staff,08-Jun-11,326.70
http://statistics.data.gov.uk/id/local-authority-district/23UB,Cheltenham Borough Council,451055,506515,COMENSURA LIMITED,C-C23160-0115,Env Maint Div-Temporary Agency Staff,08-Jun-11,277.20
http://statistics.data.gov.uk/id/local-authority-district/23UB,Cheltenham Borough Council,451055,506515,COMENSURA LIMITED,C-C23160-0115,Env Maint Div-Temporary Agency Staff,08-Jun-11,207.90
http://statistics.data.gov.uk/id/local-authority-district/23UB,Cheltenham Borough Council,451055,506515,COMENSURA LIMITED,C-C23160-0115,Env Maint Div-Temporary Agency Staff,08-Jun-11,207.90
http://statistics.data.gov.uk/id/local-authority-district/23UB,Cheltenham Borough Council,451055,506515,COMENSURA LIMITED,C-C23160-0115,Env Maint Div-Temporary Agency Staff,08-Jun-11,346.15
http://statistics.data.gov.uk/id/local-authority-district/23UB,Cheltenham Borough Council,451054,506309,COMENSURA LIMITED,C-C23160-0115,Env Maint Div-Temporary Agency Staff,08-Jun-11,207.90
http://statistics.data.gov.uk/id/local-authority-district/23UB,Cheltenham Borough Council,451054,506309,COMENSURA LIMITED,C-C23160-0115,Env Maint Div-Temporary Agency Staff,08-Jun-11,341.55
http://statistics.data.gov.uk/id/local-authority-district/23UB,Cheltenham Borough Council,451054,506309,COMENSURA LIMITED,C-C23180-0115,Rcycl Coltn Schms-Temporary Agency Staff,08-Jun-11,46.53
http://statistics.data.gov.uk/id/local-authority-district/23UB,Cheltenham Borough Council,451054,506309,COMENSURA LIMITED,C-C23180-0115,Rcycl Coltn Schms-Temporary Agency Staff,08-Jun-11,253.80
http://statistics.data.gov.uk/id/local-authority-district/23UB,Cheltenham Borough Council,451054,506309,COMENSURA LIMITED,C-C23180-0115,Rcycl Coltn Schms-Temporary Agency Staff,08-Jun-11,194.58
http://statistics.data.gov.uk/id/local-authority-district/23UB,Cheltenham Borough Council,451054,506309,COMENSURA LIMITED,C-C23180-0115,Rcycl Coltn Schms-Temporary Agency Staff,08-Jun-11,576.18
http://statistics.data.gov.uk/id/local-authority-district/23UB,Cheltenham Borough Council,451054,506309,COMENSURA LIMITED,C-C23180-0115,Rcycl Coltn Schms-Temporary Agency Staff,08-Jun-11,291.86
http://statistics.data.gov.uk/id/local-authority-district/23UB,Cheltenham Borough Council,451054,506309,COMENSURA LIMITED,C-C23180-0115,Rcycl Coltn Schms-Temporary Agency Staff,08-Jun-11,485.20
http://statistics.data.gov.uk/id/local-authority-district/23UB,Cheltenham Borough Council,451054,506309,COMENSURA LIMITED,C-C23180-0115,Rcycl Coltn Schms-Temporary Agency Staff,08-Jun-11,289.75
http://statistics.data.gov.uk/id/local-authority-district/23UB,Cheltenham Borough Council,451054,506309,COMENSURA LIMITED,C-C23180-0115,Rcycl Coltn Schms-Temporary Agency Staff,08-Jun-11,313.02
http://statistics.data.gov.uk/id/local-authority-district/23UB,Cheltenham Borough Council,451054,506309,COMENSURA LIMITED,C-C23180-0115,Rcycl Coltn Schms-Temporary Agency Staff,08-Jun-11,107.86
http://statistics.data.gov.uk/id/local-authority-district/23UB,Cheltenham Borough Council,451054,506309,COMENSURA LIMITED,C-C23180-0115,Rcycl Coltn Schms-Temporary Agency Staff,08-Jun-11,325.71
http://statistics.data.gov.uk/id/local-authority-district/23UB,Cheltenham Borough Council,451054,506309,COMENSURA LIMITED,C-C23180-0115,Rcycl Coltn Schms-Temporary Agency Staff,08-Jun-11,228.41
http://statistics.data.gov.uk/id/local-authority-district/23UB,Cheltenham Borough Council,451054,506309,COMENSURA LIMITED,C-C23180-0115,Rcycl Coltn Schms-Temporary Agency Staff,08-Jun-11,485.20
http://statistics.data.gov.uk/id/local-authority-district/23UB,Cheltenham Borough Council,451054,506309,COMENSURA LIMITED,C-C23180-0115,Rcycl Coltn Schms-Temporary Agency Staff,08-Jun-11,249.56
http://statistics.data.gov.uk/id/local-authority-district/23UB,Cheltenham Borough Council,451054,506309,COMENSURA LIMITED,C-C23180-0115,Rcycl Coltn Schms-Temporary Agency Staff,08-Jun-11,283.40
http://statistics.data.gov.uk/id/local-authority-district/23UB,Cheltenham Borough Council,451054,506309,COMENSURA LIMITED,C-C23180-0115,Rcycl Coltn Schms-Temporary Agency Staff,08-Jun-11,334.17
http://statistics.data.gov.uk/id/local-authority-district/23UB,Cheltenham Borough Council,451054,506309,COMENSURA LIMITED,C-C23180-0115,Rcycl Coltn Schms-Temporary Agency Staff,08-Jun-11,285.52
http://statistics.data.gov.uk/id/local-authority-district/23UB,Cheltenham Borough Council,451054,506309,COMENSURA LIMITED,C-C23180-0115,Rcycl Coltn Schms-Temporary Agency Staff,08-Jun-11,283.40
http://statistics.data.gov.uk/id/local-authority-district/23UB,Cheltenham Borough Council,451055,506515,COMENSURA LIMITED,C-C23180-0115,Rcycl Coltn Schms-Temporary Agency Staff,08-Jun-11,289.76
http://statistics.data.gov.uk/id/local-authority-district/23UB,Cheltenham Borough Council,451055,506515,COMENSURA LIMITED,C-C23180-0115,Rcycl Coltn Schms-Temporary Agency Staff,08-Jun-11,63.45
http://statistics.data.gov.uk/id/local-authority-district/23UB,Cheltenham Borough Council,451055,506515,COMENSURA LIMITED,C-C23180-0115,Rcycl Coltn Schms-Temporary Agency Staff,08-Jun-11,279.19
http://statistics.data.gov.uk/id/local-authority-district/23UB,Cheltenham Borough Council,451055,506515,COMENSURA LIMITED,C-C23180-0115,Rcycl Coltn Schms-Temporary Agency Staff,08-Jun-11,433.65
http://statistics.data.gov.uk/id/local-authority-district/23UB,Cheltenham Borough Council,451055,506515,COMENSURA LIMITED,C-C23180-0115,Rcycl Coltn Schms-Temporary Agency Staff,08-Jun-11,38.07
http://statistics.data.gov.uk/id/local-authority-district/23UB,Cheltenham Borough Council,451055,506515,COMENSURA LIMITED,C-C23180-0115,Rcycl Coltn Schms-Temporary Agency Staff,08-Jun-11,491.26
http://statistics.data.gov.uk/id/local-authority-district/23UB,Cheltenham Borough Council,451055,506515,COMENSURA LIMITED,C-C23180-0115,Rcycl Coltn Schms-Temporary Agency Staff,08-Jun-11,274.95
http://statistics.data.gov.uk/id/local-authority-district/23UB,Cheltenham Borough Council,451055,506515,COMENSURA LIMITED,C-C23180-0115,Rcycl Coltn Schms-Temporary Agency Staff,08-Jun-11,496.92
http://statistics.data.gov.uk/id/local-authority-district/23UB,Cheltenham Borough Council,451055,506515,COMENSURA LIMITED,C-C23180-0115,Rcycl Coltn Schms-Temporary Agency Staff,08-Jun-11,126.90
http://statistics.data.gov.uk/id/local-authority-district/23UB,Cheltenham Borough Council,451055,506515,COMENSURA LIMITED,C-C23180-0115,Rcycl Coltn Schms-Temporary Agency Staff,08-Jun-11,101.52
http://statistics.data.gov.uk/id/local-authority-district/23UB,Cheltenham Borough Council,451055,506515,COMENSURA LIMITED,C-C23180-0115,Rcycl Coltn Schms-Temporary Agency Staff,08-Jun-11,243.23
http://statistics.data.gov.uk/id/local-authority-district/23UB,Cheltenham Borough Council,451055,506515,COMENSURA LIMITED,C-C23180-0115,Rcycl Coltn Schms-Temporary Agency Staff,08-Jun-11,285.53
http://statistics.data.gov.uk/id/local-authority-district/23UB,Cheltenham Borough Council,451055,506515,COMENSURA LIMITED,C-C23180-0115,Rcycl Coltn Schms-Temporary Agency Staff,08-Jun-11,236.88
http://statistics.data.gov.uk/id/local-authority-district/23UB,Cheltenham Borough Council,451055,506515,COMENSURA LIMITED,C-C23180-0115,Rcycl Coltn Schms-Temporary Agency Staff,08-Jun-11,388.16
http://statistics.data.gov.uk/id/local-authority-district/23UB,Cheltenham Borough Council,451055,506515,COMENSURA LIMITED,C-C23180-0115,Rcycl Coltn Schms-Temporary Agency Staff,08-Jun-11,264.37
http://statistics.data.gov.uk/id/local-authority-district/23UB,Cheltenham Borough Council,451055,506515,COMENSURA LIMITED,C-C23180-0115,Rcycl Coltn Schms-Temporary Agency Staff,08-Jun-11,122.67
http://statistics.data.gov.uk/id/local-authority-district/23UB,Cheltenham Borough Council,451055,506515,COMENSURA LIMITED,C-C23180-0115,Rcycl Coltn Schms-Temporary Agency Staff,08-Jun-11,107.87
http://statistics.data.gov.uk/id/local-authority-district/23UB,Cheltenham Borough Council,451055,506515,COMENSURA LIMITED,C-C23180-0115,Rcycl Coltn Schms-Temporary Agency Staff,08-Jun-11,315.13
http://statistics.data.gov.uk/id/local-authority-district/23UB,Cheltenham Borough Council,451055,506515,COMENSURA LIMITED,C-C23180-0115,Rcycl Coltn Schms-Temporary Agency Staff,08-Jun-11,283.41
http://statistics.data.gov.uk/id/local-authority-district/23UB,Cheltenham Borough Council,451055,506515,COMENSURA LIMITED,C-C23180-0115,Rcycl Coltn Schms-Temporary Agency Staff,08-Jun-11,224.19
http://statistics.data.gov.uk/id/local-authority-district/23UB,Cheltenham Borough Council,451055,506515,COMENSURA LIMITED,C-C23180-0115,Rcycl Coltn Schms-Temporary Agency Staff,08-Jun-11,289.75
http://statistics.data.gov.uk/id/local-authority-district/23UB,Cheltenham Borough Council,451055,506515,COMENSURA LIMITED,C-C23180-0115,Rcycl Coltn Schms-Temporary Agency Staff,08-Jun-11,253.80
http://statistics.data.gov.uk/id/local-authority-district/23UB,Cheltenham Borough Council,451055,506515,COMENSURA LIMITED,C-C23180-0115,Rcycl Coltn Schms-Temporary Agency Staff,08-Jun-11,173.43
http://statistics.data.gov.uk/id/local-authority-district/23UB,Cheltenham Borough Council,451054,506309,COMENSURA LIMITED,C-C23180-0115,Rcycl Coltn Schms-Temporary Agency Staff,08-Jun-11,213.61
http://statistics.data.gov.uk/id/local-authority-district/23UB,Cheltenham Borough Council,451054,506309,COMENSURA LIMITED,C-C23180-0115,Rcycl Coltn Schms-Temporary Agency Staff,08-Jun-11,54.99
http://statistics.data.gov.uk/id/local-authority-district/23UB,Cheltenham Borough Council,451054,506309,COMENSURA LIMITED,C-C23180-0115,Rcycl Coltn Schms-Temporary Agency Staff,08-Jun-11,181.88
http://statistics.data.gov.uk/id/local-authority-district/23UB,Cheltenham Borough Council,451054,506309,COMENSURA LIMITED,C-C23180-0115,Rcycl Coltn Schms-Temporary Agency Staff,08-Jun-11,557.99
http://statistics.data.gov.uk/id/local-authority-district/23UB,Cheltenham Borough Council,451054,506309,COMENSURA LIMITED,C-C23180-0115,Rcycl Coltn Schms-Temporary Agency Staff,08-Jun-11,302.44
http://statistics.data.gov.uk/id/local-authority-district/23UB,Cheltenham Borough Council,451054,506309,COMENSURA LIMITED,C-C23180-0115,Rcycl Coltn Schms-Temporary Agency Staff,08-Jun-11,515.10
http://statistics.data.gov.uk/id/local-authority-district/23UB,Cheltenham Borough Council,451054,506309,COMENSURA LIMITED,C-C23190-0115,Garden Collectn-Temporary Agency Staff,08-Jun-11,211.51
http://statistics.data.gov.uk/id/local-authority-district/23UB,Cheltenham Borough Council,451054,506309,COMENSURA LIMITED,C-C23190-0115,Garden Collectn-Temporary Agency Staff,08-Jun-11,234.76
http://statistics.data.gov.uk/id/local-authority-district/23UB,Cheltenham Borough Council,451054,506309,COMENSURA LIMITED,C-C23190-0115,Garden Collectn-Temporary Agency Staff,08-Jun-11,203.04
http://statistics.data.gov.uk/id/local-authority-district/23UB,Cheltenham Borough Council,451055,506515,COMENSURA LIMITED,C-C23190-0115,Garden Collectn-Temporary Agency Staff,08-Jun-11,251.68
http://statistics.data.gov.uk/id/local-authority-district/23UB,Cheltenham Borough Council,451055,506515,COMENSURA LIMITED,C-C23190-0115,Garden Collectn-Temporary Agency Staff,08-Jun-11,236.88
http://statistics.data.gov.uk/id/local-authority-district/23UB,Cheltenham Borough Council,451055,506515,COMENSURA LIMITED,C-C23190-0115,Garden Collectn-Temporary Agency Staff,08-Jun-11,359.55
http://statistics.data.gov.uk/id/local-authority-district/23UB,Cheltenham Borough Council,451054,506309,COMENSURA LIMITED,C-C23190-0115,Garden Collectn-Temporary Agency Staff,08-Jun-11,355.32
http://statistics.data.gov.uk/id/local-authority-district/23UB,Cheltenham Borough Council,451055,506515,COMENSURA LIMITED,C-C23190-0115,Garden Collectn-Temporary Agency Staff,08-Jun-11,74.02
http://statistics.data.gov.uk/id/local-authority-district/23UB,Cheltenham Borough Council,451054,506309,COMENSURA LIMITED,C-D13100-0115,Muni Off Blgs-Temporary Agency Staff,08-Jun-11,105.75
http://statistics.data.gov.uk/id/local-authority-district/23UB,Cheltenham Borough Council,451055,506515,COMENSURA LIMITED,C-D13100-0115,Muni Off Blgs-Temporary Agency Staff,08-Jun-11,84.60
http://statistics.data.gov.uk/id/local-authority-district/23UB,Cheltenham Borough Council,451055,506515,COMENSURA LIMITED,C-D13100-0115,Muni Off Blgs-Temporary Agency Staff,08-Jun-11,21.15
http://statistics.data.gov.uk/id/local-authority-district/23UB,Cheltenham Borough Council,451055,506515,COMENSURA LIMITED,C-E36200-0115,On-St Car Prkng-Temporary Agency Staff,08-Jun-11,516.43
http://statistics.data.gov.uk/id/local-authority-district/23UB,Cheltenham Borough Council,451055,506515,COMENSURA LIMITED,C-E36200-0115,On-St Car Prkng-Temporary Agency Staff,08-Jun-11,327.80
http://statistics.data.gov.uk/id/local-authority-district/23UB,Cheltenham Borough Council,451055,506515,COMENSURA LIMITED,C-E63100-0115,Cemetery & Crem-Temporary Agency Staff,08-Jun-11,313.02
http://statistics.data.gov.uk/id/local-authority-district/23UB,Cheltenham Borough Council,451055,506515,COMENSURA LIMITED,C-E63100-0115,Cemetery & Crem-Temporary Agency Staff,08-Jun-11,313.02
http://statistics.data.gov.uk/id/local-authority-district/23UB,Cheltenham Borough Council,451055,506515,COMENSURA LIMITED,C-E63100-0115,Cemetery & Crem-Temporary Agency Staff,08-Jun-11,42.88
http://statistics.data.gov.uk/id/local-authority-district/23UB,Cheltenham Borough Council,451055,506515,COMENSURA LIMITED,C-E63100-0115,Cemetery & Crem-Temporary Agency Staff,08-Jun-11,257.28
http://statistics.data.gov.uk/id/local-authority-district/23UB,Cheltenham Borough Council,451055,506515,COMENSURA LIMITED,C-E63100-0115,Cemetery & Crem-Temporary Agency Staff,08-Jun-11,313.02
http://statistics.data.gov.uk/id/local-authority-district/23UB,Cheltenham Borough Council,451055,506515,COMENSURA LIMITED,C-E63100-0115,Cemetery & Crem-Temporary Agency Staff,08-Jun-11,313.02
http://statistics.data.gov.uk/id/local-authority-district/23UB,Cheltenham Borough Council,451055,506515,COMENSURA LIMITED,C-E63100-0115,Cemetery & Crem-Temporary Agency Staff,08-Jun-11,313.02
http://statistics.data.gov.uk/id/local-authority-district/23UB,Cheltenham Borough Council,451055,506515,COMENSURA LIMITED,C-E63100-0115,Cemetery & Crem-Temporary Agency Staff,08-Jun-11,296.10
http://statistics.data.gov.uk/id/local-authority-district/23UB,Cheltenham Borough Council,451055,506515,COMENSURA LIMITED,C-E63100-0115,Cemetery & Crem-Temporary Agency Staff,08-Jun-11,249.57
http://statistics.data.gov.uk/id/local-authority-district/23UB,Cheltenham Borough Council,451055,506515,COMENSURA LIMITED,C-E63100-0115,Cemetery & Crem-Temporary Agency Staff,08-Jun-11,186.12
http://statistics.data.gov.uk/id/local-authority-district/23UB,Cheltenham Borough Council,451055,506515,COMENSURA LIMITED,C-E63100-0115,Cemetery & Crem-Temporary Agency Staff,08-Jun-11,313.02
http://statistics.data.gov.uk/id/local-authority-district/23UB,Cheltenham Borough Council,451055,506515,COMENSURA LIMITED,C-E63100-0115,Cemetery & Crem-Temporary Agency Staff,08-Jun-11,235.84
http://statistics.data.gov.uk/id/local-authority-district/23UB,Cheltenham Borough Council,451055,506515,COMENSURA LIMITED,C-E63100-0115,Cemetery & Crem-Temporary Agency Staff,08-Jun-11,313.02
http://statistics.data.gov.uk/id/local-authority-district/23UB,Cheltenham Borough Council,451055,506515,COMENSURA LIMITED,C-E63100-0115,Cemetery & Crem-Temporary Agency Staff,08-Jun-11,304.56
http://statistics.data.gov.uk/id/local-authority-district/23UB,Cheltenham Borough Council,451055,506515,COMENSURA LIMITED,C-E63100-0115,Cemetery & Crem-Temporary Agency Staff,08-Jun-11,313.02
http://statistics.data.gov.uk/id/local-authority-district/23UB,Cheltenham Borough Council,451055,506515,COMENSURA LIMITED,C-E63100-0115,Cemetery & Crem-Temporary Agency Staff,08-Jun-11,313.02
http://statistics.data.gov.uk/id/local-authority-district/23UB,Cheltenham Borough Council,451055,506515,COMENSURA LIMITED,C-E63100-0115,Cemetery & Crem-Temporary Agency Staff,08-Jun-11,313.02
http://statistics.data.gov.uk/id/local-authority-district/23UB,Cheltenham Borough Council,451055,506515,COMENSURA LIMITED,C-E72500-0115,Built Env Div-Temporary Agency Staff,08-Jun-11,42.30
http://statistics.data.gov.uk/id/local-authority-district/23UB,Cheltenham Borough Council,450779,0000048766,CONSTANTINE,C-Z12440-AG91,AGM Exhibitions-Horse in Art,03-Jun-11,"3,475.00"
http://statistics.data.gov.uk/id/local-authority-district/23UB,Cheltenham Borough Council,450779,0000048766,CONSTANTINE,C-Z12440-AG91,AGM Exhibitions-Horse in Art,03-Jun-11,171.40
http://statistics.data.gov.uk/id/local-authority-district/23UB,Cheltenham Borough Council,450779,0000048766,CONSTANTINE,C-Z12440-AG91,AGM Exhibitions-Horse in Art,03-Jun-11,300.00
http://statistics.data.gov.uk/id/local-authority-district/23UB,Cheltenham Borough Council,451079,11001064,CONTENUR UK LIMITED,C-C23180-3101,Rcycl Coltn Schms-Equipment purchases,08-Jun-11,"9,437.50"
http://statistics.data.gov.uk/id/local-authority-district/23UB,Cheltenham Borough Council,450995,442392,THE COPYRIGHT LICENCING AGENCY LIMITED,C-D11900-3426,Communic.Mgmt-Newspaper Licensing Agcy,08-Jun-11,"1,491.00"
http://statistics.data.gov.uk/id/local-authority-district/23UB,Cheltenham Borough Council,450713,014795,CORY ENVIRONMENTAL LTD,C-C23100-3581,Refuse Collctn-Tipping charges,03-Jun-11,"5,662.97"
http://statistics.data.gov.uk/id/local-authority-district/23UB,Cheltenham Borough Council,450713,014795,CORY ENVIRONMENTAL LTD,C-C23100-3581,Refuse Collctn-Tipping charges,03-Jun-11,0.56
http://statistics.data.gov.uk/id/local-authority-district/23UB,Cheltenham Borough Council,451093,014912,CORY ENVIRONMENTAL LTD,C-C23100-3581,Refuse Collctn-Tipping charges,08-Jun-11,"5,151.95"
http://statistics.data.gov.uk/id/local-authority-district/23UB,Cheltenham Borough Council,451017,014850,CORY ENVIRONMENTAL LTD,C-C23100-3581,Refuse Collctn-Tipping charges,08-Jun-11,"5,153.62"
http://statistics.data.gov.uk/id/local-authority-district/23UB,Cheltenham Borough Council,451095,014969,CORY ENVIRONMENTAL LTD,C-C23100-3581,Refuse Collctn-Tipping charges,08-Jun-11,"7,075.79"
http://statistics.data.gov.uk/id/local-authority-district/23UB,Cheltenham Borough Council,452014,015032,CORY ENVIRONMENTAL LTD,C-C23100-3581,Refuse Collctn-Tipping charges,24-Jun-11,"3,161.31"
http://statistics.data.gov.uk/id/local-authority-district/23UB,Cheltenham Borough Council,452091,015086,CORY ENVIRONMENTAL LTD,C-C23100-3581,Refuse Collctn-Tipping charges,24-Jun-11,"4,970.21"
http://statistics.data.gov.uk/id/local-authority-district/23UB,Cheltenham Borough Council,450827,20172,COTSWOLD DRAIN SERVICES LTD,C-C22120-3104,Spts/Open Space-Sports & play equipment,03-Jun-11,295.00
http://statistics.data.gov.uk/id/local-authority-district/23UB,Cheltenham Borough Council,450827,20172,COTSWOLD DRAIN SERVICES LTD,C-C22120-3104,Spts/Open Space-Sports & play equipment,03-Jun-11,260.00
http://statistics.data.gov.uk/id/local-authority-district/23UB,Cheltenham Borough Council,450827,20172,COTSWOLD DRAIN SERVICES LTD,C-C22120-3104,Spts/Open Space-Sports & play equipment,03-Jun-11,80.00
http://statistics.data.gov.uk/id/local-authority-district/23UB,Cheltenham Borough Council,450957,20189,COTSWOLD DRAIN SERVICES LTD,C-L21100-1809,Town Hall-RM-sanitary works,03-Jun-11,68.00
http://statistics.data.gov.uk/id/local-authority-district/23UB,Cheltenham Borough Council,450956,20020,COTSWOLD DRAIN SERVICES LTD,C-L21200-1809,Pump Room-RM-sanitary works,03-Jun-11,98.00
http://statistics.data.gov.uk/id/local-authority-district/23UB,Cheltenham Borough Council,452408,129,COTSWOLD CONSERVATION BOARD,C-B51140-3817,Strategic Plann-Grants-A.O.N.B.,29-Jun-11,"3,774.00"
http://statistics.data.gov.uk/id/local-authority-district/23UB,Cheltenham Borough Council,451986,P0119/08,COTSWOLD ESTATES & GARDENS,C-LC6015-C405,LeckhamptonHill-Specialist Contractor,22-Jun-11,"9,637.84"
http://statistics.data.gov.uk/id/local-authority-district/23UB,Cheltenham Borough Council,451217,SETTLEMENT,MRS R CREED T/A HOWLERS COMEDY CLUB,C-N13125-9205,ASH Ledger-Town Hall Invoices Paid,10-Jun-11,-390.05
http://statistics.data.gov.uk/id/local-authority-district/23UB,Cheltenham Borough Council,451217,SETTLEMENT,MRS R CREED T/A HOWLERS COMEDY CLUB,C-Z12210-9138,Box Off A/C-TH Hirers Tkt Pd out,10-Jun-11,"1,883.00"
http://statistics.data.gov.uk/id/local-authority-district/23UB,Cheltenham Borough Council,451726,797407,CRIMINAL RECORDS BUREAU,C-A21500-3501,Licensing-Hire of outside services,22-Jun-11,"1,108.00"
http://statistics.data.gov.uk/id/local-authority-district/23UB,Cheltenham Borough Council,451726,797407,CRIMINAL RECORDS BUREAU,C-L11500-3501,Rec Facilities-Hire of outside services,22-Jun-11,88.00
http://statistics.data.gov.uk/id/local-authority-district/23UB,Cheltenham Borough Council,451726,797407,CRIMINAL RECORDS BUREAU,C-L16100-3501,Holiday Rec-Hire of outside services,22-Jun-11,44.00
http://statistics.data.gov.uk/id/local-authority-district/23UB,Cheltenham Borough Council,452385,CONTRIBUTION,P J CROOK,C-L41100-3256,AG & M-Fine Form Horse Parade exp   ,29-Jun-11,750.00
http://statistics.data.gov.uk/id/local-authority-district/23UB,Cheltenham Borough Council,452122,PSO2691,CSS POOLS AND LEISURE,C-L11500-3167,Rec Facilities-Maintenance Agreements,24-Jun-11,3.11
http://statistics.data.gov.uk/id/local-authority-district/23UB,Cheltenham Borough Council,452122,PSO2691,CSS POOLS AND LEISURE,C-L11500-3167,Rec Facilities-Maintenance Agreements,24-Jun-11,57.52
http://statistics.data.gov.uk/id/local-authority-district/23UB,Cheltenham Borough Council,452122,PSO2691,CSS POOLS AND LEISURE,C-L11500-3167,Rec Facilities-Maintenance Agreements,24-Jun-11,11.98
http://statistics.data.gov.uk/id/local-authority-district/23UB,Cheltenham Borough Council,452122,PSO2691,CSS POOLS AND LEISURE,C-L11500-3167,Rec Facilities-Maintenance Agreements,24-Jun-11,2.48
http://statistics.data.gov.uk/id/local-authority-district/23UB,Cheltenham Borough Council,452122,PSO2691,CSS POOLS AND LEISURE,C-L11500-3167,Rec Facilities-Maintenance Agreements,24-Jun-11,11.00
http://statistics.data.gov.uk/id/local-authority-district/23UB,Cheltenham Borough Council,452122,PSO2691,CSS POOLS AND LEISURE,C-L11500-3167,Rec Facilities-Maintenance Agreements,24-Jun-11,121.50
http://statistics.data.gov.uk/id/local-authority-district/23UB,Cheltenham Borough Council,452122,PSO2691,CSS POOLS AND LEISURE,C-L11500-3167,Rec Facilities-Maintenance Agreements,24-Jun-11,452.00
http://statistics.data.gov.uk/id/local-authority-district/23UB,Cheltenham Borough Council,451646,2110590,DATA TRACK TECHNOLOGY PLC,C-D11820-3501,IT Infrastructu-Hire of outside services,20-Jun-11,550.00
http://statistics.data.gov.uk/id/local-authority-district/23UB,Cheltenham Borough Council,451646,2110590,DATA TRACK TECHNOLOGY PLC,C-D11820-3501,IT Infrastructu-Hire of outside services,20-Jun-11,600.00
http://statistics.data.gov.uk/id/local-authority-district/23UB,Cheltenham Borough Council,451646,2110590,DATA TRACK TECHNOLOGY PLC,C-D11820-3501,IT Infrastructu-Hire of outside services,20-Jun-11,550.00
http://statistics.data.gov.uk/id/local-authority-district/23UB,Cheltenham Borough Council,452257,900068366,DAVIS LANGDON LLP,C-LC4006-C711,AG&M Dev Scheme-External - QS  ,24-Jun-11,"8,000.00"
http://statistics.data.gov.uk/id/local-authority-district/23UB,Cheltenham Borough Council,450866,1224957,DECENT AND SAFE HOMES PROJECT (DASH),C-H22600-0204,Community Servs-Training fees/exp (Prof),03-Jun-11,600.00
http://statistics.data.gov.uk/id/local-authority-district/23UB,Cheltenham Borough Council,452324,7401846557,DELL COMPUTER CORPORATION LTD,C-D11820-3660,IT Infrastructu-Hardware PC & Servers,29-Jun-11,578.90
http://statistics.data.gov.uk/id/local-authority-district/23UB,Cheltenham Borough Council,452325,7401848127,DELL COMPUTER CORPORATION LTD,C-D11820-3660,IT Infrastructu-Hardware PC & Servers,29-Jun-11,578.90
http://statistics.data.gov.uk/id/local-authority-district/23UB,Cheltenham Borough Council,451400,39267,DELAWARE COMMUNICATIONS PLC,C-E61500-3103,CCTV/TC Safety-Equipment repairs & maint,15-Jun-11,"1,419.17"
http://statistics.data.gov.uk/id/local-authority-district/23UB,Cheltenham Borough Council,451405,DE10558988,DENNIS EAGLE,C-C24100-3582,Fleet Maint-DSO Invoices,15-Jun-11,19.26
http://statistics.data.gov.uk/id/local-authority-district/23UB,Cheltenham Borough Council,451517,DE10558651,DENNIS EAGLE,C-C24100-3582,Fleet Maint-DSO Invoices,15-Jun-11,181.86
http://statistics.data.gov.uk/id/local-authority-district/23UB,Cheltenham Borough Council,451516,de10558652,DENNIS EAGLE,C-C24100-3582,Fleet Maint-DSO Invoices,15-Jun-11,121.68
http://statistics.data.gov.uk/id/local-authority-district/23UB,Cheltenham Borough Council,451415,DE10559306,DENNIS EAGLE,C-C24100-3582,Fleet Maint-DSO Invoices,15-Jun-11,216.84
http://statistics.data.gov.uk/id/local-authority-district/23UB,Cheltenham Borough Council,452138,013.11-17 LN0115,DEWHURST MACFARLANE & PARTNERS,C-LC4006-C702,AG&M Dev Scheme-CBC - Engineers,24-Jun-11,"2,200.00"
http://statistics.data.gov.uk/id/local-authority-district/23UB,Cheltenham Borough Council,450880,BD4325,DIRECT PUBLICITY,C-L21100-3920,Town Hall-Advertising,03-Jun-11,630.00
http://statistics.data.gov.uk/id/local-authority-district/23UB,Cheltenham Borough Council,450881,607894,DIRECTA UK LIMITED,C-L21100-3101,Town Hall-Equipment purchases,03-Jun-11,349.20
http://statistics.data.gov.uk/id/local-authority-district/23UB,Cheltenham Borough Council,450884,608175,DIRECTA UK LIMITED,C-L21100-3101,Town Hall-Equipment purchases,03-Jun-11,19.00
http://statistics.data.gov.uk/id/local-authority-district/23UB,Cheltenham Borough Council,450883,609114,DIRECTA UK LIMITED,C-L21100-3101,Town Hall-Equipment purchases,03-Jun-11,50.40
http://statistics.data.gov.uk/id/local-authority-district/23UB,Cheltenham Borough Council,450881,607894,DIRECTA UK LIMITED,C-L21100-3101,Town Hall-Equipment purchases,03-Jun-11,19.00
http://statistics.data.gov.uk/id/local-authority-district/23UB,Cheltenham Borough Council,450881,607894,DIRECTA UK LIMITED,C-L21100-3101,Town Hall-Equipment purchases,03-Jun-11,232.80
http://statistics.data.gov.uk/id/local-authority-district/23UB,Cheltenham Borough Council,452151,901007393,DORMA UK LTD,C-D13100-1114,Muni Off Blgs-Security systems,24-Jun-11,29.72
http://statistics.data.gov.uk/id/local-authority-district/23UB,Cheltenham Borough Council,452151,901007393,DORMA UK LTD,C-D14100-1114,Depot Building-Security systems,24-Jun-11,59.41
http://statistics.data.gov.uk/id/local-authority-district/23UB,Cheltenham Borough Council,452151,901007393,DORMA UK LTD,C-E21400-3103,Shopmobility-Equipment repairs & maint,24-Jun-11,29.70
http://statistics.data.gov.uk/id/local-authority-district/23UB,Cheltenham Borough Council,452151,901007393,DORMA UK LTD,C-E63100-1114,Cemetery & Crem-Security systems,24-Jun-11,59.41
http://statistics.data.gov.uk/id/local-authority-district/23UB,Cheltenham Borough Council,452151,901007393,DORMA UK LTD,C-L11500-1114,Rec Facilities-Security systems       ,24-Jun-11,29.70
http://statistics.data.gov.uk/id/local-authority-district/23UB,Cheltenham Borough Council,452151,901007393,DORMA UK LTD,C-L11500-1114,Rec Facilities-Security systems       ,24-Jun-11,116.39
http://statistics.data.gov.uk/id/local-authority-district/23UB,Cheltenham Borough Council,452151,901007393,DORMA UK LTD,C-L21100-1114,Town Hall-Security systems,24-Jun-11,59.41
http://statistics.data.gov.uk/id/local-authority-district/23UB,Cheltenham Borough Council,452151,901007393,DORMA UK LTD,C-L21200-1114,Pump Room-Security systems,24-Jun-11,59.41
http://statistics.data.gov.uk/id/local-authority-district/23UB,Cheltenham Borough Council,452151,901007393,DORMA UK LTD,C-L41100-1114,AG & M-Security systems,24-Jun-11,59.41
http://statistics.data.gov.uk/id/local-authority-district/23UB,Cheltenham Borough Council,451150,300311,DORCHESTER HOUSE TRUST,C-H22400-5204,Homelessness-Provision of accommo(B&B),08-Jun-11,987.19
http://statistics.data.gov.uk/id/local-authority-district/23UB,Cheltenham Borough Council,451525,413215,DTZ,C-E21100-1106,Car Prks-Off St-Reg Arcade-fixed mnt cst,15-Jun-11,"14,250.00"
http://statistics.data.gov.uk/id/local-authority-district/23UB,Cheltenham Borough Council,437608,PLAY DAY,DUNTON STABLES,C-L16100-3178,Holiday Rec-Big Lottery Fund Expenditure,30-Jun-11,550.00
http://statistics.data.gov.uk/id/local-authority-district/23UB,Cheltenham Borough Council,437608,PLAY DAY,DUNTON STABLES,C-L16100-3178,Holiday Rec-Big Lottery Fund Expenditure,30-Jun-11,550.00
http://statistics.data.gov.uk/id/local-authority-district/23UB,Cheltenham Borough Council,452598,PLAY DAY,DUNTON STABLES,C-L16100-3178,Holiday Rec-Big Lottery Fund Expenditure,30-Jun-11,-550.00
http://statistics.data.gov.uk/id/local-authority-district/23UB,Cheltenham Borough Council,452208,0000070978,EARLEY ORNAMENTALS LTD,C-C22140-3127,Nursery-Materials-Bedding,24-Jun-11,122.41
http://statistics.data.gov.uk/id/local-authority-district/23UB,Cheltenham Borough Council,452228,0000071590,EARLEY ORNAMENTALS LTD,C-C22140-3127,Nursery-Materials-Bedding,24-Jun-11,63.32
http://statistics.data.gov.uk/id/local-authority-district/23UB,Cheltenham Borough Council,452227,0000071589,EARLEY ORNAMENTALS LTD,C-C22140-3127,Nursery-Materials-Bedding,24-Jun-11,14.25
http://statistics.data.gov.uk/id/local-authority-district/23UB,Cheltenham Borough Council,452226,0000071588,EARLEY ORNAMENTALS LTD,C-C22140-3127,Nursery-Materials-Bedding,24-Jun-11,28.50
http://statistics.data.gov.uk/id/local-authority-district/23UB,Cheltenham Borough Council,452225,0000069811,EARLEY ORNAMENTALS LTD,C-C22140-3127,Nursery-Materials-Bedding,24-Jun-11,293.90
http://statistics.data.gov.uk/id/local-authority-district/23UB,Cheltenham Borough Council,451471,20110000000/9711,C B RICHARD ELLIS,C-D13550-1501,Area Off -E.Hse-Rents,15-Jun-11,651.26
http://statistics.data.gov.uk/id/local-authority-district/23UB,Cheltenham Borough Council,452102,201100000518/971,C B RICHARD ELLIS,C-D13550-1501,Area Off -E.Hse-Rents,24-Jun-11,394.64
http://statistics.data.gov.uk/id/local-authority-district/23UB,Cheltenham Borough Council,452104,201100000418/971,C B RICHARD ELLIS,C-D13550-1501,Area Off -E.Hse-Rents,24-Jun-11,"17,170.50"
http://statistics.data.gov.uk/id/local-authority-district/23UB,Cheltenham Borough Council,451204,20262,ELLIS CRANE HIRE LTD,C-PM0060-R020,Depot-Mechanical & Electrical Works,08-Jun-11,"1,050.00"
http://statistics.data.gov.uk/id/local-authority-district/23UB,Cheltenham Borough Council,451155,004969,MISS DAWN EMBREY,C-H22400-5204,Homelessness-Provision of accommo(B&B),08-Jun-11,250.30
http://statistics.data.gov.uk/id/local-authority-district/23UB,Cheltenham Borough Council,451153,004974,MISS DAWN EMBREY,C-H22400-5204,Homelessness-Provision of accommo(B&B),08-Jun-11,250.30
http://statistics.data.gov.uk/id/local-authority-district/23UB,Cheltenham Borough Council,451154,004973,MISS DAWN EMBREY,C-H22400-5204,Homelessness-Provision of accommo(B&B),08-Jun-11,125.15
http://statistics.data.gov.uk/id/local-authority-district/23UB,Cheltenham Borough Council,451419,004988,MISS DAWN EMBREY,C-H22400-5204,Homelessness-Provision of accommo(B&B),15-Jun-11,625.75
http://statistics.data.gov.uk/id/local-authority-district/23UB,Cheltenham Borough Council,451420,004982,MISS DAWN EMBREY,C-H22400-5204,Homelessness-Provision of accommo(B&B),15-Jun-11,500.60
http://statistics.data.gov.uk/id/local-authority-district/23UB,Cheltenham Borough Council,451440,8892,EMMDEE BUILDING SERVICES,C-C22110-1801,Parks & Gardens-RM-Electrical repairs,15-Jun-11,39.51
http://statistics.data.gov.uk/id/local-authority-district/23UB,Cheltenham Borough Council,451442,8895,EMMDEE BUILDING SERVICES,C-D13100-1801,Muni Off Blgs-RM-Electrical repairs,15-Jun-11,39.37
http://statistics.data.gov.uk/id/local-authority-district/23UB,Cheltenham Borough Council,451443,8904,EMMDEE BUILDING SERVICES,C-D13100-1801,Muni Off Blgs-RM-Electrical repairs,15-Jun-11,45.00
http://statistics.data.gov.uk/id/local-authority-district/23UB,Cheltenham Borough Council,451447,8809,EMMDEE BUILDING SERVICES,C-D13100-1801,Muni Off Blgs-RM-Electrical repairs,15-Jun-11,98.48
http://statistics.data.gov.uk/id/local-authority-district/23UB,Cheltenham Borough Council,451449,8806,EMMDEE BUILDING SERVICES,C-D13100-1801,Muni Off Blgs-RM-Electrical repairs,15-Jun-11,45.00
http://statistics.data.gov.uk/id/local-authority-district/23UB,Cheltenham Borough Council,451445,8909,EMMDEE BUILDING SERVICES,C-D30200-1801,Misc Props & Ld-RM-Electrical repairs,15-Jun-11,75.36
http://statistics.data.gov.uk/id/local-authority-district/23UB,Cheltenham Borough Council,451441,8893,EMMDEE BUILDING SERVICES,C-L11500-1801,Rec Facilities-RM-Electrical repairs,15-Jun-11,67.50
http://statistics.data.gov.uk/id/local-authority-district/23UB,Cheltenham Borough Council,451444,8906,EMMDEE BUILDING SERVICES,C-L11500-1801,Rec Facilities-RM-Electrical repairs,15-Jun-11,50.62
http://statistics.data.gov.uk/id/local-authority-district/23UB,Cheltenham Borough Council,451448,8811,EMMDEE BUILDING SERVICES,C-L11500-1801,Rec Facilities-RM-Electrical repairs,15-Jun-11,78.75
http://statistics.data.gov.uk/id/local-authority-district/23UB,Cheltenham Borough Council,451446,8808,EMMDEE BUILDING SERVICES,C-L11500-1801,Rec Facilities-RM-Electrical repairs,15-Jun-11,112.50
http://statistics.data.gov.uk/id/local-authority-district/23UB,Cheltenham Borough Council,452088,DEC021,ENERGY ASSESSMENT SERVICES,C-D13100-1801,Muni Off Blgs-RM-Electrical repairs,24-Jun-11,120.00
http://statistics.data.gov.uk/id/local-authority-district/23UB,Cheltenham Borough Council,452088,DEC021,ENERGY ASSESSMENT SERVICES,C-D13100-1801,Muni Off Blgs-RM-Electrical repairs,24-Jun-11,120.00
http://statistics.data.gov.uk/id/local-authority-district/23UB,Cheltenham Borough Council,452088,DEC021,ENERGY ASSESSMENT SERVICES,C-D13100-1801,Muni Off Blgs-RM-Electrical repairs,24-Jun-11,120.00
http://statistics.data.gov.uk/id/local-authority-district/23UB,Cheltenham Borough Council,452088,DEC021,ENERGY ASSESSMENT SERVICES,C-D13100-1801,Muni Off Blgs-RM-Electrical repairs,24-Jun-11,120.00
http://statistics.data.gov.uk/id/local-authority-district/23UB,Cheltenham Borough Council,452088,DEC021,ENERGY ASSESSMENT SERVICES,C-D13100-1801,Muni Off Blgs-RM-Electrical repairs,24-Jun-11,120.00
http://statistics.data.gov.uk/id/local-authority-district/23UB,Cheltenham Borough Council,450547,1865,ENFORCE TECHNOLOGY,C-D11820-3665,IT Infrastructu-Maintenance/Repairs,01-Jun-11,"1,431.26"
http://statistics.data.gov.uk/id/local-authority-district/23UB,Cheltenham Borough Council,450547,1865,ENFORCE TECHNOLOGY,C-D11820-3665,IT Infrastructu-Maintenance/Repairs,01-Jun-11,738.00
http://statistics.data.gov.uk/id/local-authority-district/23UB,Cheltenham Borough Council,450547,1865,ENFORCE TECHNOLOGY,C-D11820-3665,IT Infrastructu-Maintenance/Repairs,01-Jun-11,570.63
http://statistics.data.gov.uk/id/local-authority-district/23UB,Cheltenham Borough Council,450942,WARDEN HILL FL,ENVEX CONTRACTORS LTD,C-D21250-3973,Civil Emergency-EA FDGIA allocation,03-Jun-11,"100,027.65"
http://statistics.data.gov.uk/id/local-authority-district/23UB,Cheltenham Borough Council,451998,WHFA/2150/03,ENVEX CONTRACTORS LTD,C-D21250-3973,Civil Emergency-EA FDGIA allocation,24-Jun-11,"94,947.67"
http://statistics.data.gov.uk/id/local-authority-district/23UB,Cheltenham Borough Council,450934,GRANT REIMBUR,ENVIRONMENT AGENCY,C-E61600-3179,Contaminatd Lnd-Marle Hill revenue expen,03-Jun-11,"24,749.00"
http://statistics.data.gov.uk/id/local-authority-district/23UB,Cheltenham Borough Council,451706,2945,ENVIRONMENTAL MANAGEMENT SOLUTIONS LTD,C-HC4865-C302,Asbestos Mngmnt-Building Contractor    ,20-Jun-11,"8,420.00"
http://statistics.data.gov.uk/id/local-authority-district/23UB,Cheltenham Borough Council,450875,301054,FACELIFT,C-E61350-3222,Pest Control-Seagull reduction programme,03-Jun-11,950.00
http://statistics.data.gov.uk/id/local-authority-district/23UB,Cheltenham Borough Council,450876,301847,FACELIFT,C-E61350-3222,Pest Control-Seagull reduction programme,03-Jun-11,950.00
http://statistics.data.gov.uk/id/local-authority-district/23UB,Cheltenham Borough Council,450876,301847,FACELIFT,C-E61350-3222,Pest Control-Seagull reduction programme,03-Jun-11,"1,000.00"
http://statistics.data.gov.uk/id/local-authority-district/23UB,Cheltenham Borough Council,450875,301054,FACELIFT,C-E61350-3222,Pest Control-Seagull reduction programme,03-Jun-11,475.00
http://statistics.data.gov.uk/id/local-authority-district/23UB,Cheltenham Borough Council,451402,302477,FACELIFT,C-E61350-3222,Pest Control-Seagull reduction programme,15-Jun-11,950.00
http://statistics.data.gov.uk/id/local-authority-district/23UB,Cheltenham Borough Council,451030,971,FAIRFORD TREE SERVICES,C-C22110-1305,Parks & Gardens-Tree surgery,08-Jun-11,"1,000.00"
http://statistics.data.gov.uk/id/local-authority-district/23UB,Cheltenham Borough Council,451030,971,FAIRFORD TREE SERVICES,C-C22110-1312,Parks & Gardens-Annual felling prog,08-Jun-11,650.00
http://statistics.data.gov.uk/id/local-authority-district/23UB,Cheltenham Borough Council,451030,971,FAIRFORD TREE SERVICES,C-C22120-1305,Spts/Open Space-Tree surgery,08-Jun-11,500.00
http://statistics.data.gov.uk/id/local-authority-district/23UB,Cheltenham Borough Council,451030,971,FAIRFORD TREE SERVICES,C-C22120-1312,Spts/Open Space-Annual felling prog,08-Jun-11,"1,500.00"
http://statistics.data.gov.uk/id/local-authority-district/23UB,Cheltenham Borough Council,451563,FP100379144,FITNESS PROFESSIONALS LIMITED,C-L11500-3101,Rec Facilities-Equipment purchases,15-Jun-11,396.00
http://statistics.data.gov.uk/id/local-authority-district/23UB,Cheltenham Borough Council,451563,FP100379144,FITNESS PROFESSIONALS LIMITED,C-L11500-3101,Rec Facilities-Equipment purchases,15-Jun-11,127.60
http://statistics.data.gov.uk/id/local-authority-district/23UB,Cheltenham Borough Council,451563,FP100379144,FITNESS PROFESSIONALS LIMITED,C-L11500-3101,Rec Facilities-Equipment purchases,15-Jun-11,47.70
http://statistics.data.gov.uk/id/local-authority-district/23UB,Cheltenham Borough Council,451563,FP100379144,FITNESS PROFESSIONALS LIMITED,C-L11500-3101,Rec Facilities-Equipment purchases,15-Jun-11,14.30
http://statistics.data.gov.uk/id/local-authority-district/23UB,Cheltenham Borough Council,451563,FP100379144,FITNESS PROFESSIONALS LIMITED,C-L11500-3101,Rec Facilities-Equipment purchases,15-Jun-11,190.00
http://statistics.data.gov.uk/id/local-authority-district/23UB,Cheltenham Borough Council,451563,FP100379144,FITNESS PROFESSIONALS LIMITED,C-L11500-3101,Rec Facilities-Equipment purchases,15-Jun-11,135.58
http://statistics.data.gov.uk/id/local-authority-district/23UB,Cheltenham Borough Council,451563,FP100379144,FITNESS PROFESSIONALS LIMITED,C-L11500-3101,Rec Facilities-Equipment purchases,15-Jun-11,-396.00
http://statistics.data.gov.uk/id/local-authority-district/23UB,Cheltenham Borough Council,451566,FP100377649,FITNESS PROFESSIONALS LIMITED,C-L11500-3890,Rec Facilities-Subscriptions - general,15-Jun-11,84.61
http://statistics.data.gov.uk/id/local-authority-district/23UB,Cheltenham Borough Council,451566,FP100377649,FITNESS PROFESSIONALS LIMITED,C-L11500-3890,Rec Facilities-Subscriptions - general,15-Jun-11,30.03
http://statistics.data.gov.uk/id/local-authority-district/23UB,Cheltenham Borough Council,451566,FP100377649,FITNESS PROFESSIONALS LIMITED,C-L11500-3890,Rec Facilities-Subscriptions - general,15-Jun-11,54.99
http://statistics.data.gov.uk/id/local-authority-district/23UB,Cheltenham Borough Council,451566,FP100377649,FITNESS PROFESSIONALS LIMITED,C-L11500-3890,Rec Facilities-Subscriptions - general,15-Jun-11,54.99
http://statistics.data.gov.uk/id/local-authority-district/23UB,Cheltenham Borough Council,450893,SI/120509,FLEET LINE MARKERS LTD,C-C22120-3101,Spts/Open Space-Equipment purchases,03-Jun-11,112.78
http://statistics.data.gov.uk/id/local-authority-district/23UB,Cheltenham Borough Council,450893,SI/120509,FLEET LINE MARKERS LTD,C-C22120-3101,Spts/Open Space-Equipment purchases,03-Jun-11,9.40
http://statistics.data.gov.uk/id/local-authority-district/23UB,Cheltenham Borough Council,450892,SI/120568,FLEET LINE MARKERS LTD,C-C22440-3121,GCC Schools-Materials-Contract,03-Jun-11,"1,755.00"
http://statistics.data.gov.uk/id/local-authority-district/23UB,Cheltenham Borough Council,450680,1898,FORRESTER ACCESS LTD,C-H4209G-1104,Gen Wks 2209-Council House repairs,01-Jun-11,"1,375.00"
http://statistics.data.gov.uk/id/local-authority-district/23UB,Cheltenham Borough Council,452402,Redacted,Redacted,C-D24200-3501,Gottingen Sport-Hire of outside services,29-Jun-11,570.00
http://statistics.data.gov.uk/id/local-authority-district/23UB,Cheltenham Borough Council,450961,12113,FRITZ FRYER ANTIQUE LIGHTING,C-PM0030-R022,Pitt.Pump Room-Electrical Works,03-Jun-11,"2,157.00"
http://statistics.data.gov.uk/id/local-authority-district/23UB,Cheltenham Borough Council,452409,61,F T LEISURE,C-L11500-3167,Rec Facilities-Maintenance Agreements,29-Jun-11,"1,100.00"
http://statistics.data.gov.uk/id/local-authority-district/23UB,Cheltenham Borough Council,452410,45,F T LEISURE,C-L11500-3167,Rec Facilities-Maintenance Agreements,29-Jun-11,654.00
http://statistics.data.gov.uk/id/local-authority-district/23UB,Cheltenham Borough Council,451458,5185,FUTRA LTD,C-C24150-3170,Fleet Managemnt-Fuel system maintenance,15-Jun-11,904.00
http://statistics.data.gov.uk/id/local-authority-district/23UB,Cheltenham Borough Council,451668,13736,GG COMPACTOR SERVICING LIMITED,C-C23120-3103,Recycling Cntr-Equipment repairs & maint,20-Jun-11,7.50
http://statistics.data.gov.uk/id/local-authority-district/23UB,Cheltenham Borough Council,451668,13736,GG COMPACTOR SERVICING LIMITED,C-C23120-3103,Recycling Cntr-Equipment repairs & maint,20-Jun-11,200.00
http://statistics.data.gov.uk/id/local-authority-district/23UB,Cheltenham Borough Council,451668,13736,GG COMPACTOR SERVICING LIMITED,C-C23120-3103,Recycling Cntr-Equipment repairs & maint,20-Jun-11,375.00
http://statistics.data.gov.uk/id/local-authority-district/23UB,Cheltenham Borough Council,450682,RND1179/04/11,GILLMANS SERVICE,C-H33400-3102,Sheltered.Hsg-Equipment rental,01-Jun-11,60.09
http://statistics.data.gov.uk/id/local-authority-district/23UB,Cheltenham Borough Council,450685,RND1143/04/11,GILLMANS SERVICE,C-H33400-3102,Sheltered.Hsg-Equipment rental,01-Jun-11,46.60
http://statistics.data.gov.uk/id/local-authority-district/23UB,Cheltenham Borough Council,450684,RND1144/04/11,GILLMANS SERVICE,C-H33400-3102,Sheltered.Hsg-Equipment rental,01-Jun-11,75.00
http://statistics.data.gov.uk/id/local-authority-district/23UB,Cheltenham Borough Council,450683,RND1145/04/11,GILLMANS SERVICE,C-H33400-3102,Sheltered.Hsg-Equipment rental,01-Jun-11,46.60
http://statistics.data.gov.uk/id/local-authority-district/23UB,Cheltenham Borough Council,450686,RND1131/04/11,GILLMANS SERVICE,C-H33400-3102,Sheltered.Hsg-Equipment rental,01-Jun-11,43.00
http://statistics.data.gov.uk/id/local-authority-district/23UB,Cheltenham Borough Council,450688,RND1107/04/11,GILLMANS SERVICE,C-H33400-3102,Sheltered.Hsg-Equipment rental,01-Jun-11,33.95
http://statistics.data.gov.uk/id/local-authority-district/23UB,Cheltenham Borough Council,450690,RND190/04/11,GILLMANS SERVICE,C-H33400-3102,Sheltered.Hsg-Equipment rental,01-Jun-11,35.00
http://statistics.data.gov.uk/id/local-authority-district/23UB,Cheltenham Borough Council,450699,RND1180/04/11,GILLMANS SERVICE,C-H33400-3102,Sheltered.Hsg-Equipment rental,01-Jun-11,50.55
http://statistics.data.gov.uk/id/local-authority-district/23UB,Cheltenham Borough Council,450698,RND1212/04/11,GILLMANS SERVICE,C-H33400-3102,Sheltered.Hsg-Equipment rental,01-Jun-11,53.52
http://statistics.data.gov.uk/id/local-authority-district/23UB,Cheltenham Borough Council,450697,RND12/04/11,GILLMANS SERVICE,C-H33400-3102,Sheltered.Hsg-Equipment rental,01-Jun-11,72.30
http://statistics.data.gov.uk/id/local-authority-district/23UB,Cheltenham Borough Council,450696,RND115/04/11,GILLMANS SERVICE,C-H33400-3102,Sheltered.Hsg-Equipment rental,01-Jun-11,40.13
http://statistics.data.gov.uk/id/local-authority-district/23UB,Cheltenham Borough Council,450695,RND117/04/11,GILLMANS SERVICE,C-H33400-3102,Sheltered.Hsg-Equipment rental,01-Jun-11,40.13
http://statistics.data.gov.uk/id/local-authority-district/23UB,Cheltenham Borough Council,450694,RND124/04/11,GILLMANS SERVICE,C-H33400-3102,Sheltered.Hsg-Equipment rental,01-Jun-11,31.45
http://statistics.data.gov.uk/id/local-authority-district/23UB,Cheltenham Borough Council,450693,RND125/04/11,GILLMANS SERVICE,C-H33400-3102,Sheltered.Hsg-Equipment rental,01-Jun-11,34.15
http://statistics.data.gov.uk/id/local-authority-district/23UB,Cheltenham Borough Council,450692,RND182/04/11,GILLMANS SERVICE,C-H33400-3102,Sheltered.Hsg-Equipment rental,01-Jun-11,73.65
http://statistics.data.gov.uk/id/local-authority-district/23UB,Cheltenham Borough Council,450691,RND187/04/11,GILLMANS SERVICE,C-H33400-3102,Sheltered.Hsg-Equipment rental,01-Jun-11,141.90
http://statistics.data.gov.uk/id/local-authority-district/23UB,Cheltenham Borough Council,450708,RND1203/04/11,GILLMANS SERVICE,C-H33400-3102,Sheltered.Hsg-Equipment rental,01-Jun-11,59.65
http://statistics.data.gov.uk/id/local-authority-district/23UB,Cheltenham Borough Council,450701,RND1211/04/11,GILLMANS SERVICE,C-H33400-3102,Sheltered.Hsg-Equipment rental,01-Jun-11,62.62
http://statistics.data.gov.uk/id/local-authority-district/23UB,Cheltenham Borough Council,450700,RND1181/04/11,GILLMANS SERVICE,C-H33400-3102,Sheltered.Hsg-Equipment rental,01-Jun-11,48.15
http://statistics.data.gov.uk/id/local-authority-district/23UB,Cheltenham Borough Council,450689,RND192/04/11,GILLMANS SERVICE,C-H33400-3102,Sheltered.Hsg-Equipment rental,01-Jun-11,49.50
http://statistics.data.gov.uk/id/local-authority-district/23UB,Cheltenham Borough Council,450687,RND1126/04/11,GILLMANS SERVICE,C-H33400-3102,Sheltered.Hsg-Equipment rental,01-Jun-11,42.00
http://statistics.data.gov.uk/id/local-authority-district/23UB,Cheltenham Borough Council,451654,20799,LLOYDS TSB COMMERCIAL LTD,C-E21100-3501,Car Prks-Off St-Hire of outside services,20-Jun-11,"2,436.00"
http://statistics.data.gov.uk/id/local-authority-district/23UB,Cheltenham Borough Council,451655,20800,LLOYDS TSB COMMERCIAL LTD,C-E21100-3501,Car Prks-Off St-Hire of outside services,20-Jun-11,181.25
http://statistics.data.gov.uk/id/local-authority-district/23UB,Cheltenham Borough Council,451655,20800,LLOYDS TSB COMMERCIAL LTD,C-E21100-3501,Car Prks-Off St-Hire of outside services,20-Jun-11,58.00
http://statistics.data.gov.uk/id/local-authority-district/23UB,Cheltenham Borough Council,451654,20799,LLOYDS TSB COMMERCIAL LTD,C-E21100-3501,Car Prks-Off St-Hire of outside services,20-Jun-11,58.00
http://statistics.data.gov.uk/id/local-authority-district/23UB,Cheltenham Borough Council,451654,20799,LLOYDS TSB COMMERCIAL LTD,C-E21100-3501,Car Prks-Off St-Hire of outside services,20-Jun-11,420.50
http://statistics.data.gov.uk/id/local-authority-district/23UB,Cheltenham Borough Council,451654,20799,LLOYDS TSB COMMERCIAL LTD,C-E21100-3501,Car Prks-Off St-Hire of outside services,20-Jun-11,420.50
http://statistics.data.gov.uk/id/local-authority-district/23UB,Cheltenham Borough Council,451654,20799,LLOYDS TSB COMMERCIAL LTD,C-E21100-3501,Car Prks-Off St-Hire of outside services,20-Jun-11,58.00
http://statistics.data.gov.uk/id/local-authority-district/23UB,Cheltenham Borough Council,451654,20799,LLOYDS TSB COMMERCIAL LTD,C-E21100-3501,Car Prks-Off St-Hire of outside services,20-Jun-11,420.50
http://statistics.data.gov.uk/id/local-authority-district/23UB,Cheltenham Borough Council,451654,20799,LLOYDS TSB COMMERCIAL LTD,C-E21100-3501,Car Prks-Off St-Hire of outside services,20-Jun-11,58.00
http://statistics.data.gov.uk/id/local-authority-district/23UB,Cheltenham Borough Council,451729,23024,GLIDE MEDIA MARKETING,C-1T17F1-3527,BBC NOW-Distribution/Mailing        ,22-Jun-11,64.97
http://statistics.data.gov.uk/id/local-authority-district/23UB,Cheltenham Borough Council,451729,23024,GLIDE MEDIA MARKETING,C-1T17F1-3527,BBC NOW-Distribution/Mailing        ,22-Jun-11,64.97
http://statistics.data.gov.uk/id/local-authority-district/23UB,Cheltenham Borough Council,451729,23024,GLIDE MEDIA MARKETING,C-1T17F1-3527,BBC NOW-Distribution/Mailing        ,22-Jun-11,64.97
http://statistics.data.gov.uk/id/local-authority-district/23UB,Cheltenham Borough Council,451729,23024,GLIDE MEDIA MARKETING,C-1T17F1-3527,BBC NOW-Distribution/Mailing        ,22-Jun-11,64.97
http://statistics.data.gov.uk/id/local-authority-district/23UB,Cheltenham Borough Council,451729,23024,GLIDE MEDIA MARKETING,C-1T17F1-3527,BBC NOW-Distribution/Mailing        ,22-Jun-11,64.97
http://statistics.data.gov.uk/id/local-authority-district/23UB,Cheltenham Borough Council,451729,23024,GLIDE MEDIA MARKETING,C-1T17F1-3527,BBC NOW-Distribution/Mailing        ,22-Jun-11,64.97
http://statistics.data.gov.uk/id/local-authority-district/23UB,Cheltenham Borough Council,451729,23024,GLIDE MEDIA MARKETING,C-1T17F1-3527,BBC NOW-Distribution/Mailing        ,22-Jun-11,64.96
http://statistics.data.gov.uk/id/local-authority-district/23UB,Cheltenham Borough Council,451729,23024,GLIDE MEDIA MARKETING,C-1T17F1-3527,BBC NOW-Distribution/Mailing        ,22-Jun-11,64.96
http://statistics.data.gov.uk/id/local-authority-district/23UB,Cheltenham Borough Council,451729,23024,GLIDE MEDIA MARKETING,C-1T17F1-3527,BBC NOW-Distribution/Mailing        ,22-Jun-11,64.97
http://statistics.data.gov.uk/id/local-authority-district/23UB,Cheltenham Borough Council,450483,10898268,GLOUCESTER CITY COUNCIL,C-D35100-350A,Glos Airport-Consultants Fees,01-Jun-11,"1,552.05"
http://statistics.data.gov.uk/id/local-authority-district/23UB,Cheltenham Borough Council,449834,1800183687,GLOUCESTERSHIRE COUNTY COUNCIL,C-D21600-3503,Land Charges-Fees,01-Jun-11,"9,395.98"
http://statistics.data.gov.uk/id/local-authority-district/23UB,Cheltenham Borough Council,450715,1800183650,GLOUCESTERSHIRE COUNTY COUNCIL,C-C23100-3581,Refuse Collctn-Tipping charges,03-Jun-11,304.14
http://statistics.data.gov.uk/id/local-authority-district/23UB,Cheltenham Borough Council,450715,1800183650,GLOUCESTERSHIRE COUNTY COUNCIL,C-C23100-3581,Refuse Collctn-Tipping charges,03-Jun-11,544.99
http://statistics.data.gov.uk/id/local-authority-district/23UB,Cheltenham Borough Council,450715,1800183650,GLOUCESTERSHIRE COUNTY COUNCIL,C-C23100-3581,Refuse Collctn-Tipping charges,03-Jun-11,115.08
http://statistics.data.gov.uk/id/local-authority-district/23UB,Cheltenham Borough Council,450767,1800183835,GLOUCESTERSHIRE COUNTY COUNCIL,C-E36200-4528,On-St Car Prkng-Net income paid to GCC,03-Jun-11,"64,441.41"
http://statistics.data.gov.uk/id/local-authority-district/23UB,Cheltenham Borough Council,452336,1800187052 CO ED,GLOUCESTERSHIRE COUNTY COUNCIL,C-H22400-3501,Homelessness-Hire of outside services,29-Jun-11,666.66
http://statistics.data.gov.uk/id/local-authority-district/23UB,Cheltenham Borough Council,451732,NIGHT STOP,GLOUCESTERSHIRE NIGHTSTOP,C-H22300-3877,Housing Grants-Grants - One-Stop-Shop,22-Jun-11,"3,000.00"
http://statistics.data.gov.uk/id/local-authority-district/23UB,Cheltenham Borough Council,450643,COMMUNITY PRI,GLOUCESTERSHIRE COUNTY COUNCIL,C-D21970-3677,Parish Pride-Parish Council - Community,01-Jun-11,500.00
http://statistics.data.gov.uk/id/local-authority-district/23UB,Cheltenham Borough Council,450302,H4H CONCERT,Redacted,C-Z12310-3940,TIC Agency-External Event Payments,03-Jun-11,-29.00
http://statistics.data.gov.uk/id/local-authority-district/23UB,Cheltenham Borough Council,450302,H4H CONCERT,Redacted,C-Z12310-3940,TIC Agency-External Event Payments,03-Jun-11,580.00
http://statistics.data.gov.uk/id/local-authority-district/23UB,Cheltenham Borough Council,450478,46441,GOOCH GROUP LTD,C-D13100-1701,Muni Off Blgs-Cleaning     ,01-Jun-11,247.10
http://statistics.data.gov.uk/id/local-authority-district/23UB,Cheltenham Borough Council,450549,46268,GOOCH GROUP LTD,C-E21100-1701,Car Prks-Off St-Cleaning,01-Jun-11,90.00
http://statistics.data.gov.uk/id/local-authority-district/23UB,Cheltenham Borough Council,450550,45906,GOOCH GROUP LTD,C-E21100-1701,Car Prks-Off St-Cleaning,01-Jun-11,5.63
http://statistics.data.gov.uk/id/local-authority-district/23UB,Cheltenham Borough Council,450549,46268,GOOCH GROUP LTD,C-E21100-1701,Car Prks-Off St-Cleaning,01-Jun-11,70.00
http://statistics.data.gov.uk/id/local-authority-district/23UB,Cheltenham Borough Council,450549,46268,GOOCH GROUP LTD,C-E21100-1701,Car Prks-Off St-Cleaning,01-Jun-11,16.23
http://statistics.data.gov.uk/id/local-authority-district/23UB,Cheltenham Borough Council,450550,45906,GOOCH GROUP LTD,C-E21100-1701,Car Prks-Off St-Cleaning,01-Jun-11,70.00
http://statistics.data.gov.uk/id/local-authority-district/23UB,Cheltenham Borough Council,450550,45906,GOOCH GROUP LTD,C-E21100-1701,Car Prks-Off St-Cleaning,01-Jun-11,75.00
http://statistics.data.gov.uk/id/local-authority-district/23UB,Cheltenham Borough Council,450549,46268,GOOCH GROUP LTD,C-E21100-1701,Car Prks-Off St-Cleaning,01-Jun-11,75.00
http://statistics.data.gov.uk/id/local-authority-district/23UB,Cheltenham Borough Council,451541,46420,GOOCH GROUP LTD,C-C22110-3501,Parks & Gardens-Hire of outside services,15-Jun-11,272.50
http://statistics.data.gov.uk/id/local-authority-district/23UB,Cheltenham Borough Council,451541,46420,GOOCH GROUP LTD,C-C22110-3501,Parks & Gardens-Hire of outside services,15-Jun-11,3.00
http://statistics.data.gov.uk/id/local-authority-district/23UB,Cheltenham Borough Council,451541,46420,GOOCH GROUP LTD,C-C22110-3501,Parks & Gardens-Hire of outside services,15-Jun-11,45.00
http://statistics.data.gov.uk/id/local-authority-district/23UB,Cheltenham Borough Council,451459,46567,GOOCH GROUP LTD,C-D13100-1703,Muni Off Blgs-Window cleaning,15-Jun-11,90.00
http://statistics.data.gov.uk/id/local-authority-district/23UB,Cheltenham Borough Council,451550,46613,GOOCH GROUP LTD,C-E21100-1701,Car Prks-Off St-Cleaning,15-Jun-11,0.00
http://statistics.data.gov.uk/id/local-authority-district/23UB,Cheltenham Borough Council,451550,46613,GOOCH GROUP LTD,C-E21100-1701,Car Prks-Off St-Cleaning,15-Jun-11,0.00
http://statistics.data.gov.uk/id/local-authority-district/23UB,Cheltenham Borough Council,451550,46613,GOOCH GROUP LTD,C-E21100-1701,Car Prks-Off St-Cleaning,15-Jun-11,0.00
http://statistics.data.gov.uk/id/local-authority-district/23UB,Cheltenham Borough Council,451550,46613,GOOCH GROUP LTD,C-E21100-1701,Car Prks-Off St-Cleaning,15-Jun-11,70.00
http://statistics.data.gov.uk/id/local-authority-district/23UB,Cheltenham Borough Council,451550,46613,GOOCH GROUP LTD,C-E21100-1701,Car Prks-Off St-Cleaning,15-Jun-11,75.00
http://statistics.data.gov.uk/id/local-authority-district/23UB,Cheltenham Borough Council,451550,46613,GOOCH GROUP LTD,C-E21100-1701,Car Prks-Off St-Cleaning,15-Jun-11,5.63
http://statistics.data.gov.uk/id/local-authority-district/23UB,Cheltenham Borough Council,452074,6020,G P AERIALS LTD,C-H46550-1104,TV Aerials-Council House repairs,24-Jun-11,313.50
http://statistics.data.gov.uk/id/local-authority-district/23UB,Cheltenham Borough Council,452080,6210,G P AERIALS LTD,C-H46550-1104,TV Aerials-Council House repairs,24-Jun-11,61.50
http://statistics.data.gov.uk/id/local-authority-district/23UB,Cheltenham Borough Council,452082,6029,G P AERIALS LTD,C-H46550-1104,TV Aerials-Council House repairs,24-Jun-11,61.00
http://statistics.data.gov.uk/id/local-authority-district/23UB,Cheltenham Borough Council,452084,6025,G P AERIALS LTD,C-H46550-1104,TV Aerials-Council House repairs,24-Jun-11,66.50
http://statistics.data.gov.uk/id/local-authority-district/23UB,Cheltenham Borough Council,452083,6032,G P AERIALS LTD,C-H46550-1104,TV Aerials-Council House repairs,24-Jun-11,49.00
http://statistics.data.gov.uk/id/local-authority-district/23UB,Cheltenham Borough Council,452081,6042,G P AERIALS LTD,C-H46550-1104,TV Aerials-Council House repairs,24-Jun-11,49.00
http://statistics.data.gov.uk/id/local-authority-district/23UB,Cheltenham Borough Council,452079,6190,G P AERIALS LTD,C-H46550-1104,TV Aerials-Council House repairs,24-Jun-11,49.00
http://statistics.data.gov.uk/id/local-authority-district/23UB,Cheltenham Borough Council,452076,6188,G P AERIALS LTD,C-H46550-1104,TV Aerials-Council House repairs,24-Jun-11,54.00
http://statistics.data.gov.uk/id/local-authority-district/23UB,Cheltenham Borough Council,452077,6205,G P AERIALS LTD,C-H46550-1104,TV Aerials-Council House repairs,24-Jun-11,79.50
http://statistics.data.gov.uk/id/local-authority-district/23UB,Cheltenham Borough Council,452078,6211,G P AERIALS LTD,C-H46550-1104,TV Aerials-Council House repairs,24-Jun-11,61.50
http://statistics.data.gov.uk/id/local-authority-district/23UB,Cheltenham Borough Council,452075,6181,G P AERIALS LTD,C-H46550-1104,TV Aerials-Council House repairs,24-Jun-11,61.50
http://statistics.data.gov.uk/id/local-authority-district/23UB,Cheltenham Borough Council,450565,0135/11,GRAHAM HARPER ASSOCIATES,C-C22110-1301,Parks & Gardens-Routine grounds maint,01-Jun-11,"1,300.00"
http://statistics.data.gov.uk/id/local-authority-district/23UB,Cheltenham Borough Council,450456,210,GREENWAY PARTNERSHIP LIMITED,C-C23120-3501,Recycling Cntr-Hire of outside services,01-Jun-11,320.00
http://statistics.data.gov.uk/id/local-authority-district/23UB,Cheltenham Borough Council,450486,226,GREENWAY PARTNERSHIP LIMITED,C-D14100-1809,Depot Building-RM-sanitary works,01-Jun-11,67.50
http://statistics.data.gov.uk/id/local-authority-district/23UB,Cheltenham Borough Council,450457,509050,GREENWAY PARTNERSHIP LIMITED,C-D30200-1101,Misc Props & Ld-General building repairs,01-Jun-11,"2,520.00"
http://statistics.data.gov.uk/id/local-authority-district/23UB,Cheltenham Borough Council,450455,217,GREENWAY PARTNERSHIP LIMITED,C-E63100-1809,Cemetery & Crem-RM-sanitary works,01-Jun-11,45.00
http://statistics.data.gov.uk/id/local-authority-district/23UB,Cheltenham Borough Council,450458,207,GREENWAY PARTNERSHIP LIMITED,C-PM0040-R004,Recreation Cent-External Building Repair,01-Jun-11,532.00
http://statistics.data.gov.uk/id/local-authority-district/23UB,Cheltenham Borough Council,451186,222,GREENWAY PARTNERSHIP LIMITED,C-C22110-1809,Parks & Gardens-RM-sanitary works,08-Jun-11,117.50
http://statistics.data.gov.uk/id/local-authority-district/23UB,Cheltenham Borough Council,451188,224,GREENWAY PARTNERSHIP LIMITED,C-C22110-1809,Parks & Gardens-RM-sanitary works,08-Jun-11,225.00
http://statistics.data.gov.uk/id/local-authority-district/23UB,Cheltenham Borough Council,450989,218,GREENWAY PARTNERSHIP LIMITED,C-C22110-1809,Parks & Gardens-RM-sanitary works,08-Jun-11,125.00
http://statistics.data.gov.uk/id/local-authority-district/23UB,Cheltenham Borough Council,451191,227,GREENWAY PARTNERSHIP LIMITED,C-C22120-1809,Sports & Open S-RM-sanitary works,08-Jun-11,22.50
http://statistics.data.gov.uk/id/local-authority-district/23UB,Cheltenham Borough Council,451192,228,GREENWAY PARTNERSHIP LIMITED,C-C22120-1809,Sports & Open S-RM-sanitary works,08-Jun-11,33.50
http://statistics.data.gov.uk/id/local-authority-district/23UB,Cheltenham Borough Council,451193,240,GREENWAY PARTNERSHIP LIMITED,C-C23140-1801,Public Convnces-RM-Electrical repairs,08-Jun-11,274.50
http://statistics.data.gov.uk/id/local-authority-district/23UB,Cheltenham Borough Council,451189,238,GREENWAY PARTNERSHIP LIMITED,C-C23140-1809,Public Convnces-RM-sanitary works,08-Jun-11,33.75
http://statistics.data.gov.uk/id/local-authority-district/23UB,Cheltenham Borough Council,451190,209,GREENWAY PARTNERSHIP LIMITED,C-C23140-1809,Public Convnces-RM-sanitary works,08-Jun-11,39.37
http://statistics.data.gov.uk/id/local-authority-district/23UB,Cheltenham Borough Council,450990,219,GREENWAY PARTNERSHIP LIMITED,C-D13100-1809,Muni Off Blgs-RM-sanitary works,08-Jun-11,137.50
http://statistics.data.gov.uk/id/local-authority-district/23UB,Cheltenham Borough Council,450991,221,GREENWAY PARTNERSHIP LIMITED,C-D13100-1809,Muni Off Blgs-RM-sanitary works,08-Jun-11,33.75
http://statistics.data.gov.uk/id/local-authority-district/23UB,Cheltenham Borough Council,451187,223,GREENWAY PARTNERSHIP LIMITED,C-D30200-1809,Misc Props & Ld-RM-sanitary works,08-Jun-11,33.75
http://statistics.data.gov.uk/id/local-authority-district/23UB,Cheltenham Borough Council,450988,231,GREENWAY PARTNERSHIP LIMITED,C-PM0092-R022,Central Nursery-Electrical Works,08-Jun-11,"1,761.00"
http://statistics.data.gov.uk/id/local-authority-district/23UB,Cheltenham Borough Council,451981,1565,GREEN-FLOW,C-C22120-1809,Sports & Open S-RM-sanitary works,22-Jun-11,504.90
http://statistics.data.gov.uk/id/local-authority-district/23UB,Cheltenham Borough Council,451981,1565,GREEN-FLOW,C-C22120-1809,Sports & Open S-RM-sanitary works,22-Jun-11,8.25
http://statistics.data.gov.uk/id/local-authority-district/23UB,Cheltenham Borough Council,451908,90077,GRIMSHAW KINNEAR LTD,C-D14100-1101,Depot Building-General building repairs,22-Jun-11,"1,431.80"
http://statistics.data.gov.uk/id/local-authority-district/23UB,Cheltenham Borough Council,450774,C11/1718,GROUP FOR EDUCATION IN MUSEUMS,C-L41100-0204,AG & M-Training fees/exp (Prof),03-Jun-11,746.00
http://statistics.data.gov.uk/id/local-authority-district/23UB,Cheltenham Borough Council,451101,6894,GSB LOAMS,C-C22120-3121,Spts/Open Space-Materials-Contract,08-Jun-11,608.00
http://statistics.data.gov.uk/id/local-authority-district/23UB,Cheltenham Borough Council,450430,1105/05305,GULLIVER'S TRAVELS SELF DRIVE LTD,C-C24100-2702,Fleet Maint-Additional vehicle hire,01-Jun-11,575.00
http://statistics.data.gov.uk/id/local-authority-district/23UB,Cheltenham Borough Council,450915,1105/06196,GULLIVER'S TRAVELS SELF DRIVE LTD,C-C24100-2702,Fleet Maint-Additional vehicle hire,03-Jun-11,575.00
http://statistics.data.gov.uk/id/local-authority-district/23UB,Cheltenham Borough Council,451257,7017609,GVA GRIMLEY LLP,C-D35100-350A,Glos Airport-Consultants Fees,10-Jun-11,"1,500.00"
http://statistics.data.gov.uk/id/local-authority-district/23UB,Cheltenham Borough Council,451591,6587,HALAROSE LIMITED,C-D21300-3623,District Elects-Cmpter-sftwre lic purch,15-Jun-11,833.32
http://statistics.data.gov.uk/id/local-authority-district/23UB,Cheltenham Borough Council,451591,6587,HALAROSE LIMITED,C-D21400-3623,Electoral Regn-Cmpter-sftwre lic purch,15-Jun-11,833.32
http://statistics.data.gov.uk/id/local-authority-district/23UB,Cheltenham Borough Council,450705,5133,HALSALL  CONSTRUCTION LIMITED,C-HC4861-C302,Garage Imp-Building Contractor      ,01-Jun-11,"25,217.96"
http://statistics.data.gov.uk/id/local-authority-district/23UB,Cheltenham Borough Council,452258,5155,HALSALL  CONSTRUCTION LIMITED,C-HC4845-C302,Neighbrhd works-Building Contractor,24-Jun-11,"111,462.31"
http://statistics.data.gov.uk/id/local-authority-district/23UB,Cheltenham Borough Council,450479,3120,HAMILTONS CHARTERED SURVEYORS,C-D30200-3501,Misc Props & Ld-Hire of outside services,01-Jun-11,367.25
http://statistics.data.gov.uk/id/local-authority-district/23UB,Cheltenham Borough Council,450480,3109,HAMILTONS CHARTERED SURVEYORS,C-D30200-3501,Misc Props & Ld-Hire of outside services,01-Jun-11,495.88
http://statistics.data.gov.uk/id/local-authority-district/23UB,Cheltenham Borough Council,450972,Redacted,HANOVER HOUSING ASSOCIATION,C-H22300-3871,Housing Grants-Grants - Care & Repair,03-Jun-11,"9,739.00"
http://statistics.data.gov.uk/id/local-authority-district/23UB,Cheltenham Borough Council,450932,Redacted,HANOVER HOUSING ASSOCIATION,C-HC4100-C801,Dis.Adapt.HRA-Grants,03-Jun-11,"1,865.25"
http://statistics.data.gov.uk/id/local-authority-district/23UB,Cheltenham Borough Council,450788,Redacted,HANOVER HOUSING ASSOCIATION,C-HC4100-C801,Dis.Adapt.HRA-Grants,03-Jun-11,"4,426.88"
http://statistics.data.gov.uk/id/local-authority-district/23UB,Cheltenham Borough Council,450933,Redacted,HANOVER HOUSING ASSOCIATION,C-HC7440-C801,DFG.96.Act-Grants,03-Jun-11,"1,518.75"
http://statistics.data.gov.uk/id/local-authority-district/23UB,Cheltenham Borough Council,450787,Redacted,HANOVER HOUSING ASSOCIATION,C-HC7440-C801,DFG.96.Act-Grants,03-Jun-11,"4,150.00"
http://statistics.data.gov.uk/id/local-authority-district/23UB,Cheltenham Borough Council,450786,Redacted,HANOVER HOUSING ASSOCIATION,C-HC7440-C801,DFG.96.Act-Grants,03-Jun-11,"4,657.50"
http://statistics.data.gov.uk/id/local-authority-district/23UB,Cheltenham Borough Council,451176,Redacted,HANOVER HOUSING ASSOCIATION,C-HC7440-C801,DFG.96.Act-Grants,08-Jun-11,"15,240.71"
http://statistics.data.gov.uk/id/local-authority-district/23UB,Cheltenham Borough Council,451593,Redacted,HANOVER HOUSING ASSOCIATION,C-HC7440-C801,DFG.96.Act-Grants,15-Jun-11,"6,148.13"
http://statistics.data.gov.uk/id/local-authority-district/23UB,Cheltenham Borough Council,451594,Redacted,HANOVER HOUSING ASSOCIATION,C-HC7440-C801,DFG.96.Act-Grants,15-Jun-11,"1,518.75"
http://statistics.data.gov.uk/id/local-authority-district/23UB,Cheltenham Borough Council,452107,SIAL/00050616,HEREFORDSHIRE HOUSING LIMITED,C-H33400-1117,Sheltered.Hsg-Hereford City-Fees,24-Jun-11,"5,149.03"
http://statistics.data.gov.uk/id/local-authority-district/23UB,Cheltenham Borough Council,452109,SIAL/00050615,HEREFORDSHIRE HOUSING LIMITED,C-H33400-1117,Sheltered.Hsg-Hereford City-Fees,24-Jun-11,152.10
http://statistics.data.gov.uk/id/local-authority-district/23UB,Cheltenham Borough Council,452111,SIAL/00050614,HEREFORDSHIRE HOUSING LIMITED,C-H33400-1117,Sheltered.Hsg-Hereford City-Fees,24-Jun-11,141.96
http://statistics.data.gov.uk/id/local-authority-district/23UB,Cheltenham Borough Council,452116,SIAL/00050613,HEREFORDSHIRE HOUSING LIMITED,C-H33400-1117,Sheltered.Hsg-Hereford City-Fees,24-Jun-11,131.82
http://statistics.data.gov.uk/id/local-authority-district/23UB,Cheltenham Borough Council,452119,SIAL/00050611,HEREFORDSHIRE HOUSING LIMITED,C-H33400-1117,Sheltered.Hsg-Hereford City-Fees,24-Jun-11,147.03
http://statistics.data.gov.uk/id/local-authority-district/23UB,Cheltenham Borough Council,452121,SIAL/00050608,HEREFORDSHIRE HOUSING LIMITED,C-H33400-1117,Sheltered.Hsg-Hereford City-Fees,24-Jun-11,344.76
http://statistics.data.gov.uk/id/local-authority-district/23UB,Cheltenham Borough Council,452124,SIAL/00050606,HEREFORDSHIRE HOUSING LIMITED,C-H33400-1117,Sheltered.Hsg-Hereford City-Fees,24-Jun-11,192.66
http://statistics.data.gov.uk/id/local-authority-district/23UB,Cheltenham Borough Council,452132,SIAL/00050601,HEREFORDSHIRE HOUSING LIMITED,C-H33400-1117,Sheltered.Hsg-Hereford City-Fees,24-Jun-11,481.65
http://statistics.data.gov.uk/id/local-authority-district/23UB,Cheltenham Borough Council,452129,SIAL/00050602,HEREFORDSHIRE HOUSING LIMITED,C-H33400-1117,Sheltered.Hsg-Hereford City-Fees,24-Jun-11,182.52
http://statistics.data.gov.uk/id/local-authority-district/23UB,Cheltenham Borough Council,452128,IAL/00050603,HEREFORDSHIRE HOUSING LIMITED,C-H33400-1117,Sheltered.Hsg-Hereford City-Fees,24-Jun-11,243.36
http://statistics.data.gov.uk/id/local-authority-district/23UB,Cheltenham Borough Council,452126,SIAL/00050604,HEREFORDSHIRE HOUSING LIMITED,C-H33400-1117,Sheltered.Hsg-Hereford City-Fees,24-Jun-11,375.18
http://statistics.data.gov.uk/id/local-authority-district/23UB,Cheltenham Borough Council,452125,SIAL/00050605,HEREFORDSHIRE HOUSING LIMITED,C-H33400-1117,Sheltered.Hsg-Hereford City-Fees,24-Jun-11,45.63
http://statistics.data.gov.uk/id/local-authority-district/23UB,Cheltenham Borough Council,452123,SIAL/00050607,HEREFORDSHIRE HOUSING LIMITED,C-H33400-1117,Sheltered.Hsg-Hereford City-Fees,24-Jun-11,50.70
http://statistics.data.gov.uk/id/local-authority-district/23UB,Cheltenham Borough Council,452120,SIAL/00050609,HEREFORDSHIRE HOUSING LIMITED,C-H33400-1117,Sheltered.Hsg-Hereford City-Fees,24-Jun-11,283.92
http://statistics.data.gov.uk/id/local-authority-district/23UB,Cheltenham Borough Council,452117,SIAL/00050612,HEREFORDSHIRE HOUSING LIMITED,C-H33400-1117,Sheltered.Hsg-Hereford City-Fees,24-Jun-11,121.68
http://statistics.data.gov.uk/id/local-authority-district/23UB,Cheltenham Borough Council,452115,SIAL/00050610,HEREFORDSHIRE HOUSING LIMITED,C-H33400-1117,Sheltered.Hsg-Hereford City-Fees,24-Jun-11,456.30
http://statistics.data.gov.uk/id/local-authority-district/23UB,Cheltenham Borough Council,452322,6714471,HEWLETT PACKARD LIMITED,C-D11820-3660,IT Infrastructu-Hardware PC & Servers,29-Jun-11,"2,690.00"
http://statistics.data.gov.uk/id/local-authority-district/23UB,Cheltenham Borough Council,451644,19624,HOGE 100 BUSINESS SYSTEMS LTD,C-D12455-3623,CarPk Inc Colln-Cmpter-sftwre lic purch,20-Jun-11,"1,033.90"
http://statistics.data.gov.uk/id/local-authority-district/23UB,Cheltenham Borough Council,452294,1105019,HORTEC,C-C22140-3105,Nursery-Plant/tools(& Hire),29-Jun-11,925.00
http://statistics.data.gov.uk/id/local-authority-district/23UB,Cheltenham Borough Council,451041,4818,ICON NET LIMITED,C-L41100-3599,AG & M-Special Project,08-Jun-11,900.00
http://statistics.data.gov.uk/id/local-authority-district/23UB,Cheltenham Borough Council,451041,4818,ICON NET LIMITED,C-L41100-3599,AG & M-Special Project,08-Jun-11,"1,500.00"
http://statistics.data.gov.uk/id/local-authority-district/23UB,Cheltenham Borough Council,451045,4874,ICON NET LIMITED,C-L41100-3920,AG & M-Advertising,08-Jun-11,375.00
http://statistics.data.gov.uk/id/local-authority-district/23UB,Cheltenham Borough Council,451953,18805,IMPERIAL CIVIL ENFORCEMENT SOLUTIONS,C-E36200-3501,On-St Car Prkng-Hire of outside services,22-Jun-11,750.00
http://statistics.data.gov.uk/id/local-authority-district/23UB,Cheltenham Borough Council,451953,18805,IMPERIAL CIVIL ENFORCEMENT SOLUTIONS,C-E36200-3501,On-St Car Prkng-Hire of outside services,22-Jun-11,60.20
http://statistics.data.gov.uk/id/local-authority-district/23UB,Cheltenham Borough Council,451953,18805,IMPERIAL CIVIL ENFORCEMENT SOLUTIONS,C-E36200-3501,On-St Car Prkng-Hire of outside services,22-Jun-11,20.00
http://statistics.data.gov.uk/id/local-authority-district/23UB,Cheltenham Borough Council,451716,4371,INDUSTRIAL MEDICAL AND SAFETY SVCE LTD,C-D12300-3250,Personnel and P-Occupational Health,20-Jun-11,635.41
http://statistics.data.gov.uk/id/local-authority-district/23UB,Cheltenham Borough Council,451717,4621,INDUSTRIAL MEDICAL AND SAFETY SVCE LTD,C-D12300-3250,Personnel and P-Occupational Health,20-Jun-11,"1,015.83"
http://statistics.data.gov.uk/id/local-authority-district/23UB,Cheltenham Borough Council,451719,4734,INDUSTRIAL MEDICAL AND SAFETY SVCE LTD,C-D12300-3250,Personnel and P-Occupational Health,20-Jun-11,929.00
http://statistics.data.gov.uk/id/local-authority-district/23UB,Cheltenham Borough Council,451724,4746,INDUSTRIAL MEDICAL AND SAFETY SVCE LTD,C-D12300-3250,Personnel and P-Occupational Health,22-Jun-11,667.08
http://statistics.data.gov.uk/id/local-authority-district/23UB,Cheltenham Borough Council,450438,EVE2331,THE INSTITUTE OF LICENSING,C-A21500-0204,Licensing-Training fees/exp (Prof),01-Jun-11,95.00
http://statistics.data.gov.uk/id/local-authority-district/23UB,Cheltenham Borough Council,452052,EVE2602,INSTITUTE OF LICENSING (EVENTS) LTD,C-A21500-0204,Licensing-Training fees/exp (Prof),24-Jun-11,125.00
http://statistics.data.gov.uk/id/local-authority-district/23UB,Cheltenham Borough Council,451040,PSI015050,INTRINSIC TECHNOLOGY LIMITED,C-D11820-3660,IT Infrastructu-Hardware PC & Servers,08-Jun-11,"6,717.95"
http://statistics.data.gov.uk/id/local-authority-district/23UB,Cheltenham Borough Council,451040,PSI015050,INTRINSIC TECHNOLOGY LIMITED,C-D11820-3660,IT Infrastructu-Hardware PC & Servers,08-Jun-11,"21,315.30"
http://statistics.data.gov.uk/id/local-authority-district/23UB,Cheltenham Borough Council,451206,31919,JADU LTD,C-D12600-3638,Service Develop-WEBSITE MAINTENANCE,08-Jun-11,"6,000.00"
http://statistics.data.gov.uk/id/local-authority-district/23UB,Cheltenham Borough Council,452310,42304,JC LEISURE CONNEXIONS LTD,C-L11500-3101,Rec Facilities-Equipment purchases,29-Jun-11,35.00
http://statistics.data.gov.uk/id/local-authority-district/23UB,Cheltenham Borough Council,452310,42304,JC LEISURE CONNEXIONS LTD,C-L11500-3101,Rec Facilities-Equipment purchases,29-Jun-11,35.00
http://statistics.data.gov.uk/id/local-authority-district/23UB,Cheltenham Borough Council,452310,42304,JC LEISURE CONNEXIONS LTD,C-L11500-3101,Rec Facilities-Equipment purchases,29-Jun-11,35.00
http://statistics.data.gov.uk/id/local-authority-district/23UB,Cheltenham Borough Council,452310,42304,JC LEISURE CONNEXIONS LTD,C-L11500-3101,Rec Facilities-Equipment purchases,29-Jun-11,35.00
http://statistics.data.gov.uk/id/local-authority-district/23UB,Cheltenham Borough Council,452310,42304,JC LEISURE CONNEXIONS LTD,C-L11500-3101,Rec Facilities-Equipment purchases,29-Jun-11,35.00
http://statistics.data.gov.uk/id/local-authority-district/23UB,Cheltenham Borough Council,452310,42304,JC LEISURE CONNEXIONS LTD,C-L11500-3101,Rec Facilities-Equipment purchases,29-Jun-11,35.00
http://statistics.data.gov.uk/id/local-authority-district/23UB,Cheltenham Borough Council,452310,42304,JC LEISURE CONNEXIONS LTD,C-L11500-3101,Rec Facilities-Equipment purchases,29-Jun-11,35.00
http://statistics.data.gov.uk/id/local-authority-district/23UB,Cheltenham Borough Council,452310,42304,JC LEISURE CONNEXIONS LTD,C-L11500-3101,Rec Facilities-Equipment purchases,29-Jun-11,35.00
http://statistics.data.gov.uk/id/local-authority-district/23UB,Cheltenham Borough Council,452310,42304,JC LEISURE CONNEXIONS LTD,C-L11500-3101,Rec Facilities-Equipment purchases,29-Jun-11,35.00
http://statistics.data.gov.uk/id/local-authority-district/23UB,Cheltenham Borough Council,452310,42304,JC LEISURE CONNEXIONS LTD,C-L11500-3101,Rec Facilities-Equipment purchases,29-Jun-11,35.00
http://statistics.data.gov.uk/id/local-authority-district/23UB,Cheltenham Borough Council,452310,42304,JC LEISURE CONNEXIONS LTD,C-L11500-3101,Rec Facilities-Equipment purchases,29-Jun-11,35.00
http://statistics.data.gov.uk/id/local-authority-district/23UB,Cheltenham Borough Council,452310,42304,JC LEISURE CONNEXIONS LTD,C-L11500-3101,Rec Facilities-Equipment purchases,29-Jun-11,10.00
http://statistics.data.gov.uk/id/local-authority-district/23UB,Cheltenham Borough Council,452310,42304,JC LEISURE CONNEXIONS LTD,C-L11500-3101,Rec Facilities-Equipment purchases,29-Jun-11,35.00
http://statistics.data.gov.uk/id/local-authority-district/23UB,Cheltenham Borough Council,452310,42304,JC LEISURE CONNEXIONS LTD,C-L11500-3101,Rec Facilities-Equipment purchases,29-Jun-11,35.00
http://statistics.data.gov.uk/id/local-authority-district/23UB,Cheltenham Borough Council,452310,42304,JC LEISURE CONNEXIONS LTD,C-L11500-3101,Rec Facilities-Equipment purchases,29-Jun-11,35.00
http://statistics.data.gov.uk/id/local-authority-district/23UB,Cheltenham Borough Council,451727,444312,JOBSITE UK (WORLDWIDE) LIMITED,C-D12300-3501,Personnel and P-Hire of outside services,22-Jun-11,780.00
http://statistics.data.gov.uk/id/local-authority-district/23UB,Cheltenham Borough Council,451558,01073,D A JONES,C-C22190-1301,Allotments-Routine grounds maint,15-Jun-11,270.00
http://statistics.data.gov.uk/id/local-authority-district/23UB,Cheltenham Borough Council,451559,01069,D A JONES,C-C22190-1301,Allotments-Routine grounds maint,15-Jun-11,450.00
http://statistics.data.gov.uk/id/local-authority-district/23UB,Cheltenham Borough Council,451558,01073,D A JONES,C-N11250-9227,Excluded,15-Jun-11,-20.00
http://statistics.data.gov.uk/id/local-authority-district/23UB,Cheltenham Borough Council,451559,01069,D A JONES,C-N11250-9227,Excluded,15-Jun-11,-30.00
http://statistics.data.gov.uk/id/local-authority-district/23UB,Cheltenham Borough Council,451720,GAS APRIL VAL4,P H JONES LIMITED,C-H46100-1104,Cen.Heat.Serv-Council House repairs,20-Jun-11,"46,275.16"
http://statistics.data.gov.uk/id/local-authority-district/23UB,Cheltenham Borough Council,451720,GAS APRIL VAL4,P H JONES LIMITED,C-HC4862-C302,New Heating Ins-Building Contractor ,20-Jun-11,"5,357.94"
http://statistics.data.gov.uk/id/local-authority-district/23UB,Cheltenham Borough Council,451720,GAS APRIL VAL4,P H JONES LIMITED,C-HC4875-C302,Gas-Building Contractor   ,20-Jun-11,"2,714.98"
http://statistics.data.gov.uk/id/local-authority-district/23UB,Cheltenham Borough Council,450621,949,K B BUILDING SERVICES UK LIMITED,C-D14100-1804,Depot Building-RM-External structures,01-Jun-11,232.00
http://statistics.data.gov.uk/id/local-authority-district/23UB,Cheltenham Borough Council,450620,953,K B BUILDING SERVICES UK LIMITED,C-E21100-1804,Car Prks-Off St-RM-External structures,01-Jun-11,"2,000.00"
http://statistics.data.gov.uk/id/local-authority-district/23UB,Cheltenham Borough Council,450620,953,K B BUILDING SERVICES UK LIMITED,C-N11250-9227,Excluded,01-Jun-11,-230.00
http://statistics.data.gov.uk/id/local-authority-district/23UB,Cheltenham Borough Council,450621,949,K B BUILDING SERVICES UK LIMITED,C-N11250-9227,Excluded,01-Jun-11,-32.00
http://statistics.data.gov.uk/id/local-authority-district/23UB,Cheltenham Borough Council,451439,964,K B BUILDING SERVICES UK LIMITED,C-H4204G-1104,Gen Wks 2204-Council House repairs,15-Jun-11,"2,207.00"
http://statistics.data.gov.uk/id/local-authority-district/23UB,Cheltenham Borough Council,451436,966,K B BUILDING SERVICES UK LIMITED,C-H4208G-1104,Gen Wks 2208-Council House repairs,15-Jun-11,"2,500.00"
http://statistics.data.gov.uk/id/local-authority-district/23UB,Cheltenham Borough Council,451438,965,K B BUILDING SERVICES UK LIMITED,C-H4208G-1104,Gen Wks 2208-Council House repairs,15-Jun-11,"2,000.00"
http://statistics.data.gov.uk/id/local-authority-district/23UB,Cheltenham Borough Council,451435,954,K B BUILDING SERVICES UK LIMITED,C-H4209G-1104,Gen Wks 2209-Council House repairs,15-Jun-11,250.00
http://statistics.data.gov.uk/id/local-authority-district/23UB,Cheltenham Borough Council,451437,951,K B BUILDING SERVICES UK LIMITED,C-H4211G-1104,Gen Wks 2211-Council House repairs,15-Jun-11,800.00
http://statistics.data.gov.uk/id/local-authority-district/23UB,Cheltenham Borough Council,451439,964,K B BUILDING SERVICES UK LIMITED,C-N11250-9227,Excluded,15-Jun-11,-244.60
http://statistics.data.gov.uk/id/local-authority-district/23UB,Cheltenham Borough Council,451438,965,K B BUILDING SERVICES UK LIMITED,C-N11250-9227,Excluded,15-Jun-11,-197.40
http://statistics.data.gov.uk/id/local-authority-district/23UB,Cheltenham Borough Council,451437,951,K B BUILDING SERVICES UK LIMITED,C-N11250-9227,Excluded,15-Jun-11,-118.00
http://statistics.data.gov.uk/id/local-authority-district/23UB,Cheltenham Borough Council,451436,966,K B BUILDING SERVICES UK LIMITED,C-N11250-9227,Excluded,15-Jun-11,-375.80
http://statistics.data.gov.uk/id/local-authority-district/23UB,Cheltenham Borough Council,451435,954,K B BUILDING SERVICES UK LIMITED,C-N11250-9227,Excluded,15-Jun-11,-35.20
http://statistics.data.gov.uk/id/local-authority-district/23UB,Cheltenham Borough Council,452440,957,K B BUILDING SERVICES UK LIMITED,C-HC4050-C302,Major Voids-Building Contractor,29-Jun-11,"3,406.00"
http://statistics.data.gov.uk/id/local-authority-district/23UB,Cheltenham Borough Council,452440,957,K B BUILDING SERVICES UK LIMITED,C-N11250-9227,Excluded,29-Jun-11,-567.40
http://statistics.data.gov.uk/id/local-authority-district/23UB,Cheltenham Borough Council,452457,5500377765,KPMG LLP,C-D21200-3507,Corp Mgt-Audit Commission fees,29-Jun-11,"27,072.50"
http://statistics.data.gov.uk/id/local-authority-district/23UB,Cheltenham Borough Council,451842,Redacted,Redacted,C-HC4841-C302,Major Voids-Building Contractor ,22-Jun-11,"4,700.00"
http://statistics.data.gov.uk/id/local-authority-district/23UB,Cheltenham Borough Council,451022,2016,LAYNE MANLEY PERSONAL TRAINING,C-L11500-3522,Rec Facilities-Coaching scheme,08-Jun-11,84.00
http://statistics.data.gov.uk/id/local-authority-district/23UB,Cheltenham Borough Council,451022,2016,LAYNE MANLEY PERSONAL TRAINING,C-L11500-3522,Rec Facilities-Coaching scheme,08-Jun-11,168.00
http://statistics.data.gov.uk/id/local-authority-district/23UB,Cheltenham Borough Council,451255,LEEDS NEWS,LEEDS NEWS,C-L21100-3439,Town Hall-Newspapers,10-Jun-11,62.73
http://statistics.data.gov.uk/id/local-authority-district/23UB,Cheltenham Borough Council,450849,Redacted,Redacted,C-P12250-9104,Tenants Rent-Refunds,03-Jun-11,588.02
http://statistics.data.gov.uk/id/local-authority-district/23UB,Cheltenham Borough Council,451271,LAND USE AGRE,LINC,C-Z13080-J042,Rech Wks Hwys-Rechargeable Job,10-Jun-11,500.00
http://statistics.data.gov.uk/id/local-authority-district/23UB,Cheltenham Borough Council,451527,30/4/11,LONDON CURRENCY BROKERS,C-D32700-3994,Debt Mgt-Brokerage,15-Jun-11,352.60
http://statistics.data.gov.uk/id/local-authority-district/23UB,Cheltenham Borough Council,451475,1,LONDON CURRENCY BROKERS,C-D32700-3994,Debt Mgt-Brokerage,15-Jun-11,427.95
http://statistics.data.gov.uk/id/local-authority-district/23UB,Cheltenham Borough Council,452085,L552,MR M J LOVERIDGE,C-H46300-1104,Comm.Light.Mtce-Council House repairs,24-Jun-11,688.32
http://statistics.data.gov.uk/id/local-authority-district/23UB,Cheltenham Borough Council,452087,27/05/2011,MR M J LOVERIDGE,C-H46300-1104,Comm.Light.Mtce-Council House repairs,24-Jun-11,607.66
http://statistics.data.gov.uk/id/local-authority-district/23UB,Cheltenham Borough Council,452086,01/06/2011,MR M J LOVERIDGE,C-H46300-1104,Comm.Light.Mtce-Council House repairs,24-Jun-11,401.36
http://statistics.data.gov.uk/id/local-authority-district/23UB,Cheltenham Borough Council,451178,H1474,LOVELL PARTNERSHIPS LTD,C-HC4844-C302,Internal Imp-Building Contractor     ,08-Jun-11,"66,793.58"
http://statistics.data.gov.uk/id/local-authority-district/23UB,Cheltenham Borough Council,451466,MARCHANTS 224,MARCHANTS COACHES,C-Z12310-3940,TIC Agency-External Event Payments,15-Jun-11,907.00
http://statistics.data.gov.uk/id/local-authority-district/23UB,Cheltenham Borough Council,451467,MARCHANTS 224,MARCHANTS COACHES,C-Z12310-3940,TIC Agency-External Event Payments,15-Jun-11,215.00
http://statistics.data.gov.uk/id/local-authority-district/23UB,Cheltenham Borough Council,451468,MARCHANTS 224,MARCHANTS COACHES,C-Z12310-3940,TIC Agency-External Event Payments,15-Jun-11,26.00
http://statistics.data.gov.uk/id/local-authority-district/23UB,Cheltenham Borough Council,450709,3452,MARK TIME MUSIC LIMITED,C-1T29B1-3568,Ladysmith Black-Artist Fees       ,01-Jun-11,"9,500.00"
http://statistics.data.gov.uk/id/local-authority-district/23UB,Cheltenham Borough Council,451252,3463,MARK TIME MUSIC LIMITED,C-1T29B1-3568,Ladysmith Black-Artist Fees       ,10-Jun-11,"4,326.88"
http://statistics.data.gov.uk/id/local-authority-district/23UB,Cheltenham Borough Council,451666,2338,MARK WROOT AGRICULTURAL & GARDENS SERV,C-C22120-3501,Spts/Open Space-Hire of outside services,20-Jun-11,700.00
http://statistics.data.gov.uk/id/local-authority-district/23UB,Cheltenham Borough Council,451708,19334,MANSELL CONSTRUCTION SERVICES LTD,C-HC4843-C302,External Imp-Building Contractor ,20-Jun-11,"44,864.65"
http://statistics.data.gov.uk/id/local-authority-district/23UB,Cheltenham Borough Council,451709,19383,MANSELL CONSTRUCTION SERVICES LTD,C-HC4849-C302,Concrete repair-Building Contractor    ,20-Jun-11,"57,890.15"
http://statistics.data.gov.uk/id/local-authority-district/23UB,Cheltenham Borough Council,450477,8901,MASSIE ELECTRICS,C-L21100-3103,Town Hall-Equipment repairs & maint,01-Jun-11,690.00
http://statistics.data.gov.uk/id/local-authority-district/23UB,Cheltenham Borough Council,452025,0018,MARK MASTERS,C-L11500-3522,Rec Facilities-Coaching scheme,24-Jun-11,225.00
http://statistics.data.gov.uk/id/local-authority-district/23UB,Cheltenham Borough Council,452025,0018,MARK MASTERS,C-L11500-3522,Rec Facilities-Coaching scheme,24-Jun-11,84.00
http://statistics.data.gov.uk/id/local-authority-district/23UB,Cheltenham Borough Council,452025,0018,MARK MASTERS,C-L11500-3522,Rec Facilities-Coaching scheme,24-Jun-11,189.00
http://statistics.data.gov.uk/id/local-authority-district/23UB,Cheltenham Borough Council,452025,0018,MARK MASTERS,C-L11500-3522,Rec Facilities-Coaching scheme,24-Jun-11,252.00
http://statistics.data.gov.uk/id/local-authority-district/23UB,Cheltenham Borough Council,450842,128301,MATTA PRODUCTS UK LIMITED,C-C22120-3104,Spts/Open Space-Sports & play equipment,03-Jun-11,"3,750.00"
http://statistics.data.gov.uk/id/local-authority-district/23UB,Cheltenham Borough Council,451833,Redacted,MEARS HOME IMPROVEMENTS LTD,C-HC7440-C801,DFG.96.Act-Grants,22-Jun-11,"5,583.38"
http://statistics.data.gov.uk/id/local-authority-district/23UB,Cheltenham Borough Council,451836,Redacted,MEARS HOME IMPROVEMENTS LTD,C-HC7440-C801,DFG.96.Act-Grants,22-Jun-11,"1,955.00"
http://statistics.data.gov.uk/id/local-authority-district/23UB,Cheltenham Borough Council,451835,Redacted,MEARS HOME IMPROVEMENTS LTD,C-HC7440-C801,DFG.96.Act-Grants,22-Jun-11,"6,743.25"
http://statistics.data.gov.uk/id/local-authority-district/23UB,Cheltenham Borough Council,451834,Redacted,MEARS HOME IMPROVEMENTS LTD,C-HC7440-C801,DFG.96.Act-Grants,22-Jun-11,"1,981.25"
http://statistics.data.gov.uk/id/local-authority-district/23UB,Cheltenham Borough Council,450570,02618,MG WINDOWS CHELTENHAM LIMITED,C-H43229-1104,35 Bush Court-Council House repairs      ,01-Jun-11,472.00
http://statistics.data.gov.uk/id/local-authority-district/23UB,Cheltenham Borough Council,450566,01885,MG WINDOWS CHELTENHAM LIMITED,C-H44350-1104,Window Repairs-Council House repairs,01-Jun-11,29.66
http://statistics.data.gov.uk/id/local-authority-district/23UB,Cheltenham Borough Council,450572,02633,MG WINDOWS CHELTENHAM LIMITED,C-H44350-1104,Window Repairs-Council House repairs,01-Jun-11,55.58
http://statistics.data.gov.uk/id/local-authority-district/23UB,Cheltenham Borough Council,450574,02628,MG WINDOWS CHELTENHAM LIMITED,C-H44350-1104,Window Repairs-Council House repairs,01-Jun-11,79.32
http://statistics.data.gov.uk/id/local-authority-district/23UB,Cheltenham Borough Council,450591,02649,MG WINDOWS CHELTENHAM LIMITED,C-H44350-1104,Window Repairs-Council House repairs,01-Jun-11,2.50
http://statistics.data.gov.uk/id/local-authority-district/23UB,Cheltenham Borough Council,450590,02648,MG WINDOWS CHELTENHAM LIMITED,C-H44350-1104,Window Repairs-Council House repairs,01-Jun-11,47.60
http://statistics.data.gov.uk/id/local-authority-district/23UB,Cheltenham Borough Council,450589,02640,MG WINDOWS CHELTENHAM LIMITED,C-H44350-1104,Window Repairs-Council House repairs,01-Jun-11,85.70
http://statistics.data.gov.uk/id/local-authority-district/23UB,Cheltenham Borough Council,450588,02637,MG WINDOWS CHELTENHAM LIMITED,C-H44350-1104,Window Repairs-Council House repairs,01-Jun-11,28.60
http://statistics.data.gov.uk/id/local-authority-district/23UB,Cheltenham Borough Council,450587,02647,MG WINDOWS CHELTENHAM LIMITED,C-H44350-1104,Window Repairs-Council House repairs,01-Jun-11,51.60
http://statistics.data.gov.uk/id/local-authority-district/23UB,Cheltenham Borough Council,450586,02634,MG WINDOWS CHELTENHAM LIMITED,C-H44350-1104,Window Repairs-Council House repairs,01-Jun-11,46.99
http://statistics.data.gov.uk/id/local-authority-district/23UB,Cheltenham Borough Council,450585,02638,MG WINDOWS CHELTENHAM LIMITED,C-H44350-1104,Window Repairs-Council House repairs,01-Jun-11,23.44
http://statistics.data.gov.uk/id/local-authority-district/23UB,Cheltenham Borough Council,450584,02643,MG WINDOWS CHELTENHAM LIMITED,C-H44350-1104,Window Repairs-Council House repairs,01-Jun-11,84.95
http://statistics.data.gov.uk/id/local-authority-district/23UB,Cheltenham Borough Council,450583,02644,MG WINDOWS CHELTENHAM LIMITED,C-H44350-1104,Window Repairs-Council House repairs,01-Jun-11,49.84
http://statistics.data.gov.uk/id/local-authority-district/23UB,Cheltenham Borough Council,450593,02645,MG WINDOWS CHELTENHAM LIMITED,C-H44350-1104,Window Repairs-Council House repairs,01-Jun-11,96.78
http://statistics.data.gov.uk/id/local-authority-district/23UB,Cheltenham Borough Council,450592,02641,MG WINDOWS CHELTENHAM LIMITED,C-H44350-1104,Window Repairs-Council House repairs,01-Jun-11,37.19
http://statistics.data.gov.uk/id/local-authority-district/23UB,Cheltenham Borough Council,450582,02632,MG WINDOWS CHELTENHAM LIMITED,C-H44350-1104,Window Repairs-Council House repairs,01-Jun-11,25.80
http://statistics.data.gov.uk/id/local-authority-district/23UB,Cheltenham Borough Council,450581,02635,MG WINDOWS CHELTENHAM LIMITED,C-H44350-1104,Window Repairs-Council House repairs,01-Jun-11,101.26
http://statistics.data.gov.uk/id/local-authority-district/23UB,Cheltenham Borough Council,450580,02650,MG WINDOWS CHELTENHAM LIMITED,C-H44350-1104,Window Repairs-Council House repairs,01-Jun-11,66.77
http://statistics.data.gov.uk/id/local-authority-district/23UB,Cheltenham Borough Council,450579,02629,MG WINDOWS CHELTENHAM LIMITED,C-H44350-1104,Window Repairs-Council House repairs,01-Jun-11,37.60
http://statistics.data.gov.uk/id/local-authority-district/23UB,Cheltenham Borough Council,450578,02639,MG WINDOWS CHELTENHAM LIMITED,C-H44350-1104,Window Repairs-Council House repairs,01-Jun-11,88.58
http://statistics.data.gov.uk/id/local-authority-district/23UB,Cheltenham Borough Council,450577,02636,MG WINDOWS CHELTENHAM LIMITED,C-H44350-1104,Window Repairs-Council House repairs,01-Jun-11,44.58
http://statistics.data.gov.uk/id/local-authority-district/23UB,Cheltenham Borough Council,450576,02631,MG WINDOWS CHELTENHAM LIMITED,C-H44350-1104,Window Repairs-Council House repairs,01-Jun-11,95.20
http://statistics.data.gov.uk/id/local-authority-district/23UB,Cheltenham Borough Council,450575,02630,MG WINDOWS CHELTENHAM LIMITED,C-H44350-1104,Window Repairs-Council House repairs,01-Jun-11,20.00
http://statistics.data.gov.uk/id/local-authority-district/23UB,Cheltenham Borough Council,450573,02642,MG WINDOWS CHELTENHAM LIMITED,C-H44350-1104,Window Repairs-Council House repairs,01-Jun-11,34.28
http://statistics.data.gov.uk/id/local-authority-district/23UB,Cheltenham Borough Council,450571,02627,MG WINDOWS CHELTENHAM LIMITED,C-H44350-1104,Window Repairs-Council House repairs,01-Jun-11,95.86
http://statistics.data.gov.uk/id/local-authority-district/23UB,Cheltenham Borough Council,450567,02538,MG WINDOWS CHELTENHAM LIMITED,C-H44350-1104,Window Repairs-Council House repairs,01-Jun-11,2.50
http://statistics.data.gov.uk/id/local-authority-district/23UB,Cheltenham Borough Council,450568,02601,MG WINDOWS CHELTENHAM LIMITED,C-H44350-1104,Window Repairs-Council House repairs,01-Jun-11,20.00
http://statistics.data.gov.uk/id/local-authority-district/23UB,Cheltenham Borough Council,450569,02610,MG WINDOWS CHELTENHAM LIMITED,C-H44350-1104,Window Repairs-Council House repairs,01-Jun-11,10.00
http://statistics.data.gov.uk/id/local-authority-district/23UB,Cheltenham Borough Council,450943,02651,MG WINDOWS CHELTENHAM LIMITED,C-H44350-1104,Window Repairs-Council House repairs,03-Jun-11,53.22
http://statistics.data.gov.uk/id/local-authority-district/23UB,Cheltenham Borough Council,450948,02652,MG WINDOWS CHELTENHAM LIMITED,C-H44350-1104,Window Repairs-Council House repairs,03-Jun-11,38.40
http://statistics.data.gov.uk/id/local-authority-district/23UB,Cheltenham Borough Council,450950,02660,MG WINDOWS CHELTENHAM LIMITED,C-H44350-1104,Window Repairs-Council House repairs,03-Jun-11,78.56
http://statistics.data.gov.uk/id/local-authority-district/23UB,Cheltenham Borough Council,450955,02658,MG WINDOWS CHELTENHAM LIMITED,C-H44350-1104,Window Repairs-Council House repairs,03-Jun-11,132.76
http://statistics.data.gov.uk/id/local-authority-district/23UB,Cheltenham Borough Council,450954,02654,MG WINDOWS CHELTENHAM LIMITED,C-H44350-1104,Window Repairs-Council House repairs,03-Jun-11,2.50
http://statistics.data.gov.uk/id/local-authority-district/23UB,Cheltenham Borough Council,450953,02657,MG WINDOWS CHELTENHAM LIMITED,C-H44350-1104,Window Repairs-Council House repairs,03-Jun-11,30.61
http://statistics.data.gov.uk/id/local-authority-district/23UB,Cheltenham Borough Council,450952,02666,MG WINDOWS CHELTENHAM LIMITED,C-H44350-1104,Window Repairs-Council House repairs,03-Jun-11,25.80
http://statistics.data.gov.uk/id/local-authority-district/23UB,Cheltenham Borough Council,450951,02656,MG WINDOWS CHELTENHAM LIMITED,C-H44350-1104,Window Repairs-Council House repairs,03-Jun-11,20.00
http://statistics.data.gov.uk/id/local-authority-district/23UB,Cheltenham Borough Council,450949,02655,MG WINDOWS CHELTENHAM LIMITED,C-H44350-1104,Window Repairs-Council House repairs,03-Jun-11,67.58
http://statistics.data.gov.uk/id/local-authority-district/23UB,Cheltenham Borough Council,450947,02664,MG WINDOWS CHELTENHAM LIMITED,C-H44350-1104,Window Repairs-Council House repairs,03-Jun-11,28.60
http://statistics.data.gov.uk/id/local-authority-district/23UB,Cheltenham Borough Council,450944,02501,MG WINDOWS CHELTENHAM LIMITED,C-H44350-1104,Window Repairs-Council House repairs,03-Jun-11,34.30
http://statistics.data.gov.uk/id/local-authority-district/23UB,Cheltenham Borough Council,450945,02653,MG WINDOWS CHELTENHAM LIMITED,C-H44350-1104,Window Repairs-Council House repairs,03-Jun-11,68.00
http://statistics.data.gov.uk/id/local-authority-district/23UB,Cheltenham Borough Council,450946,02665,MG WINDOWS CHELTENHAM LIMITED,C-H44350-1104,Window Repairs-Council House repairs,03-Jun-11,64.37
http://statistics.data.gov.uk/id/local-authority-district/23UB,Cheltenham Borough Council,451480,02694,MG WINDOWS CHELTENHAM LIMITED,C-H44350-1104,Window Repairs-Council House repairs,15-Jun-11,33.55
http://statistics.data.gov.uk/id/local-authority-district/23UB,Cheltenham Borough Council,451482,02695,MG WINDOWS CHELTENHAM LIMITED,C-H44350-1104,Window Repairs-Council House repairs,15-Jun-11,75.53
http://statistics.data.gov.uk/id/local-authority-district/23UB,Cheltenham Borough Council,451484,02690,MG WINDOWS CHELTENHAM LIMITED,C-H44350-1104,Window Repairs-Council House repairs,15-Jun-11,24.28
http://statistics.data.gov.uk/id/local-authority-district/23UB,Cheltenham Borough Council,451486,02882,MG WINDOWS CHELTENHAM LIMITED,C-H44350-1104,Window Repairs-Council House repairs,15-Jun-11,126.85
http://statistics.data.gov.uk/id/local-authority-district/23UB,Cheltenham Borough Council,451488,02680,MG WINDOWS CHELTENHAM LIMITED,C-H44350-1104,Window Repairs-Council House repairs,15-Jun-11,62.89
http://statistics.data.gov.uk/id/local-authority-district/23UB,Cheltenham Borough Council,451490,02685,MG WINDOWS CHELTENHAM LIMITED,C-H44350-1104,Window Repairs-Council House repairs,15-Jun-11,85.70
http://statistics.data.gov.uk/id/local-authority-district/23UB,Cheltenham Borough Council,451499,02689,MG WINDOWS CHELTENHAM LIMITED,C-H44350-1104,Window Repairs-Council House repairs,15-Jun-11,34.87
http://statistics.data.gov.uk/id/local-authority-district/23UB,Cheltenham Borough Council,451498,02684,MG WINDOWS CHELTENHAM LIMITED,C-H44350-1104,Window Repairs-Council House repairs,15-Jun-11,105.95
http://statistics.data.gov.uk/id/local-authority-district/23UB,Cheltenham Borough Council,451497,02670,MG WINDOWS CHELTENHAM LIMITED,C-H44350-1104,Window Repairs-Council House repairs,15-Jun-11,20.00
http://statistics.data.gov.uk/id/local-authority-district/23UB,Cheltenham Borough Council,451496,02671,MG WINDOWS CHELTENHAM LIMITED,C-H44350-1104,Window Repairs-Council House repairs,15-Jun-11,76.90
http://statistics.data.gov.uk/id/local-authority-district/23UB,Cheltenham Borough Council,451495,02669,MG WINDOWS CHELTENHAM LIMITED,C-H44350-1104,Window Repairs-Council House repairs,15-Jun-11,132.38
http://statistics.data.gov.uk/id/local-authority-district/23UB,Cheltenham Borough Council,451494,02692,MG WINDOWS CHELTENHAM LIMITED,C-H44350-1104,Window Repairs-Council House repairs,15-Jun-11,63.03
http://statistics.data.gov.uk/id/local-authority-district/23UB,Cheltenham Borough Council,451493,02672,MG WINDOWS CHELTENHAM LIMITED,C-H44350-1104,Window Repairs-Council House repairs,15-Jun-11,73.09
http://statistics.data.gov.uk/id/local-authority-district/23UB,Cheltenham Borough Council,451492,02687,MG WINDOWS CHELTENHAM LIMITED,C-H44350-1104,Window Repairs-Council House repairs,15-Jun-11,2.50
http://statistics.data.gov.uk/id/local-authority-district/23UB,Cheltenham Borough Council,451491,02663,MG WINDOWS CHELTENHAM LIMITED,C-H44350-1104,Window Repairs-Council House repairs,15-Jun-11,406.00
http://statistics.data.gov.uk/id/local-authority-district/23UB,Cheltenham Borough Council,451501,02686,MG WINDOWS CHELTENHAM LIMITED,C-H44350-1104,Window Repairs-Council House repairs,15-Jun-11,20.00
http://statistics.data.gov.uk/id/local-authority-district/23UB,Cheltenham Borough Council,451500,02693,MG WINDOWS CHELTENHAM LIMITED,C-H44350-1104,Window Repairs-Council House repairs,15-Jun-11,155.71
http://statistics.data.gov.uk/id/local-authority-district/23UB,Cheltenham Borough Council,451489,02688,MG WINDOWS CHELTENHAM LIMITED,C-H44350-1104,Window Repairs-Council House repairs,15-Jun-11,26.61
http://statistics.data.gov.uk/id/local-authority-district/23UB,Cheltenham Borough Council,451487,02681,MG WINDOWS CHELTENHAM LIMITED,C-H44350-1104,Window Repairs-Council House repairs,15-Jun-11,57.19
http://statistics.data.gov.uk/id/local-authority-district/23UB,Cheltenham Borough Council,451485,02683,MG WINDOWS CHELTENHAM LIMITED,C-H44350-1104,Window Repairs-Council House repairs,15-Jun-11,32.67
http://statistics.data.gov.uk/id/local-authority-district/23UB,Cheltenham Borough Council,451483,02691,MG WINDOWS CHELTENHAM LIMITED,C-H44350-1104,Window Repairs-Council House repairs,15-Jun-11,29.61
http://statistics.data.gov.uk/id/local-authority-district/23UB,Cheltenham Borough Council,451481,02696,MG WINDOWS CHELTENHAM LIMITED,C-H44350-1104,Window Repairs-Council House repairs,15-Jun-11,77.81
http://statistics.data.gov.uk/id/local-authority-district/23UB,Cheltenham Borough Council,451911,02661,MG WINDOWS CHELTENHAM LIMITED,C-H44350-1104,Window Repairs-Council House repairs,22-Jun-11,752.00
http://statistics.data.gov.uk/id/local-authority-district/23UB,Cheltenham Borough Council,452463,02712,MG WINDOWS CHELTENHAM LIMITED,C-H44350-1104,Window Repairs-Council House repairs,29-Jun-11,31.55
http://statistics.data.gov.uk/id/local-authority-district/23UB,Cheltenham Borough Council,452464,02705,MG WINDOWS CHELTENHAM LIMITED,C-H44350-1104,Window Repairs-Council House repairs,29-Jun-11,62.80
http://statistics.data.gov.uk/id/local-authority-district/23UB,Cheltenham Borough Council,452466,02709,MG WINDOWS CHELTENHAM LIMITED,C-H44350-1104,Window Repairs-Council House repairs,29-Jun-11,29.66
http://statistics.data.gov.uk/id/local-authority-district/23UB,Cheltenham Borough Council,452475,02699,MG WINDOWS CHELTENHAM LIMITED,C-H44350-1104,Window Repairs-Council House repairs,29-Jun-11,47.82
http://statistics.data.gov.uk/id/local-authority-district/23UB,Cheltenham Borough Council,452474,02704,MG WINDOWS CHELTENHAM LIMITED,C-H44350-1104,Window Repairs-Council House repairs,29-Jun-11,20.00
http://statistics.data.gov.uk/id/local-authority-district/23UB,Cheltenham Borough Council,452473,02711,MG WINDOWS CHELTENHAM LIMITED,C-H44350-1104,Window Repairs-Council House repairs,29-Jun-11,24.00
http://statistics.data.gov.uk/id/local-authority-district/23UB,Cheltenham Borough Council,452472,02697,MG WINDOWS CHELTENHAM LIMITED,C-H44350-1104,Window Repairs-Council House repairs,29-Jun-11,137.04
http://statistics.data.gov.uk/id/local-authority-district/23UB,Cheltenham Borough Council,452471,02698,MG WINDOWS CHELTENHAM LIMITED,C-H44350-1104,Window Repairs-Council House repairs,29-Jun-11,20.00
http://statistics.data.gov.uk/id/local-authority-district/23UB,Cheltenham Borough Council,452470,02703,MG WINDOWS CHELTENHAM LIMITED,C-H44350-1104,Window Repairs-Council House repairs,29-Jun-11,31.80
http://statistics.data.gov.uk/id/local-authority-district/23UB,Cheltenham Borough Council,452469,02707,MG WINDOWS CHELTENHAM LIMITED,C-H44350-1104,Window Repairs-Council House repairs,29-Jun-11,33.55
http://statistics.data.gov.uk/id/local-authority-district/23UB,Cheltenham Borough Council,452468,02710,MG WINDOWS CHELTENHAM LIMITED,C-H44350-1104,Window Repairs-Council House repairs,29-Jun-11,28.60
http://statistics.data.gov.uk/id/local-authority-district/23UB,Cheltenham Borough Council,452467,02708,MG WINDOWS CHELTENHAM LIMITED,C-H44350-1104,Window Repairs-Council House repairs,29-Jun-11,25.80
http://statistics.data.gov.uk/id/local-authority-district/23UB,Cheltenham Borough Council,452492,02722,MG WINDOWS CHELTENHAM LIMITED,C-H44350-1104,Window Repairs-Council House repairs,29-Jun-11,33.25
http://statistics.data.gov.uk/id/local-authority-district/23UB,Cheltenham Borough Council,452491,02713,MG WINDOWS CHELTENHAM LIMITED,C-H44350-1104,Window Repairs-Council House repairs,29-Jun-11,50.08
http://statistics.data.gov.uk/id/local-authority-district/23UB,Cheltenham Borough Council,452490,02714,MG WINDOWS CHELTENHAM LIMITED,C-H44350-1104,Window Repairs-Council House repairs,29-Jun-11,53.64
http://statistics.data.gov.uk/id/local-authority-district/23UB,Cheltenham Borough Council,452489,02717,MG WINDOWS CHELTENHAM LIMITED,C-H44350-1104,Window Repairs-Council House repairs,29-Jun-11,48.42
http://statistics.data.gov.uk/id/local-authority-district/23UB,Cheltenham Borough Council,452488,02719,MG WINDOWS CHELTENHAM LIMITED,C-H44350-1104,Window Repairs-Council House repairs,29-Jun-11,63.35
http://statistics.data.gov.uk/id/local-authority-district/23UB,Cheltenham Borough Council,452487,02715,MG WINDOWS CHELTENHAM LIMITED,C-H44350-1104,Window Repairs-Council House repairs,29-Jun-11,33.88
http://statistics.data.gov.uk/id/local-authority-district/23UB,Cheltenham Borough Council,452486,02724,MG WINDOWS CHELTENHAM LIMITED,C-H44350-1104,Window Repairs-Council House repairs,29-Jun-11,55.66
http://statistics.data.gov.uk/id/local-authority-district/23UB,Cheltenham Borough Council,452485,02725,MG WINDOWS CHELTENHAM LIMITED,C-H44350-1104,Window Repairs-Council House repairs,29-Jun-11,39.61
http://statistics.data.gov.uk/id/local-authority-district/23UB,Cheltenham Borough Council,452484,02701,MG WINDOWS CHELTENHAM LIMITED,C-H44350-1104,Window Repairs-Council House repairs,29-Jun-11,41.13
http://statistics.data.gov.uk/id/local-authority-district/23UB,Cheltenham Borough Council,452499,02728,MG WINDOWS CHELTENHAM LIMITED,C-H44350-1104,Window Repairs-Council House repairs,29-Jun-11,27.93
http://statistics.data.gov.uk/id/local-authority-district/23UB,Cheltenham Borough Council,452498,02726,MG WINDOWS CHELTENHAM LIMITED,C-H44350-1104,Window Repairs-Council House repairs,29-Jun-11,74.80
http://statistics.data.gov.uk/id/local-authority-district/23UB,Cheltenham Borough Council,452497,02723,MG WINDOWS CHELTENHAM LIMITED,C-H44350-1104,Window Repairs-Council House repairs,29-Jun-11,70.64
http://statistics.data.gov.uk/id/local-authority-district/23UB,Cheltenham Borough Council,452496,02720,MG WINDOWS CHELTENHAM LIMITED,C-H44350-1104,Window Repairs-Council House repairs,29-Jun-11,10.30
http://statistics.data.gov.uk/id/local-authority-district/23UB,Cheltenham Borough Council,452495,02727,MG WINDOWS CHELTENHAM LIMITED,C-H44350-1104,Window Repairs-Council House repairs,29-Jun-11,35.70
http://statistics.data.gov.uk/id/local-authority-district/23UB,Cheltenham Borough Council,452494,02716,MG WINDOWS CHELTENHAM LIMITED,C-H44350-1104,Window Repairs-Council House repairs,29-Jun-11,77.68
http://statistics.data.gov.uk/id/local-authority-district/23UB,Cheltenham Borough Council,452493,02718,MG WINDOWS CHELTENHAM LIMITED,C-H44350-1104,Window Repairs-Council House repairs,29-Jun-11,41.20
http://statistics.data.gov.uk/id/local-authority-district/23UB,Cheltenham Borough Council,452483,02679,MG WINDOWS CHELTENHAM LIMITED,C-H44350-1104,Window Repairs-Council House repairs,29-Jun-11,689.00
http://statistics.data.gov.uk/id/local-authority-district/23UB,Cheltenham Borough Council,452482,02674,MG WINDOWS CHELTENHAM LIMITED,C-H44350-1104,Window Repairs-Council House repairs,29-Jun-11,732.00
http://statistics.data.gov.uk/id/local-authority-district/23UB,Cheltenham Borough Council,452481,02675,MG WINDOWS CHELTENHAM LIMITED,C-H44350-1104,Window Repairs-Council House repairs,29-Jun-11,644.00
http://statistics.data.gov.uk/id/local-authority-district/23UB,Cheltenham Borough Council,452480,02677,MG WINDOWS CHELTENHAM LIMITED,C-H44350-1104,Window Repairs-Council House repairs,29-Jun-11,392.00
http://statistics.data.gov.uk/id/local-authority-district/23UB,Cheltenham Borough Council,452479,02676,MG WINDOWS CHELTENHAM LIMITED,C-H44350-1104,Window Repairs-Council House repairs,29-Jun-11,284.00
http://statistics.data.gov.uk/id/local-authority-district/23UB,Cheltenham Borough Council,452478,02700,MG WINDOWS CHELTENHAM LIMITED,C-H44350-1104,Window Repairs-Council House repairs,29-Jun-11,55.02
http://statistics.data.gov.uk/id/local-authority-district/23UB,Cheltenham Borough Council,452477,02706,MG WINDOWS CHELTENHAM LIMITED,C-H44350-1104,Window Repairs-Council House repairs,29-Jun-11,79.01
http://statistics.data.gov.uk/id/local-authority-district/23UB,Cheltenham Borough Council,452476,02673,MG WINDOWS CHELTENHAM LIMITED,C-H44350-1104,Window Repairs-Council House repairs,29-Jun-11,39.85
http://statistics.data.gov.uk/id/local-authority-district/23UB,Cheltenham Borough Council,452465,02702,MG WINDOWS CHELTENHAM LIMITED,C-H44350-1104,Window Repairs-Council House repairs,29-Jun-11,29.20
http://statistics.data.gov.uk/id/local-authority-district/23UB,Cheltenham Borough Council,450899,1281,MIDLANDS VEHICLE RENTAL LIMITED,C-C24100-2702,Fleet Maint-Additional vehicle hire,03-Jun-11,263.97
http://statistics.data.gov.uk/id/local-authority-district/23UB,Cheltenham Borough Council,450906,H162791,MIDLANDS VEHICLE RENTAL LIMITED,C-C24100-2702,Fleet Maint-Additional vehicle hire,03-Jun-11,446.50
http://statistics.data.gov.uk/id/local-authority-district/23UB,Cheltenham Borough Council,451250,H162789,MIDLANDS VEHICLE RENTAL LIMITED,C-C24100-2701,Fleet Maint-Hired transport,10-Jun-11,"1,258.00"
http://statistics.data.gov.uk/id/local-authority-district/23UB,Cheltenham Borough Council,451259,H162788,MIDLANDS VEHICLE RENTAL LIMITED,C-C24100-2701,Fleet Maint-Hired transport,10-Jun-11,"1,258.00"
http://statistics.data.gov.uk/id/local-authority-district/23UB,Cheltenham Borough Council,451249,H163073,MIDLANDS VEHICLE RENTAL LIMITED,C-C24100-2702,Fleet Maint-Additional vehicle hire,10-Jun-11,117.50
http://statistics.data.gov.uk/id/local-authority-district/23UB,Cheltenham Borough Council,451260,H162792,MIDLANDS VEHICLE RENTAL LIMITED,C-C24100-2702,Fleet Maint-Additional vehicle hire,10-Jun-11,"1,275.00"
http://statistics.data.gov.uk/id/local-authority-district/23UB,Cheltenham Borough Council,451944,5838,MIDWEST LANDSCAPING LIMITED,C-DC1066-C405,Lnd&Prop presal-Specialist Contractor,22-Jun-11,"4,147.56"
http://statistics.data.gov.uk/id/local-authority-district/23UB,Cheltenham Borough Council,451414,IN669024,MORRIS LUBRICANTS,C-C24100-3110,Fleet Maint-Materials,15-Jun-11,"1,786.61"
http://statistics.data.gov.uk/id/local-authority-district/23UB,Cheltenham Borough Council,451077,78,J.J.MORRELL,C-D11400-3501,Audit & Assrnce-Hire of outside services,08-Jun-11,"2,009.34"
http://statistics.data.gov.uk/id/local-authority-district/23UB,Cheltenham Borough Council,451470,9932,MORGAN LAMBERT,C-H46100-1104,Cen.Heat.Serv-Council House repairs,15-Jun-11,704.00
http://statistics.data.gov.uk/id/local-authority-district/23UB,Cheltenham Borough Council,451970,2011CHELT/HEST,MUMKIN OPERATIONAL SERVICES,C-C22120-1119,Spts/Open Space-Playground Maint,22-Jun-11,570.00
http://statistics.data.gov.uk/id/local-authority-district/23UB,Cheltenham Borough Council,451974,2011 CHELT/FRVW,MUMKIN OPERATIONAL SERVICES,C-C22120-1119,Spts/Open Space-Playground Maint,22-Jun-11,600.00
http://statistics.data.gov.uk/id/local-authority-district/23UB,Cheltenham Borough Council,451970,2011CHELT/HEST,MUMKIN OPERATIONAL SERVICES,C-C22120-1119,Spts/Open Space-Playground Maint,22-Jun-11,495.00
http://statistics.data.gov.uk/id/local-authority-district/23UB,Cheltenham Borough Council,450939,AREXT/00107795,NATIONAL EXPRESS LIMITED,C-Z12310-3943,TIC Agency-National Express Payments,03-Jun-11,829.00
http://statistics.data.gov.uk/id/local-authority-district/23UB,Cheltenham Borough Council,450939,AREXT/00107795,NATIONAL EXPRESS LIMITED,C-Z12310-8324,TIC Agency-National Express Tickets,03-Jun-11,-94.43
http://statistics.data.gov.uk/id/local-authority-district/23UB,Cheltenham Borough Council,450863,SI/01560079,NO MIX ENVIRO LTD,C-C22105-3121,Hsg Forecourts-Materials-Contract,03-Jun-11,99.00
http://statistics.data.gov.uk/id/local-authority-district/23UB,Cheltenham Borough Council,450863,SI/01560079,NO MIX ENVIRO LTD,C-C22120-3121,Spts/Open Space-Materials-Contract,03-Jun-11,822.00
http://statistics.data.gov.uk/id/local-authority-district/23UB,Cheltenham Borough Council,450863,SI/01560079,NO MIX ENVIRO LTD,C-C22120-3121,Spts/Open Space-Materials-Contract,03-Jun-11,30.00
http://statistics.data.gov.uk/id/local-authority-district/23UB,Cheltenham Borough Council,450863,SI/01560079,NO MIX ENVIRO LTD,C-C22120-3121,Spts/Open Space-Materials-Contract,03-Jun-11,87.00
http://statistics.data.gov.uk/id/local-authority-district/23UB,Cheltenham Borough Council,452422,SI/01586575,NO MIX ENVIRO LTD,C-C22105-3121,Hsg Forecourts-Materials-Contract,29-Jun-11,616.50
http://statistics.data.gov.uk/id/local-authority-district/23UB,Cheltenham Borough Council,452422,SI/01586575,NO MIX ENVIRO LTD,C-C22105-3121,Hsg Forecourts-Materials-Contract,29-Jun-11,43.50
http://statistics.data.gov.uk/id/local-authority-district/23UB,Cheltenham Borough Council,450389,55287672,NORTHCLIFFE MEDIA LTD,C-1T01C1-3510,Shaolin Warrior-Promotion & Marketing   ,01-Jun-11,90.83
http://statistics.data.gov.uk/id/local-authority-district/23UB,Cheltenham Borough Council,450389,55287672,NORTHCLIFFE MEDIA LTD,C-1T14C1-3510,Gordon Smith-Promotion & Marketing   ,01-Jun-11,90.83
http://statistics.data.gov.uk/id/local-authority-district/23UB,Cheltenham Borough Council,450389,55287672,NORTHCLIFFE MEDIA LTD,C-1T15C1-3510,Harlem Gospel C-Promotion & Marketing  ,01-Jun-11,90.82
http://statistics.data.gov.uk/id/local-authority-district/23UB,Cheltenham Borough Council,450389,55287672,NORTHCLIFFE MEDIA LTD,C-1T18B1-3510,Tony Christie-Promotion & Marketing   ,01-Jun-11,90.83
http://statistics.data.gov.uk/id/local-authority-district/23UB,Cheltenham Borough Council,450389,55287672,NORTHCLIFFE MEDIA LTD,C-1T22B1-3510,Loudon Wainwrig-Promotion & Marketing      ,01-Jun-11,90.83
http://statistics.data.gov.uk/id/local-authority-district/23UB,Cheltenham Borough Council,450389,55287672,NORTHCLIFFE MEDIA LTD,C-1T25B1-3510,Philharmonia 2-Promotion & Marketing,01-Jun-11,90.83
http://statistics.data.gov.uk/id/local-authority-district/23UB,Cheltenham Borough Council,450389,55287672,NORTHCLIFFE MEDIA LTD,C-1T29B1-3510,Ladysmith Black-Promotion & Marketing      ,01-Jun-11,90.83
http://statistics.data.gov.uk/id/local-authority-district/23UB,Cheltenham Borough Council,450554,NS1785A,NOVATRON SCIENTIFIC LIMITED,C-L41100-3130,AG & M-Conservation-collections,01-Jun-11,550.00
http://statistics.data.gov.uk/id/local-authority-district/23UB,Cheltenham Borough Council,450557,NS1785B,NOVATRON SCIENTIFIC LIMITED,C-L41100-3130,AG & M-Conservation-collections,01-Jun-11,180.00
http://statistics.data.gov.uk/id/local-authority-district/23UB,Cheltenham Borough Council,450557,NS1785B,NOVATRON SCIENTIFIC LIMITED,C-L41100-3130,AG & M-Conservation-collections,01-Jun-11,236.00
http://statistics.data.gov.uk/id/local-authority-district/23UB,Cheltenham Borough Council,450557,NS1785B,NOVATRON SCIENTIFIC LIMITED,C-L41100-3130,AG & M-Conservation-collections,01-Jun-11,172.00
http://statistics.data.gov.uk/id/local-authority-district/23UB,Cheltenham Borough Council,450463,7986 93359 30,NPOWER,C-H33700-1402,Estate Services-Electricity,01-Jun-11,"1,155.07"
http://statistics.data.gov.uk/id/local-authority-district/23UB,Cheltenham Borough Council,450472,7956 76157 30,NPOWER,C-H33700-1402,Estate Services-Electricity,01-Jun-11,"1,918.10"
http://statistics.data.gov.uk/id/local-authority-district/23UB,Cheltenham Borough Council,450471,7956 76157 30,NPOWER,C-H33700-1402,Estate Services-Electricity,01-Jun-11,-18.55
http://statistics.data.gov.uk/id/local-authority-district/23UB,Cheltenham Borough Council,450466,7940 94774 50,NPOWER,C-H33700-1402,Estate Services-Electricity,01-Jun-11,170.94
http://statistics.data.gov.uk/id/local-authority-district/23UB,Cheltenham Borough Council,450467,7956 76157 30,NPOWER,C-H33700-1402,Estate Services-Electricity,01-Jun-11,"1,736.30"
http://statistics.data.gov.uk/id/local-authority-district/23UB,Cheltenham Borough Council,450468,7956 76157 30,NPOWER,C-H33700-1402,Estate Services-Electricity,01-Jun-11,"1,438.65"
http://statistics.data.gov.uk/id/local-authority-district/23UB,Cheltenham Borough Council,450470,7956 76157 30,NPOWER,C-H33700-1402,Estate Services-Electricity,01-Jun-11,"-1,948.06"
http://statistics.data.gov.uk/id/local-authority-district/23UB,Cheltenham Borough Council,450469,7956 76157 30,NPOWER,C-H33700-1402,Estate Services-Electricity,01-Jun-11,"-1,918.10"
http://statistics.data.gov.uk/id/local-authority-district/23UB,Cheltenham Borough Council,450465,7944 04469 30,NPOWER,C-H33700-1402,Estate Services-Electricity,01-Jun-11,139.60
http://statistics.data.gov.uk/id/local-authority-district/23UB,Cheltenham Borough Council,450464,7944 04469 30,NPOWER,C-H33700-1402,Estate Services-Electricity,01-Jun-11,"1,749.61"
http://statistics.data.gov.uk/id/local-authority-district/23UB,Cheltenham Borough Council,450629,4407,OASIS ENVIRONMENTS LIMITED,C-H4208G-1104,Gen Wks 2208-Council House repairs,01-Jun-11,"1,500.00"
http://statistics.data.gov.uk/id/local-authority-district/23UB,Cheltenham Borough Council,450882,4419,OASIS ENVIRONMENTS LIMITED,C-L21100-1805,Town Hall-RM-Int. fixtures/fittings,03-Jun-11,910.00
http://statistics.data.gov.uk/id/local-authority-district/23UB,Cheltenham Borough Council,450882,4419,OASIS ENVIRONMENTS LIMITED,C-L21100-1805,Town Hall-RM-Int. fixtures/fittings,03-Jun-11,250.00
http://statistics.data.gov.uk/id/local-authority-district/23UB,Cheltenham Borough Council,452162,35199,OFF THE KERB PRODUCTIONS,C-1T20A1-3568,A Parsons-Artist Fees           ,24-Jun-11,"7,984.31"
http://statistics.data.gov.uk/id/local-authority-district/23UB,Cheltenham Borough Council,450746,949717853,OFFICE DEPOT,C-C22100-3410,Green Env Div-Stationery & office supp,03-Jun-11,11.37
http://statistics.data.gov.uk/id/local-authority-district/23UB,Cheltenham Borough Council,450743,949694281,OFFICE DEPOT,C-C23160-3410,Env Maint Div-Stationery & office supps,03-Jun-11,183.00
http://statistics.data.gov.uk/id/local-authority-district/23UB,Cheltenham Borough Council,450743,949694281,OFFICE DEPOT,C-C23160-3410,Env Maint Div-Stationery & office supps,03-Jun-11,45.80
http://statistics.data.gov.uk/id/local-authority-district/23UB,Cheltenham Borough Council,450750,949793353,OFFICE DEPOT,C-D11100-3410,CEO Management-Stationery & office supps,03-Jun-11,11.96
http://statistics.data.gov.uk/id/local-authority-district/23UB,Cheltenham Borough Council,450750,949793353,OFFICE DEPOT,C-D11100-3410,CEO Management-Stationery & office supps,03-Jun-11,7.52
http://statistics.data.gov.uk/id/local-authority-district/23UB,Cheltenham Borough Council,450750,949793353,OFFICE DEPOT,C-D11100-3410,CEO Management-Stationery & office supps,03-Jun-11,1.16
http://statistics.data.gov.uk/id/local-authority-district/23UB,Cheltenham Borough Council,450744,949701488,OFFICE DEPOT,C-D11400-3410,Audit & Assrnce-Stationery & office supp,03-Jun-11,14.07
http://statistics.data.gov.uk/id/local-authority-district/23UB,Cheltenham Borough Council,450744,949701488,OFFICE DEPOT,C-D11400-3410,Audit & Assrnce-Stationery & office supp,03-Jun-11,1.58
http://statistics.data.gov.uk/id/local-authority-district/23UB,Cheltenham Borough Council,450744,949701488,OFFICE DEPOT,C-D11400-3410,Audit & Assrnce-Stationery & office supp,03-Jun-11,0.68
http://statistics.data.gov.uk/id/local-authority-district/23UB,Cheltenham Borough Council,450744,949701488,OFFICE DEPOT,C-D11400-3410,Audit & Assrnce-Stationery & office supp,03-Jun-11,13.53
http://statistics.data.gov.uk/id/local-authority-district/23UB,Cheltenham Borough Council,450744,949701488,OFFICE DEPOT,C-D11400-3410,Audit & Assrnce-Stationery & office supp,03-Jun-11,2.36
http://statistics.data.gov.uk/id/local-authority-district/23UB,Cheltenham Borough Council,450749,949787073,OFFICE DEPOT,C-D11700-3410,Pol & Info Mgmt-Stationery & office supp,03-Jun-11,1.10
http://statistics.data.gov.uk/id/local-authority-district/23UB,Cheltenham Borough Council,450750,949793353,OFFICE DEPOT,C-D11800-3401,IT Services-Printing - general,03-Jun-11,0.55
http://statistics.data.gov.uk/id/local-authority-district/23UB,Cheltenham Borough Council,450750,949793353,OFFICE DEPOT,C-D11800-3401,IT Services-Printing - general,03-Jun-11,1.05
http://statistics.data.gov.uk/id/local-authority-district/23UB,Cheltenham Borough Council,450750,949793353,OFFICE DEPOT,C-D11800-3410,IT Services-Stationery & office supps,03-Jun-11,5.55
http://statistics.data.gov.uk/id/local-authority-district/23UB,Cheltenham Borough Council,450750,949793353,OFFICE DEPOT,C-D11800-3410,IT Services-Stationery & office supps,03-Jun-11,3.95
http://statistics.data.gov.uk/id/local-authority-district/23UB,Cheltenham Borough Council,450742,949639677,OFFICE DEPOT,C-D11830-3410,Corporate Print-Stationery & office supp,03-Jun-11,122.00
http://statistics.data.gov.uk/id/local-authority-district/23UB,Cheltenham Borough Council,450749,949787073,OFFICE DEPOT,C-D11830-3410,Corporate Print-Stationery & office supp,03-Jun-11,61.00
http://statistics.data.gov.uk/id/local-authority-district/23UB,Cheltenham Borough Council,450746,949717853,OFFICE DEPOT,C-D11830-3410,Corporate Print-Stationery & office supp,03-Jun-11,22.90
http://statistics.data.gov.uk/id/local-authority-district/23UB,Cheltenham Borough Council,450744,949701488,OFFICE DEPOT,C-D11830-3410,Corporate Print-Stationery & office supp,03-Jun-11,122.00
http://statistics.data.gov.uk/id/local-authority-district/23UB,Cheltenham Borough Council,450750,949793353,OFFICE DEPOT,C-D11830-3410,Corporate Print-Stationery & office supp,03-Jun-11,22.90
http://statistics.data.gov.uk/id/local-authority-district/23UB,Cheltenham Borough Council,450746,949717853,OFFICE DEPOT,C-D11830-3410,Corporate Print-Stationery & office supp,03-Jun-11,122.00
http://statistics.data.gov.uk/id/local-authority-district/23UB,Cheltenham Borough Council,450740,949676924,OFFICE DEPOT,C-D12440-3410,Coun Tax overhe-Stationery & office supp,03-Jun-11,18.44
http://statistics.data.gov.uk/id/local-authority-district/23UB,Cheltenham Borough Council,450740,949676924,OFFICE DEPOT,C-D12440-3410,Coun Tax overhe-Stationery & office supp,03-Jun-11,5.28
http://statistics.data.gov.uk/id/local-authority-district/23UB,Cheltenham Borough Council,450740,949676924,OFFICE DEPOT,C-D12440-3410,Coun Tax overhe-Stationery & office supp,03-Jun-11,10.75
http://statistics.data.gov.uk/id/local-authority-district/23UB,Cheltenham Borough Council,450741,949676925,OFFICE DEPOT,C-D12440-3410,Coun Tax overhe-Stationery & office supp,03-Jun-11,-18.44
http://statistics.data.gov.uk/id/local-authority-district/23UB,Cheltenham Borough Council,450741,949676925,OFFICE DEPOT,C-D12440-3410,Coun Tax overhe-Stationery & office supp,03-Jun-11,-5.28
http://statistics.data.gov.uk/id/local-authority-district/23UB,Cheltenham Borough Council,450742,949639677,OFFICE DEPOT,C-D12440-3410,Coun Tax overhe-Stationery & office supp,03-Jun-11,10.75
http://statistics.data.gov.uk/id/local-authority-district/23UB,Cheltenham Borough Council,450742,949639677,OFFICE DEPOT,C-D12440-3410,Coun Tax overhe-Stationery & office supp,03-Jun-11,5.28
http://statistics.data.gov.uk/id/local-authority-district/23UB,Cheltenham Borough Council,450742,949639677,OFFICE DEPOT,C-D12440-3410,Coun Tax overhe-Stationery & office supp,03-Jun-11,18.44
http://statistics.data.gov.uk/id/local-authority-district/23UB,Cheltenham Borough Council,450741,949676925,OFFICE DEPOT,C-D12440-3410,Coun Tax overhe-Stationery & office supp,03-Jun-11,-10.75
http://statistics.data.gov.uk/id/local-authority-district/23UB,Cheltenham Borough Council,450746,949717853,OFFICE DEPOT,C-D13100-3410,Muni Off Blgs-Stationery & office supps,03-Jun-11,95.40
http://statistics.data.gov.uk/id/local-authority-district/23UB,Cheltenham Borough Council,450749,949787073,OFFICE DEPOT,C-D21100-3205,Dem Process-Committee refreshments,03-Jun-11,15.36
http://statistics.data.gov.uk/id/local-authority-district/23UB,Cheltenham Borough Council,450749,949787073,OFFICE DEPOT,C-D21100-3205,Dem Process-Committee refreshments,03-Jun-11,10.63
http://statistics.data.gov.uk/id/local-authority-district/23UB,Cheltenham Borough Council,450749,949787073,OFFICE DEPOT,C-D21100-3205,Dem Process-Committee refreshments,03-Jun-11,10.91
http://statistics.data.gov.uk/id/local-authority-district/23UB,Cheltenham Borough Council,450740,949676924,OFFICE DEPOT,C-D21260-3101,Health & Safety-Equipment purchases,03-Jun-11,76.16
http://statistics.data.gov.uk/id/local-authority-district/23UB,Cheltenham Borough Council,450741,949676925,OFFICE DEPOT,C-D21260-3101,Health & Safety-Equipment purchases,03-Jun-11,-54.99
http://statistics.data.gov.uk/id/local-authority-district/23UB,Cheltenham Borough Council,450742,949639677,OFFICE DEPOT,C-D21260-3101,Health & Safety-Equipment purchases,03-Jun-11,219.96
http://statistics.data.gov.uk/id/local-authority-district/23UB,Cheltenham Borough Council,450744,949701488,OFFICE DEPOT,C-E21400-3410,Shopmobility-Stationery & office supps,03-Jun-11,1.10
http://statistics.data.gov.uk/id/local-authority-district/23UB,Cheltenham Borough Council,450744,949701488,OFFICE DEPOT,C-E21400-3410,Shopmobility-Stationery & office supps,03-Jun-11,17.60
http://statistics.data.gov.uk/id/local-authority-district/23UB,Cheltenham Borough Council,450740,949676924,OFFICE DEPOT,C-E63100-3410,Cemetery & Crem-Stationery & office supp,03-Jun-11,19.92
http://statistics.data.gov.uk/id/local-authority-district/23UB,Cheltenham Borough Council,450740,949676924,OFFICE DEPOT,C-E63100-3410,Cemetery & Crem-Stationery & office supp,03-Jun-11,8.63
http://statistics.data.gov.uk/id/local-authority-district/23UB,Cheltenham Borough Council,450741,949676925,OFFICE DEPOT,C-E63100-3410,Cemetery & Crem-Stationery & office supp,03-Jun-11,-8.63
http://statistics.data.gov.uk/id/local-authority-district/23UB,Cheltenham Borough Council,450742,949639677,OFFICE DEPOT,C-E63100-3410,Cemetery & Crem-Stationery & office supp,03-Jun-11,8.63
http://statistics.data.gov.uk/id/local-authority-district/23UB,Cheltenham Borough Council,450742,949639677,OFFICE DEPOT,C-E63100-3410,Cemetery & Crem-Stationery & office supp,03-Jun-11,6.51
http://statistics.data.gov.uk/id/local-authority-district/23UB,Cheltenham Borough Council,450742,949639677,OFFICE DEPOT,C-E63100-3410,Cemetery & Crem-Stationery & office supp,03-Jun-11,19.92
http://statistics.data.gov.uk/id/local-authority-district/23UB,Cheltenham Borough Council,450741,949676925,OFFICE DEPOT,C-E63100-3410,Cemetery & Crem-Stationery & office supp,03-Jun-11,-19.92
http://statistics.data.gov.uk/id/local-authority-district/23UB,Cheltenham Borough Council,450746,949717853,OFFICE DEPOT,C-E71150-3410,Public Pro Div-Stationery & office supps,03-Jun-11,7.42
